Workbook

Sheet Inputs
A1: Am I Diversified? An Exercise for Finance Students | W1: http://ichart.finance.yahoo.com/table.csv?s=^GSPC&a=11&b=15&c=2017&d=12&e=12&f=2022&g=m&ignore=.csv
A2: Developed by Bill Reese and Russ Robins
A4: Today's date | B4: =TODAY() -> 2023-01-07 | C4: Place the ticker symbols for the 30 stocks you select in the cells C15-C44 and click the "Download" cell. This spreadsheet will do the rest.
A5: Start date | B5: =DATE(YEAR(endDate)-5, MONTH(endDate), 15) -> 2017-12-15 | C5: The adjusted closing prices for those 30 stocks and for the S&P 500 will be downloaded from Yahoo! Finance for the most recent 61 months.
A6: End date | B6: =DATE(YEAR(B4), MONTH(B4)-1, 15) -> 2022-12-15 | C6: The program will calculate the standard deviations of the monthly returns, build a correlation matrix, and a variance/covariance matrix.
C7: The standard deviations for 30 different equally-weighted portfolios will be calculated and graphed against the number of stocks in each portfolio.
C8: The solid black line on the graph is the standard deviation of the S&P 500.
C14: Ticker Symbol
B15: 1 | C15: TSLA
B16: 2 | C16: GM
B17: 3 | C17: BA
B18: 4 | C18: CAT
B19: 5 | C19: CSCO
B20: 6 | C20: CVX
B21: 7 | C21: DIS
B22: 8 | C22: F
B23: 9 | C23: GE
B24: 10 | C24: GOOGL
B25: 11 | C25: HD
B26: 12 | C26: IBM
B27: 13 | C27: INTC
B28: 14 | C28: JNJ
B29: 15 | C29: JPM
B30: 16 | C30: KO
B31: 17 | C31: KR
B32: 18 | C32: MCD
B33: 19 | C33: MMM
B34: 20 | C34: MSFT
B35: 21 | C35: NFLX
B36: 22 | C36: PFE
B37: 23 | C37: PG
B38: 24 | C38: AAPL
B39: 25 | C39: PRU
B40: 26 | C40: TFC
B41: 27 | C41: VZ
B42: 28 | C42: WMT
B43: 29 | C43: XOM
B44: 30 | C44: AMZN
... 2 more rows

Sheet price data
A1: Date | B1: TSLA | C1: GM | D1: BA | E1: CAT | F1: CSCO | G1: CVX | H1: DIS | I1: F | J1: GE | K1: GOOGL | L1: HD | M1: IBM | N1: INTC | O1: JNJ | P1: JPM | Q1: KO | R1: KR | S1: MCD | T1: MMM | U1: MSFT | V1: NFLX | W1: PFE | X1: PG | Y1: AAPL | Z1: PRU | AA1: TFC | AB1: VZ | AC1: WMT | AD1: XOM | AE1: AMZN | AF1: GSPC
A2: 2018-01-01 | B2: 23.620667 | C2: 38.454296 | D2: 337.712097 | E2: 143.845703 | F2: 35.420872 | G2: 100.669159 | H2: 105.682121 | I2: 9.092909 | J2: 92.87751 | K2: 59.111 | L2: 178.528229 | M2: 123.145607 | N2: 41.910477 | O2: 121.076355 | P2: 99.328957 | Q2: 40.592464 | R2: 27.394543 | S2: 152.047729 | T2: 211.622681 | U2: 89.472321 | V2: 270.299988 | W2: 29.296535 | X2: 75.351097 | Y2: 39.802284 | Z2: 94.011444 | AA2: 46.173386 | AB2: 43.035156 | AC2: 97.285042 | AD2: 67.124474 | AE2: 72.544502 | AF2: 2823.810059
A3: 2018-02-01 | B3: 22.870667 | C3: 35.679714 | D3: 345.183533 | E3: 137.277939 | F3: 38.468391 | G3: 89.883453 | H3: 100.323616 | I3: 9.011086 | J3: 81.045258 | K3: 55.195999 | L3: 161.972855 | M3: 117.225304 | N3: 42.911655 | O3: 113.795471 | P3: 99.699631 | Q3: 36.865021 | R3: 24.471016 | S3: 140.142654 | T3: 198.959091 | U3: 88.304611 | V3: 291.380005 | W3: 28.719152 | X3: 69.048775 | Y3: 42.343563 | Z3: 84.121315 | AA3: 45.470615 | AB3: 38.429806 | AC3: 82.144737 | AD3: 58.23605 | AE3: 75.622498 | AF3: 2713.830078
A4: 2018-03-01 | B4: 17.742001 | C4: 32.950459 | D4: 314.009735 | E4: 130.841476 | F4: 36.844788 | G4: 92.497757 | H4: 97.678406 | I4: 9.410258 | J4: 78.067421 | K4: 51.856998 | L4: 158.391586 | M4: 116.556267 | N4: 45.648212 | O4: 112.998688 | P4: 94.926132 | Q4: 37.044144 | R4: 21.698078 | S4: 139.813293 | T4: 186.544281 | U4: 86.354073 | V4: 295.350006 | W4: 28.330627 | X4: 69.717117 | Y4: 40.048107 | Z4: 82.609093 | AA4: 43.80661 | AB4: 38.494198 | AC4: 81.195602 | AD4: 57.953823 | AE4: 72.366997 | AF4: 2640.870117
A5: 2018-04-01 | B5: 19.593332 | C5: 33.651997 | D5: 319.449493 | E5: 128.16037 | F5: 38.047462 | G5: 101.476608 | H5: 97.571426 | I5: 9.546145 | J5: 81.484322 | K5: 50.929001 | L5: 165.157593 | M5: 110.121857 | N5: 45.245029 | O5: 111.534958 | P5: 93.898941 | Q5: 37.181835 | R5: 22.831018 | S5: 149.70163 | T5: 165.18924 | U5: 88.482864 | V5: 312.459991 | W5: 29.224691 | X5: 63.614216 | Y5: 39.446606 | Z5: 84.818916 | AA5: 44.483242 | AB5: 39.72583 | AC5: 81.211487 | AD5: 60.392845 | AE5: 78.306503 | AF5: 2648.050049
A6: 2018-05-01 | B6: 18.982 | C6: 39.111057 | D6: 337.262665 | E6: 135.54216 | F6: 36.985111 | G6: 100.819649 | H6: 96.735062 | I6: 9.94104 | J6: 81.542229 | K6: 55 | L6: 166.721619 | M6: 107.349052 | N6: 48.382912 | O6: 105.477226 | P6: 92.839493 | Q6: 37.001133 | R6: 22.051558 | S6: 143.058746 | T6: 167.6026 | U6: 93.516327 | V6: 351.600006 | W6: 28.68187 | X6: 64.939529 | Y6: 44.604774 | Z6: 77.25605 | AA6: 44.230495 | AB6: 38.856289 | AC6: 75.776581 | AD6: 63.103729 | AE6: 81.481003 | AF6: 2705.27002
A7: 2018-06-01 | B7: 22.863333 | C7: 36.088421 | D7: 322.919922 | E7: 121.051964 | F7: 37.262211 | G7: 103.44149 | H7: 101.928238 | I7: 9.527905 | J7: 78.820297 | K7: 56.459499 | L7: 175.339035 | M7: 107.304085 | N7: 43.822376 | O7: 107.787384 | P7: 90.401611 | Q7: 37.741169 | R7: 25.917583 | S7: 140.090439 | T7: 168.312515 | U7: 93.703117 | V7: 391.429993 | W7: 29.243975 | X7: 69.27948 | Y7: 44.355061 | Z7: 75.260765 | AA7: 42.78714 | AB7: 41.008175 | AC7: 79.127121 | AD7: 64.912445 | AE7: 84.989998 | AF7: 2718.370117
A8: 2018-07-01 | B8: 19.875999 | C8: 35.026638 | D8: 342.929718 | E8: 128.305969 | F8: 36.62141 | G8: 103.310577 | H8: 110.437668 | I8: 8.64139 | J8: 79.636757 | K8: 61.361 | L8: 177.513931 | M8: 111.321259 | N8: 42.403053 | O8: 117.718681 | P8: 99.728058 | Q8: 40.482071 | R8: 26.418629 | S8: 141.745132 | T8: 181.659821 | U8: 100.801407 | V8: 337.450012 | W8: 32.186115 | X8: 71.782272 | Y8: 45.596256 | Z8: 81.216599 | AA8: 43.100994 | AB8: 42.092281 | AC8: 82.434471 | AD8: 63.955204 | AE8: 88.872002 | AF8: 2816.290039
A9: 2018-08-01 | B9: 20.110666 | C9: 33.308113 | D9: 329.926666 | E9: 124.648964 | F9: 41.689285 | G9: 96.920662 | H9: 109.815689 | I9: 8.274103 | J9: 75.60524 | K9: 61.59 | L9: 180.434753 | M9: 112.51181 | N9: 42.693977 | O9: 119.646286 | P9: 99.947266 | Q9: 38.693672 | R9: 28.696096 | S9: 145.964935 | T9: 180.462006 | U9: 106.74041 | V9: 367.679993 | W9: 33.467747 | X9: 74.287582 | Y9: 54.543468 | Z9: 79.075699 | AA9: 43.822033 | AB9: 44.831333 | AC9: 88.559547 | AD9: 62.903782 | AE9: 100.635498 | AF9: 2901.52002
A10: 2018-09-01 | B10: 17.651333 | C10: 31.109125 | D10: 359.712982 | E10: 136.893906 | F10: 42.457268 | G10: 101.005272 | H10: 114.638885 | I10: 8.073361 | J10: 65.964699 | K10: 60.354 | L10: 187.122818 | M10: 117.399757 | N10: 41.942528 | O10: 123.555573 | P10: 98.429459 | Q10: 40.10009 | R10: 26.643631 | S10: 151.457214 | T10: 181.490707 | U10: 109.097122 | V10: 374.130005 | W10: 35.825684 | X10: 74.538338 | Y10: 54.280293 | Z10: 82.296234 | AA10: 41.49855 | AB10: 44.023262 | AC10: 87.261963 | AD10: 67.397316 | AE10: 100.150002 | AF10: 2913.97998
A11: 2018-10-01 | B11: 22.488001 | C11: 34.17503 | D11: 343.231384 | E11: 108.91185 | F11: 39.926407 | G11: 92.224701 | H11: 112.570404 | I11: 8.335199 | J11: 59.574284 | K11: 54.528999 | L11: 158.875977 | M11: 89.620087 | N11: 41.578896 | O11: 125.183022 | P11: 95.097313 | Q11: 41.920845 | R11: 27.23856 | S11: 160.157715 | T11: 163.876511 | U11: 101.885658 | V11: 301.779999 | W11: 35.004623 | X11: 79.419197 | Y11: 52.625969 | Z11: 76.171936 | AA11: 42.028603 | AB11: 47.074127 | AC11: 93.181007 | AD11: 63.164169 | AE11: 79.900497 | AF11: 2711.73999
A12: 2018-11-01 | B12: 23.365334 | C12: 35.445271 | D12: 335.39679 | E12: 122.570396 | F12: 42.058987 | G12: 98.246368 | H12: 113.217415 | I12: 8.360549 | J12: 44.238323 | K12: 55.482498 | L12: 162.886765 | M12: 96.483482 | N12: 43.734119 | O12: 131.362183 | P12: 97.669395 | Q12: 44.127201 | R12: 27.147032 | S12: 170.6689 | T12: 179.087601 | U12: 105.777557 | V12: 286.130005 | W12: 37.581608 | X12: 85.388275 | Y12: 42.940453 | Z12: 76.155701 | AA12: 43.687183 | AB12: 50.271927 | AC12: 90.737213 | AD12: 63.021496 | AE12: 84.508499 | AF12: 2760.169922
A13: 2018-12-01 | B13: 22.186666 | C13: 31.242273 | D13: 313.372223 | E13: 114.800789 | F13: 38.070114 | G13: 90.740547 | H13: 107.492332 | I13: 6.796833 | J13: 44.651218 | K13: 52.248001 | L13: 156.136948 | M13: 89.377625 | N13: 41.885185 | O13: 116.135078 | P13: 85.749489 | Q13: 41.784622 | R13: 25.282837 | S13: 161.755737 | T13: 165.238434 | U13: 97.305809 | V13: 267.660004 | W13: 35.758076 | X13: 83.048256 | Y13: 38.061707 | Z13: 66.89959 | AA13: 37.337315 | AB13: 46.870453 | AC13: 86.555756 | AD13: 54.603764 | AE13: 75.098503 | AF13: 2506.850098
A14: 2019-01-01 | B14: 20.468 | C14: 36.82785 | D14: 374.70575 | E14: 120.302773 | F14: 41.549408 | G14: 95.628296 | H14: 110.173538 | I14: 7.818578 | J14: 60.01062 | K14: 56.294498 | L14: 166.778091 | M14: 105.693176 | N14: 42.05476 | O14: 119.761772 | P14: 90.91449 | Q14: 42.472946 | R14: 26.045918 | S14: 162.858002 | T14: 173.702423 | U14: 100.045731 | V14: 339.5 | W14: 34.775043 | X14: 87.159088 | Y14: 40.160961 | Z14: 75.58709 | AA14: 42.060497 | AB14: 45.903358 | AC14: 89.531982 | AD14: 58.679619 | AE14: 85.936501 | AF14: 2704.100098
A15: 2019-02-01 | B15: 21.325333 | C15: 37.262012 | D15: 427.507721 | E15: 124.87738 | F15: 45.837757 | G15: 99.740341 | H15: 111.477608 | I15: 7.927672 | J15: 63.823898 | K15: 56.327499 | L15: 168.24115 | M15: 108.610313 | N15: 47.266983 | O15: 122.9655 | P15: 92.41436 | Q15: 40.010868 | R15: 26.965294 | S15: 167.467331 | T15: 179.850967 | U15: 107.32666 | V15: 358.100006 | W15: 35.822468 | X15: 89.742584 | Y15: 41.780041 | Z15: 78.6306 | AA15: 43.930817 | AB15: 47.949299 | AC15: 92.484283 | AD15: 63.283981 | AE15: 81.991501 | AF15: 2784.48999
A16: 2019-03-01 | B16: 18.657333 | C16: 35.01572 | D16: 372.486572 | E16: 123.195274 | F16: 47.803375 | G16: 103.775894 | H16: 109.689461 | I16: 7.936712 | J16: 61.366764 | K16: 58.844501 | L16: 174.375046 | M16: 112.238251 | N16: 48.231232 | O16: 126.634598 | P16: 89.642639 | Q16: 41.352219 | R16: 22.726513 | S16: 174.088989 | T16: 181.434967 | U16: 113.471077 | V16: 356.559998 | W16: 35.09528 | X16: 94.75103 | Y16: 46.03035 | Z16: 76.182968 | AA16: 40.427773 | AB16: 49.811001 | AC16: 91.120247 | AD16: 65.419655 | AE16: 89.037498 | AF16: 2834.399902
A17: 2019-04-01 | B17: 15.912667 | C17: 37.126617 | D17: 368.843872 | E17: 126.768677 | F17: 49.538784 | G17: 101.147369 | H17: 135.316269 | I17: 9.446315 | J17: 62.538654 | K17: 59.948002 | L17: 186.485428 | M17: 111.578011 | N17: 45.842121 | O17: 127.911903 | P17: 102.766251 | Q17: 43.671574 | R17: 23.816648 | S17: 181.120392 | T17: 165.481461 | U17: 125.651413 | V17: 370.540009 | W17: 33.558254 | X17: 96.963852 | Y17: 48.628117 | Z17: 87.65023 | AA17: 44.485321 | AB17: 48.17675 | AC17: 96.598236 | AD17: 64.998634 | AE17: 96.325996 | AF17: 2945.830078
A18: 2019-05-01 | B18: 12.344 | C18: 31.779238 | D18: 333.608917 | E18: 109.59845 | F18: 46.359638 | G18: 95.915604 | H18: 130.445786 | I18: 8.743695 | J18: 58.049644 | K18: 55.325001 | L18: 173.805923 | M18: 101.01442 | N18: 39.555 | O18: 118.807686 | P18: 94.549217 | Q18: 43.733891 | R18: 21.072832 | S18: 181.7621 | T18: 139.494827 | U18: 118.993584 | V18: 343.279999 | W18: 34.310242 | X18: 94.374474 | Y18: 42.424503 | Z18: 76.597565 | AA18: 40.618923 | AB18: 46.256042 | AC18: 95.283195 | AD18: 57.298874 | AE18: 88.753502 | AF18: 2752.060059
A19: 2019-06-01 | B19: 14.897333 | C19: 36.726276 | D19: 357.526611 | E19: 124.673836 | F19: 48.765388 | G19: 105.868866 | H19: 137.954041 | I19: 9.395799 | J19: 64.567932 | K19: 54.139999 | L19: 190.394562 | M19: 110.995804 | N19: 43.258259 | O19: 127.035889 | P19: 99.760292 | Q19: 45.327297 | R19: 20.167814 | S19: 191.485107 | T19: 152.656799 | U19: 129.36116 | V19: 367.320007 | W19: 36.115173 | X19: 100.555466 | Y19: 48.146408 | Z19: 84.616234 | AA19: 43.048286 | AB19: 48.622044 | AC19: 104.335258 | AD19: 62.754597 | AE19: 94.681503 | AF19: 2941.76001
A20: 2019-07-01 | B20: 16.107332 | C20: 38.863605 | D20: 335.10318 | E20: 120.447601 | F20: 49.362366 | G20: 104.73735 | H20: 141.283356 | I20: 8.752878 | J20: 64.322304 | K20: 60.91 | L20: 197.003403 | M20: 119.318466 | N20: 45.680069 | O20: 118.772369 | P20: 103.507996 | Q20: 47.215199 | R20: 19.656881 | S20: 194.306793 | T20: 153.872147 | U20: 131.591843 | V20: 322.98999 | W20: 32.380268 | X20: 108.249573 | Y20: 51.824543 | Z20: 84.875954 | AA20: 45.151184 | AB20: 47.039036 | AC20: 104.231384 | AD20: 60.895603 | AE20: 93.338997 | AF20: 2980.379883
A21: 2019-08-01 | B21: 15.040667 | C21: 35.732552 | D21: 357.605164 | E21: 109.695099 | F21: 41.971748 | G21: 100.151741 | H21: 136.442535 | I21: 8.547943 | J21: 50.780777 | K21: 59.526501 | L21: 210.113007 | M21: 109.088173 | N21: 42.842579 | O21: 117.07589 | P21: 98.723221 | Q21: 49.377251 | R21: 21.997871 | S21: 200.992111 | T21: 142.423294 | U21: 133.127274 | V21: 293.75 | W21: 29.637451 | X21: 110.971977 | Y21: 50.778519 | Z21: 67.098152 | AA21: 41.751488 | AB21: 50.01968 | AC21: 107.895248 | AD21: 56.080322 | AE21: 88.814499 | AF21: 2926.459961
A22: 2019-09-01 | B22: 16.058001 | C22: 36.108276 | D22: 376.025269 | E22: 116.433517 | F22: 44.303009 | G22: 101.937653 | H22: 129.543869 | I22: 8.538619 | J22: 55.027885 | K22: 61.056999 | L22: 213.9021 | M22: 118.427803 | N22: 46.880062 | O22: 118.89048 | P22: 105.759491 | Q22: 48.838978 | R22: 24.116098 | S22: 199.032883 | T22: 146.108337 | U22: 134.704147 | V22: 267.619995 | W22: 30.234486 | X22: 114.802391 | Y22: 54.690399 | Z22: 76.288719 | AA22: 47.218811 | AB22: 51.911751 | AC22: 112.620697 | AD22: 58.543617 | AE22: 86.795502 | AF22: 2976.73999
A23: 2019-10-01 | B23: 20.994667 | C23: 36.159313 | D23: 335.939117 | E23: 127.025085 | F23: 42.599392 | G23: 99.823265 | H23: 129.146255 | I23: 8.007287 | J23: 61.495762 | K23: 62.939999 | L23: 217.582779 | M23: 108.907631 | N23: 51.428879 | O23: 121.334801 | P23: 112.256561 | Q23: 49.187023 | R23: 23.049675 | S23: 182.337906 | T23: 146.63269 | U23: 138.909073 | V23: 287.410004 | W23: 32.287712 | X23: 114.922394 | Y23: 60.743771 | Z23: 77.297989 | AA23: 46.935699 | AB23: 52.006359 | AC23: 111.273186 | AD23: 56.023109 | AE23: 88.833 | AF23: 3037.560059
A24: 2019-11-01 | B24: 21.996 | C24: 35.030548 | D24: 361.902222 | E24: 134.461868 | F24: 40.934494 | G24: 100.674179 | H24: 150.677261 | I24: 8.584004 | J24: 69.444618 | K24: 65.204498 | L24: 204.532288 | M24: 109.493996 | N24: 52.811714 | O24: 126.342964 | P24: 119.351639 | Q24: 48.256241 | R24: 25.575415 | S24: 180.279984 | T24: 150.880905 | U24: 146.669891 | V24: 314.660004 | W24: 32.413929 | X24: 113.380714 | Y24: 65.258781 | Z24: 79.401344 | AA24: 48.413219 | AB24: 52.347633 | AC24: 113.009758 | AD24: 56.487415 | AE24: 90.040001 | AF24: 3140.97998
A25: 2019-12-01 | B25: 27.888666 | C25: 35.614391 | D25: 323.833313 | E25: 137.202576 | F25: 43.32859 | G25: 104.599945 | H25: 143.768646 | I25: 8.811396 | J25: 68.766777 | K25: 66.969498 | L25: 202.556625 | M25: 110.449379 | N25: 54.748947 | O25: 134.972214 | P25: 126.272141 | Q25: 50.392021 | R25: 27.280224 | S25: 184.355392 | T25: 158.148407 | U25: 153.313171 | V25: 323.570007 | W25: 33.287937 | X25: 116.018776 | Y25: 71.92057 | Z25: 80.349442 | AA25: 50.237976 | AB25: 53.355652 | AC25: 112.772522 | AD25: 58.553165 | AE25: 92.391998 | AF25: 3230.780029
A26: 2020-01-01 | B26: 43.371334 | C26: 32.839405 | D26: 316.387573 | E26: 122.031136 | F26: 41.530766 | G26: 92.995079 | H26: 138.309998 | I26: 8.356612 | J26: 76.785194 | K26: 71.639 | L26: 212.925507 | M26: 118.433975 | N26: 58.481209 | O26: 137.748093 | P26: 119.895157 | Q26: 53.168816 | R26: 25.275845 | S26: 199.618027 | T26: 142.227768 | U26: 165.494629 | V26: 345.089996 | W26: 31.639687 | X26: 115.758682 | Y26: 75.805008 | Z26: 78.052261 | AA26: 46.000935 | AB26: 51.652443 | AC26: 109.13192 | AD26: 52.125591 | AE26: 100.435997 | AF26: 3225.52002
A27: 2020-02-01 | B27: 44.532665 | C27: 29.997065 | D27: 273.482849 | E27: 116.235207 | F27: 36.33923 | G27: 81.016991 | H27: 117.650002 | I27: 6.706483 | J27: 67.102249 | K27: 66.962502 | L27: 203.348038 | M27: 107.244011 | N27: 50.788006 | O27: 124.433167 | P27: 105.850685 | Q27: 48.698631 | R27: 26.470943 | S27: 181.146103 | T27: 133.783417 | U27: 157.503265 | V27: 369.029999 | W27: 28.684202 | X27: 105.803467 | Y27: 66.951157 | Z27: 64.672112 | AA27: 41.15733 | AB27: 47.554001 | AC27: 102.640633 | AD27: 43.163883 | AE27: 94.1875 | AF27: 2954.219971
A28: 2020-03-01 | B28: 34.933334 | C28: 20.437344 | D28: 149.139999 | E28: 108.563538 | F28: 35.77499 | G28: 63.628727 | H28: 96.599998 | I28: 4.654067 | J28: 48.969837 | K28: 58.0975 | L28: 174.288971 | M28: 92.36116 | N28: 49.751133 | O28: 122.107147 | P28: 82.075081 | Q28: 40.286312 | R28: 28.502529 | S28: 155.224564 | T28: 123.479965 | U28: 153.741684 | V28: 375.5 | W28: 28.014734 | X28: 102.785316 | Y28: 62.42836 | Z28: 45.212296 | AA28: 27.738869 | AB28: 47.176441 | AC28: 108.302658 | AD28: 32.318462 | AE28: 97.486 | AF28: 2584.590088
A29: 2020-04-01 | B29: 52.125332 | C29: 22.189878 | D29: 141.020004 | E29: 108.881615 | F29: 38.568905 | G29: 80.787216 | H29: 108.150002 | I29: 4.904598 | J29: 41.980564 | K29: 67.334999 | L29: 206.578568 | M29: 104.542198 | N29: 55.138081 | O29: 139.715958 | P29: 87.298767 | Q29: 42.145809 | R29: 29.912516 | S29: 176.074463 | T29: 137.419067 | U29: 174.700699 | V29: 419.850006 | W29: 32.924179 | X29: 110.139145 | Y29: 72.128075 | Z29: 54.083069 | AA29: 33.567268 | AB29: 50.442715 | AC29: 116.374199 | AD29: 39.553307 | AE29: 123.699997 | AF29: 2912.429932
A30: 2020-05-01 | B30: 55.666668 | C30: 25.763752 | D30: 145.850006 | E30: 113.421844 | F30: 43.932323 | G30: 80.523788 | H30: 117.300003 | I30: 5.502014 | J30: 40.560623 | K30: 71.676003 | L30: 233.501541 | M30: 103.992691 | N30: 57.849937 | O30: 138.514725 | P30: 89.633667 | Q30: 42.871357 | R30: 30.868277 | S30: 174.910416 | T30: 141.507629 | U30: 178.639023 | V30: 419.730011 | W30: 32.778267 | X30: 109.039406 | Y30: 78.054474 | Z30: 52.860413 | AA30: 33.08157 | AB30: 50.92308 | AC30: 118.777306 | AD30: 38.702148 | AE30: 122.1185 | AF30: 3044.310059
A31: 2020-06-01 | B31: 71.987335 | C31: 25.186357 | D31: 183.300003 | E31: 119.436157 | F31: 42.848255 | G31: 79.505142 | H31: 111.510002 | I31: 5.858537 | J31: 42.16576 | K31: 70.902496 | L31: 235.409164 | M31: 101.902565 | N31: 55.310871 | O31: 131.861252 | P31: 86.640045 | Q31: 41.034534 | R31: 32.183235 | S31: 174.328308 | T31: 142.500061 | U31: 198.941772 | V31: 455.040009 | W31: 28.345936 | X31: 112.472755 | Y31: 89.801079 | Z31: 53.835236 | AA31: 34.261574 | AB31: 48.92627 | AC31: 115.184013 | AD31: 38.801819 | AE31: 137.940994 | AF31: 3100.290039
A32: 2020-07-01 | B32: 95.384003 | C32: 24.778198 | D32: 158 | E32: 125.4599 | F32: 43.270855 | G32: 74.791687 | H32: 116.940002 | I32: 6.369231 | J32: 37.530006 | K32: 74.397499 | L32: 250.975891 | M32: 103.733559 | N32: 44.124817 | O32: 136.671371 | P32: 89.016533 | Q32: 43.779816 | R32: 33.076942 | S32: 183.598953 | T32: 137.457443 | U32: 200.408096 | V32: 488.880005 | W32: 33.356312 | X32: 123.337181 | Y32: 104.630066 | Z32: 56.018696 | AA32: 34.179459 | AB32: 51.011822 | AC32: 124.434875 | AD32: 36.511192 | AE32: 158.233994 | AF32: 3271.120117
A33: 2020-08-01 | B33: 166.106674 | C33: 29.496906 | D33: 171.820007 | E33: 135.369598 | F33: 39.09314 | G33: 74.782768 | H33: 131.869995 | I33: 6.571582 | J33: 39.199368 | K33: 81.476501 | L33: 269.457123 | M33: 104.045738 | N33: 47.101604 | O33: 143.84436 | P33: 93.185776 | Q33: 45.902084 | R33: 33.923122 | S33: 201.781219 | T33: 148.92215 | U33: 220.467468 | V33: 529.559998 | W33: 33.078354 | X33: 130.940323 | Y33: 127.060654 | Z33: 59.908268 | AA33: 35.411232 | AB33: 53.19109 | AC33: 133.522278 | AD33: 34.654392 | AE33: 172.548004 | AF33: 3500.310059
A34: 2020-09-01 | B34: 143.003326 | C34: 29.457088 | D34: 165.259995 | E34: 141.875992 | F34: 36.472736 | G34: 65.077858 | H34: 124.080002 | I34: 6.41741 | J34: 38.519264 | K34: 73.279999 | L34: 262.527863 | M34: 104.006142 | N34: 48.194004 | O34: 140.52594 | P34: 89.539818 | Q34: 45.753799 | R34: 32.408833 | S34: 208.63652 | T34: 147.659637 | U34: 206.105682 | V34: 500.029999 | W34: 32.12426 | X34: 131.565079 | Y34: 114.239182 | Z34: 57.082783 | AA34: 35.104881 | AB34: 53.388527 | AC34: 135.094727 | AD34: 30.374443 | AE34: 157.436493 | AF34: 3363
A35: 2020-10-01 | B35: 129.346664 | C35: 34.374893 | D35: 144.389999 | E35: 149.390732 | F35: 33.241211 | G35: 62.818214 | H35: 121.25 | I35: 7.448436 | J35: 45.952705 | K35: 80.805496 | L35: 253.458801 | M35: 95.449387 | N35: 41.213425 | O35: 129.416382 | P35: 91.186073 | Q35: 44.900291 | R35: 30.784084 | S35: 202.467422 | T35: 147.456802 | U35: 198.40358 | V35: 475.73999 | W35: 31.056372 | X35: 129.776031 | Y35: 107.383438 | Z35: 57.532104 | AA35: 38.859852 | AB35: 51.144939 | AC35: 133.97467 | AD35: 28.861471 | AE35: 151.807495 | AF35: 3269.959961
A36: 2020-11-01 | B36: 189.199997 | C36: 43.643078 | D36: 210.710007 | E36: 166.13266 | F36: 40.201309 | G36: 78.798431 | H36: 148.009995 | I36: 8.749262 | J36: 63.045616 | K36: 87.720001 | L36: 263.627197 | M36: 105.587578 | N36: 45.001549 | O36: 136.56163 | P36: 110.656448 | Q36: 48.20755 | R36: 31.539114 | S36: 206.687881 | T36: 159.228653 | U36: 209.770599 | V36: 490.700012 | W36: 35.344334 | X36: 132.181381 | Y36: 117.435226 | Z36: 67.956551 | AA36: 42.827026 | AB36: 54.791405 | AC36: 147.531433 | AD36: 33.736599 | AE36: 158.401993 | AF36: 3621.629883
A37: 2020-12-01 | B37: 235.223328 | C37: 41.452961 | D37: 214.059998 | E37: 174.200516 | F37: 41.817955 | G37: 77.454048 | H37: 181.179993 | I37: 8.469826 | J37: 66.885323 | K37: 87.632004 | L37: 252.422928 | M37: 109.165283 | N37: 46.70702 | O37: 149.581238 | P37: 119.283279 | Q37: 51.636265 | R37: 30.525229 | S37: 205.18161 | T37: 162.5215 | U37: 218.523483 | V37: 540.72998 | W37: 34.309711 | X37: 132.4384 | Y37: 131.116043 | Z37: 71.193451 | AA37: 44.631554 | AB37: 53.285797 | AC37: 139.188797 | AD37: 37.350471 | AE37: 162.846497 | AF37: 3756.070068
A38: 2021-01-01 | B38: 264.51001 | C38: 50.452354 | D38: 194.190002 | E38: 174.985291 | F38: 41.659092 | G38: 78.141914 | H38: 168.169998 | I38: 10.146446 | J38: 66.203003 | K38: 91.367996 | L38: 258.767914 | M38: 103.294212 | N38: 52.041485 | O38: 155.04628 | P38: 120.785248 | Q38: 45.337093 | R38: 33.158703 | S38: 198.736786 | T38: 163.330414 | U38: 227.896378 | V38: 532.390015 | W38: 33.461521 | X38: 122.034813 | Y38: 130.394699 | Z38: 71.384964 | AA38: 44.678108 | AB38: 49.657833 | AC38: 136.150635 | AD38: 40.630646 | AE38: 160.309998 | AF38: 3714.23999
A39: 2021-02-01 | B39: 225.166672 | C39: 51.099438 | D39: 212.009995 | E39: 207.705154 | F39: 42.270145 | G39: 91.715866 | H39: 189.039993 | I39: 11.273829 | J39: 77.73275 | K39: 101.095497 | L39: 246.843292 | M39: 103.138115 | N39: 56.982189 | O39: 150.607712 | P39: 139.1465 | Q39: 46.128021 | R39: 30.957735 | S39: 197.111282 | T39: 162.772568 | U39: 228.309006 | V39: 538.849976 | W39: 31.554798 | X39: 118.289429 | Y39: 119.821632 | Z39: 79.081551 | AA39: 53.040123 | AB39: 50.693623 | AC39: 125.907127 | AD39: 49.26601 | AE39: 154.6465 | AF39: 3811.149902
A40: 2021-03-01 | B40: 222.643326 | C40: 57.201897 | D40: 254.720001 | E40: 223.089661 | F40: 48.713825 | G40: 97.467613 | H40: 184.520004 | I40: 11.803794 | J40: 81.390022 | K40: 103.125999 | L40: 291.66568 | M40: 117.109627 | N40: 60.365189 | O40: 157.179871 | P40: 143.930634 | Q40: 49.630692 | R40: 34.777023 | S40: 215.641586 | T40: 180.632111 | U40: 232.173126 | V40: 521.659973 | W40: 34.136463 | X40: 129.684586 | Y40: 120.881424 | Z40: 84.267288 | AA40: 54.765373 | AB40: 53.306221 | AC40: 131.634567 | AD40: 51.448074 | AE40: 154.703995 | AF40: 3972.889893
A41: 2021-04-01 | B41: 236.479996 | C41: 56.962978 | D41: 234.309998 | E41: 219.472031 | F41: 47.960175 | G41: 95.86779 | H41: 186.020004 | I41: 11.119657 | J41: 81.388016 | K41: 117.675003 | L41: 311.203949 | M41: 124.684937 | N41: 54.262642 | O41: 155.630539 | P41: 145.424515 | Q41: 51.249561 | R41: 35.308487 | S41: 227.12886 | T41: 184.813263 | U41: 248.332794 | V41: 513.469971 | W41: 36.416634 | X41: 127.759872 | Y41: 130.094742 | Z41: 92.832771 | AA41: 55.69503 | AB41: 52.976204 | AC41: 136.154663 | AD41: 52.747406 | AE41: 173.371002 | AF41: 4181.169922
A42: 2021-05-01 | B42: 208.406662 | C42: 59.043591 | D42: 247.020004 | E42: 232.99939 | F42: 50.192142 | G42: 96.537483 | H42: 178.649994 | I42: 14.000746 | J42: 87.21917 | K42: 117.842499 | L42: 306.627258 | M42: 126.319496 | N42: 53.875927 | O42: 161.866104 | P42: 156.200485 | Q42: 52.493298 | R42: 35.733658 | S42: 225.021896 | T42: 190.344345 | U42: 245.870926 | V42: 502.809998 | W42: 36.492008 | X42: 129.955368 | Y42: 123.31588 | Z42: 98.947006 | AA42: 58.014484 | AB42: 52.341625 | AC42: 138.217758 | AD42: 53.788712 | AE42: 161.153503 | AF42: 4204.109863
A43: 2021-06-01 | B43: 226.566666 | C43: 58.904221 | D43: 239.559998 | E43: 210.335388 | F43: 50.287029 | G43: 98.613609 | H43: 175.770004 | I43: 14.318727 | J43: 83.497154 | K43: 122.0895 | L43: 306.608032 | M43: 130.263474 | N43: 53.277725 | O43: 158.535828 | P43: 147.926331 | Q43: 51.372982 | R43: 37.201645 | S43: 223.459259 | T43: 187.580383 | U43: 267.383209 | V43: 528.210022 | W43: 37.260723 | X43: 130.032471 | Y43: 135.767838 | Z43: 95.815262 | AA43: 52.513683 | AB43: 51.915409 | AC43: 137.773804 | AD43: 58.975861 | AE43: 172.007996 | AF43: 4297.5
A44: 2021-07-01 | B44: 229.066666 | C44: 56.584686 | D44: 226.479996 | E44: 199.820068 | F44: 52.535709 | G44: 95.854988 | H44: 176.020004 | I44: 13.441872 | J44: 80.394577 | K44: 134.726501 | L44: 317.204529 | M44: 125.260529 | N44: 50.981106 | O44: 165.714874 | P44: 144.350372 | Q44: 54.553261 | R44: 39.522499 | S44: 234.797165 | T44: 186.928741 | U44: 281.211304 | V44: 517.570007 | W44: 40.733696 | X44: 137.067505 | Y44: 144.590363 | Z44: 93.767494 | AA44: 51.501255 | AB44: 51.683762 | AC44: 139.2686 | AD44: 53.824352 | AE44: 166.379501 | AF44: 4395.259766
A45: 2021-08-01 | B45: 245.240005 | C45: 48.789852 | D45: 219.5 | E45: 204.895676 | F45: 56.38929 | G45: 91.109795 | H45: 181.300003 | I45: 12.555384 | J45: 81.799156 | K45: 144.697495 | L45: 315.26181 | M45: 124.709572 | N45: 51.303772 | O45: 166.609879 | P45: 152.997086 | Q45: 53.86454 | R45: 44.698288 | S45: 229.718323 | T45: 183.906784 | U45: 297.961029 | V45: 569.190002 | W45: 44.232613 | X45: 138.084717 | Y45: 150.508408 | Z45: 99.003807 | AA45: 53.989742 | AB45: 51.533539 | AC45: 144.690826 | AD45: 50.972797 | AE45: 173.539505 | AF45: 4522.680176
A46: 2021-09-01 | B46: 258.493347 | C46: 52.473236 | D46: 219.940002 | E46: 186.531143 | F46: 52.003887 | G46: 96.80381 | H46: 169.169998 | I46: 13.644223 | J46: 79.952248 | K46: 133.675995 | L46: 317.272156 | M46: 124.87796 | N46: 50.892117 | O46: 156.341415 | P46: 156.574509 | Q46: 50.191299 | R46: 39.452984 | S46: 234.528061 | T46: 166.926117 | U46: 278.792816 | V46: 610.340027 | W46: 41.294655 | X46: 135.573044 | Y46: 140.4785 | Z46: 99.464233 | AA46: 55.950462 | AB46: 50.60593 | AC46: 136.672668 | AD46: 55.82539 | AE46: 164.251999 | AF46: 4307.540039
A47: 2021-10-01 | B47: 371.333344 | C47: 54.185513 | D47: 207.029999 | E47: 198.230011 | F47: 53.475243 | G47: 109.24662 | H47: 169.070007 | I47: 16.457863 | J47: 81.44339 | K47: 148.046005 | L47: 361.123535 | M47: 112.446785 | N47: 46.803936 | O47: 157.677322 | P47: 162.50499 | Q47: 54.328884 | R47: 39.052895 | S47: 238.846863 | T47: 170.028275 | U47: 327.941498 | V47: 690.309998 | W47: 41.995541 | X47: 138.66658 | Y47: 148.718552 | Z47: 104.049812 | AA47: 60.548603 | AB47: 49.650219 | AC47: 146.517624 | AD47: 61.18774 | AE47: 168.621506 | AF47: 4605.379883
A48: 2021-11-01 | B48: 381.58667 | C48: 57.610058 | D48: 197.850006 | E48: 188.909393 | F48: 52.749573 | G48: 107.700813 | H48: 144.899994 | I48: 18.491007 | J48: 73.770462 | K48: 141.897507 | L48: 389.169006 | M48: 110.097717 | N48: 46.994976 | O48: 150.949295 | P48: 152.841248 | Q48: 50.550823 | R48: 40.526402 | S48: 237.922791 | T48: 161.80661 | U48: 326.922943 | V48: 641.900024 | W48: 51.587112 | X48: 141.077682 | Y48: 164.106674 | Z48: 96.684532 | AA48: 56.580082 | AB48: 47.661037 | AC48: 137.898376 | AD48: 56.793461 | AE48: 175.3535 | AF48: 4567
A49: 2021-12-01 | B49: 352.26001 | C49: 58.366646 | D49: 201.320007 | E49: 201.991882 | F49: 60.954414 | G49: 113.269814 | H49: 154.889999 | I49: 20.114227 | J49: 73.366615 | K49: 144.852005 | L49: 403.157806 | M49: 127.344406 | N49: 49.533981 | O49: 166.690445 | P49: 152.379364 | Q49: 57.508587 | R49: 44.386772 | S49: 262.197693 | T49: 170.404694 | U49: 333.197876 | V49: 602.440002 | W49: 57.192596 | X49: 159.617447 | Y49: 176.54538 | Z49: 103.455292 | AA49: 56.272282 | AB49: 49.263325 | AC49: 141.879501 | AD49: 58.855206 | AE49: 166.716995 | AF49: 4766.180176
A50: 2022-01-01 | B50: 312.23999 | C50: 52.493149 | D50: 200.240005 | E50: 196.930832 | F50: 53.547924 | G50: 126.763733 | H50: 142.970001 | I50: 19.659065 | J50: 73.438637 | K50: 135.303497 | L50: 357.973877 | M50: 127.258659 | N50: 46.956291 | O50: 167.879196 | P50: 142.996979 | Q50: 59.256866 | R50: 42.749001 | S50: 253.766541 | T50: 159.266937 | U50: 308.093109 | V50: 427.140015 | W50: 51.03265 | X50: 156.563248 | Y50: 173.771454 | Z50: 106.638084 | AA50: 60.376167 | AB50: 50.467419 | AC50: 137.646317 | AD50: 73.061638 | AE50: 149.573502 | AF50: 4515.549805
A51: 2022-02-01 | B51: 290.143341 | C51: 46.510143 | D51: 205.339996 | E51: 184.161194 | F51: 53.960228 | G51: 138.99321 | H51: 148.460007 | I51: 17.09301 | J51: 74.23925 | K51: 135.057007 | L51: 308.079132 | M51: 116.721252 | N51: 45.879051 | O51: 160.356857 | P51: 137.271301 | Q51: 60.451523 | R51: 45.897068 | S51: 239.408096 | T51: 142.6035 | U51: 296.016296 | V51: 394.519989 | W51: 45.809181 | X51: 152.935043 | Y51: 164.167221 | Z51: 106.724121 | AA51: 59.799511 | AB51: 51.497646 | AC51: 133.068268 | AD51: 75.427765 | AE51: 153.563004 | AF51: 4373.939941
A52: 2022-03-01 | B52: 359.200012 | C52: 43.54353 | D52: 191.5 | E52: 218.758926 | F52: 53.950546 | G52: 158.818619 | H52: 137.160004 | I52: 16.460295 | J52: 71.122299 | K52: 139.067505 | L52: 291.98407 | M52: 125.368553 | N52: 48.031162 | O52: 173.80127 | P52: 131.966309 | Q52: 60.218414 | R52: 56.519657 | S52: 243.208588 | T52: 144.204758 | U52: 306.079468 | V52: 374.589996 | W52: 50.52282 | X52: 149.903595 | Y52: 173.823639 | Z52: 114.088554 | AA52: 54.896545 | AB52: 48.878143 | AC52: 146.615311 | AD52: 80.319305 | AE52: 162.997498 | AF52: 4530.410156
A53: 2022-04-01 | B53: 290.253326 | C53: 37.739716 | D53: 148.839996 | E53: 206.702713 | F53: 47.39056 | G53: 152.810379 | H53: 111.629997 | I53: 13.783428 | J53: 57.999233 | K53: 114.109497 | L53: 294.796204 | M53: 127.480202 | N53: 42.245323 | O53: 176.968796 | P53: 115.547958 | Q53: 63.233784 | R53: 53.160202 | S53: 245.057617 | T53: 139.691101 | U53: 275.512238 | V53: 190.360001 | W53: 47.887863 | X53: 157.506714 | Y53: 156.940002 | Z53: 104.762207 | AA53: 46.81213 | AB53: 44.425953 | AC53: 151.20488 | AD53: 82.906181 | AE53: 124.281502 | AF53: 4131.930176
A54: 2022-05-01 | B54: 252.753326 | C54: 38.506256 | D54: 131.399994 | E54: 212.93222 | F54: 43.886589 | G54: 170.357208 | H54: 110.440002 | I54: 13.404792 | J54: 60.908924 | K54: 113.762001 | L54: 297.102356 | M54: 133.873016 | N54: 43.049717 | O54: 176.056778 | P54: 128.95575 | Q54: 62.029987 | R54: 52.184872 | S54: 248.057404 | T54: 144.601868 | U54: 269.903137 | V54: 197.440002 | W54: 51.762226 | X54: 145.890808 | Y54: 148.169678 | Z54: 102.580261 | AA54: 48.157921 | AB54: 49.813232 | AC54: 127.129128 | AD54: 93.360626 | AE54: 120.209503 | AF54: 4132.149902
A55: 2022-06-01 | B55: 224.473328 | C55: 31.61734 | D55: 136.720001 | E55: 176.343597 | F55: 41.538826 | G55: 142.375 | H55: 94.400002 | I55: 10.906091 | J55: 49.534695 | K55: 108.962997 | L55: 269.153595 | M55: 137.79039 | N55: 36.542561 | O55: 175.194458 | P55: 109.821594 | Q55: 61.569996 | R55: 46.809402 | S55: 242.81517 | T55: 126.612892 | U55: 255.56575 | V55: 174.869995 | W55: 51.584187 | X55: 141.855804 | Y55: 136.304245 | Z55: 93.51226 | AA55: 46.396751 | AB55: 49.28878 | AC55: 120.59816 | AD55: 84.138573 | AE55: 106.209999 | AF55: 3785.379883
A56: 2022-07-01 | B56: 297.149994 | C56: 36.097126 | D56: 159.309998 | E56: 195.570129 | F56: 44.198322 | G56: 161.059387 | H56: 106.099998 | I56: 14.394472 | J56: 57.569984 | K56: 116.32 | L56: 297.191254 | M56: 127.640793 | N56: 35.468067 | O56: 172.243469 | P56: 112.503502 | Q56: 63.256905 | R56: 45.929188 | S56: 260.469269 | T56: 140.143967 | U56: 279.358093 | V56: 224.899994 | W56: 49.69516 | X56: 137.041458 | Y56: 162.015808 | Z56: 97.724609 | AA56: 49.370525 | AB56: 44.860077 | AC56: 130.983612 | AD56: 95.230637 | AE56: 134.949997 | AF56: 4130.290039
A57: 2022-08-01 | B57: 275.609985 | C57: 38.038368 | D57: 160.25 | E57: 183.482285 | F57: 43.957218 | G57: 155.434418 | H57: 112.080002 | I57: 14.933408 | J57: 57.203892 | K57: 108.220001 | L57: 284.827209 | M57: 125.35714 | N57: 31.179859 | O57: 159.235397 | P57: 111.894966 | Q57: 60.831913 | R57: 47.412689 | S57: 249.501404 | T57: 121.662254 | U57: 260.182922 | V57: 223.559998 | W57: 44.845638 | X57: 136.967941 | Y57: 156.741913 | Z57: 93.580673 | AA57: 45.819603 | AB57: 41.117058 | AC57: 131.479568 | AD57: 93.914124 | AE57: 126.769997 | AF57: 3955
A58: 2022-09-01 | B58: 265.25 | C58: 32.018795 | D58: 121.080002 | E58: 162.989395 | F58: 39.31773 | G58: 142.567184 | H58: 94.330002 | I58: 11.084138 | J58: 48.222939 | K58: 95.650002 | L58: 274.28067 | M58: 117.410133 | N58: 25.426588 | O58: 162.312347 | P58: 102.813889 | Q58: 55.222878 | R58: 43.508492 | S58: 229.447769 | T58: 109.2211 | U58: 232.245483 | V58: 235.440002 | W58: 43.388126 | X58: 125.360321 | Y58: 137.971115 | Z58: 84.820938 | AA58: 43.031105 | AB58: 37.340702 | AC58: 129.212891 | AD58: 86.612747 | AE58: 113 | AF58: 3585.620117
A59: 2022-10-01 | B59: 227.539993 | C59: 39.162907 | D59: 142.509995 | E59: 215.021255 | F59: 44.655106 | G59: 179.511398 | H59: 106.540001 | I59: 13.231689 | J59: 60.682976 | K59: 94.510002 | L59: 294.349274 | M59: 136.660614 | N59: 28.05114 | O59: 172.854309 | P59: 123.848915 | Q59: 59.42852 | R59: 47.028954 | S59: 271.132996 | T59: 124.334145 | U59: 231.477661 | V59: 291.880005 | W59: 46.154419 | X59: 133.720993 | Y59: 153.086044 | Z59: 104.013931 | AA59: 44.266495 | AB59: 36.750645 | AC59: 141.795456 | AD59: 109.925072 | AE59: 102.440002 | AF59: 3871.97998
A60: 2022-11-01 | B60: 194.699997 | C60: 40.470001 | D60: 178.880005 | E60: 236.410004 | F60: 49.32589 | G60: 181.902893 | H60: 97.870003 | I60: 13.756207 | J60: 67.046852 | K60: 100.989998 | L60: 322.041718 | M60: 147.145599 | N60: 29.669285 | O60: 176.858459 | P60: 137.166794 | Q60: 63.162045 | R60: 48.918461 | S60: 271.262268 | T60: 124.512054 | U60: 254.422989 | V60: 305.529999 | W60: 49.703999 | X60: 149.160004 | Y60: 147.784851 | Z60: 106.822174 | AA60: 46.262886 | AB60: 38.98 | AC60: 151.847565 | AD60: 110.450844 | AE60: 96.540001 | AF60: 4080.110107
A61: 2022-12-01 | B61: 123.18 | C61: 33.565353 | D61: 190.490005 | E61: 239.559998 | F61: 47.262379 | G61: 179.490005 | H61: 86.879997 | I61: 11.63 | J61: 65.346703 | K61: 88.230003 | L61: 315.859985 | M61: 140.889999 | N61: 26.43 | O61: 176.649994 | P61: 133.11673 | Q61: 63.610001 | R61: 44.580002 | S61: 263.529999 | T61: 119.919998 | U61: 239.820007 | V61: 294.880005 | W61: 51.240002 | X61: 151.559998 | Y61: 129.929993 | Z61: 99.459999 | AA61: 43.029999 | AB61: 39.400002 | AC61: 141.257477 | AD61: 110.300003 | AE61: 84 | AF61: 3839.5
A62: 2023-01-01 | B62: 113.059998 | C62: 35.91 | D62: 213 | E62: 248.860001 | F62: 47.936989 | G62: 176.559998 | H62: 93.919998 | I62: 12.58 | J62: 71.940002 | K62: 87.339996 | L62: 317.529999 | M62: 143.699997 | N62: 28.73 | O62: 180.25 | P62: 136.928558 | Q62: 63.400002 | R62: 45.740002 | S62: 269.470001 | T62: 126.720001 | U62: 224.929993 | V62: 315.549988 | W62: 50.919998 | X62: 153.919998 | Y62: 129.619995 | Z62: 101.010002 | AA62: 45.860001 | AB62: 42.189999 | AC62: 146.779999 | AD62: 110.529999 | AE62: 86.080002 | AF62: 3895.080078

Sheet Returns & Stand Dev
B1: _1 | D1: _2 | F1: _3 | H1: _4 | J1: _5 | L1: _6 | N1: _7 | P1: _8 | R1: _9 | T1: _10 | V1: _11 | X1: _12 | Z1: _13 | AB1: _14 | AD1: _15 | AF1: _16 | AH1: _17 | AJ1: _18 | AL1: _19 | AN1: _20 | AP1: _21 | AR1: _22 | AT1: _23 | AV1: _24 | AX1: _25 | AZ1: _26 | BB1: _27 | BD1: _28 | BF1: _29 | BH1: _30 | BK1: Adj Close
B2: ='price data'!B1 -> TSLA | D2: ='price data'!C1 -> GM | F2: ='price data'!D1 -> BA | H2: ='price data'!E1 -> CAT | J2: ='price data'!F1 -> CSCO | L2: ='price data'!G1 -> CVX | N2: ='price data'!H1 -> DIS | P2: ='price data'!I1 -> F | R2: ='price data'!J1 -> GE | T2: ='price data'!K1 -> GOOGL | V2: ='price data'!L1 -> HD | X2: ='price data'!M1 -> IBM | Z2: ='price data'!N1 -> INTC | AB2: ='price data'!O1 -> JNJ | AD2: ='price data'!P1 -> JPM | AF2: ='price data'!Q1 -> KO | AH2: ='price data'!R1 -> KR | AJ2: ='price data'!S1 -> MCD | AL2: ='price data'!T1 -> MMM | AN2: ='price data'!U1 -> MSFT | AP2: ='price data'!V1 -> NFLX | AR2: ='price data'!W1 -> PFE | AT2: ='price data'!X1 -> PG | AV2: ='price data'!Y1 -> AAPL | AX2: ='price data'!Z1 -> PRU | AZ2: ='price data'!AA1 -> TFC | BB2: ='price data'!AB1 -> VZ | BD2: ='price data'!AC1 -> WMT | BF2: ='price data'!AD1 -> XOM | BH2: ='price data'!AE1 -> AMZN | BJ2: GSPC
A3: Date | B3: Adj. Close* | C3: Return | D3: Adj. Close* | E3: Return | F3: Adj. Close* | G3: Return | H3: Adj. Close* | I3: Return | J3: Adj. Close* | K3: Return | L3: Adj. Close* | M3: Return | N3: Adj. Close* | O3: Return | P3: Adj. Close* | Q3: Return | R3: Adj. Close* | S3: Return | T3: Adj. Close* | U3: Return | V3: Adj. Close* | W3: Return | X3: Adj. Close* | Y3: Return | Z3: Adj. Close* | AA3: Return | AB3: Adj. Close* | AC3: Return | AD3: Adj. Close* | AE3: Return | AF3: Adj. Close* | AG3: Return | AH3: Adj. Close* | AI3: Return | AJ3: Adj. Close* | AK3: Return | AL3: Adj. Close* | AM3: Return | AN3: Adj. Close* | AO3: Return | AP3: Adj. Close* | AQ3: Return | AR3: Adj. Close* | AS3: Return | AT3: Adj. Close* | AU3: Return | AV3: Adj. Close* | AW3: Return | AX3: Adj. Close* | AY3: Return | AZ3: Adj. Close* | BA3: Return | BB3: Adj. Close* | BC3: Return | BD3: Adj. Close* | BE3: Return | BF3: Adj. Close* | BG3: Return | BH3: Adj. Close* | BI3: Return | BK3: Adj Close | BL3: Return
A4: ='price data'!A2 -> 2018-01-01 | B4: ='price data'!B2 -> 23.620667 | D4: ='price data'!C2 -> 38.454296 | F4: ='price data'!D2 -> 337.712097 | H4: ='price data'!E2 -> 143.845703 | J4: ='price data'!F2 -> 35.420872 | L4: ='price data'!G2 -> 100.669159 | N4: ='price data'!H2 -> 105.682121 | P4: ='price data'!I2 -> 9.092909 | R4: ='price data'!J2 -> 92.87751 | T4: ='price data'!K2 -> 59.111 | V4: ='price data'!L2 -> 178.528229 | X4: ='price data'!M2 -> 123.145607 | Z4: ='price data'!N2 -> 41.910477 | AB4: ='price data'!O2 -> 121.076355 | AD4: ='price data'!P2 -> 99.328957 | AF4: ='price data'!Q2 -> 40.592464 | AH4: ='price data'!R2 -> 27.394543 | AJ4: ='price data'!S2 -> 152.047729 | AL4: ='price data'!T2 -> 211.622681 | AN4: ='price data'!U2 -> 89.472321 | AP4: ='price data'!V2 -> 270.299988 | AR4: ='price data'!W2 -> 29.296535 | AT4: ='price data'!X2 -> 75.351097 | AV4: ='price data'!Y2 -> 39.802284 | AX4: ='price data'!Z2 -> 94.011444 | AZ4: ='price data'!AA2 -> 46.173386 | BB4: ='price data'!AB2 -> 43.035156 | BD4: ='price data'!AC2 -> 97.285042 | BF4: ='price data'!AD2 -> 67.124474 | BH4: ='price data'!AE2 -> 72.544502 | BK4: ='price data'!AF2 -> 2823.810059
A5: ='price data'!A3 -> 2018-02-01 | B5: ='price data'!B3 -> 22.870667 | C5: =LN(B5/B4) -> -0.0322668767 | D5: ='price data'!C3 -> 35.679714 | E5: =LN(D5/D4) -> -0.07488812724 | F5: ='price data'!D3 -> 345.183533 | G5: =LN(F5/F4) -> 0.02188250681 | H5: ='price data'!E3 -> 137.277939 | I5: =LN(H5/H4) -> -0.04673359564 | J5: ='price data'!F3 -> 38.468391 | K5: =LN(J5/J4) -> 0.08253564018 | L5: ='price data'!G3 -> 89.883453 | M5: =LN(L5/L4) -> -0.1133256222 | N5: ='price data'!H3 -> 100.323616 | O5: =LN(N5/N4) -> -0.05203460914 | P5: ='price data'!I3 -> 9.011086 | Q5: =LN(P5/P4) -> -0.009039281897 | R5: ='price data'!J3 -> 81.045258 | S5: =LN(R5/R4) -> -0.1362737889 | T5: ='price data'!K3 -> 55.195999 | U5: =LN(T5/T4) -> -0.06852656353 | V5: ='price data'!L3 -> 161.972855 | W5: =LN(V5/V4) -> -0.09731797491 | X5: ='price data'!M3 -> 117.225304 | Y5: =LN(X5/X4) -> -0.04926969371 | Z5: ='price data'!N3 -> 42.911655 | AA5: =LN(Z5/Z4) -> 0.02360762395 | AB5: ='price data'!O3 -> 113.795471 | AC5: =LN(AB5/AB4) -> -0.06201865663 | AD5: ='price data'!P3 -> 99.699631 | AE5: =LN(AD5/AD4) -> 0.003724836038 | AF5: ='price data'!Q3 -> 36.865021 | AG5: =LN(AF5/AF4) -> -0.09631927253 | AH5: ='price data'!R3 -> 24.471016 | AI5: =LN(AH5/AH4) -> -0.1128544362 | AJ5: ='price data'!S3 -> 140.142654 | AK5: =LN(AJ5/AJ4) -> -0.08153361717 | AL5: ='price data'!T3 -> 198.959091 | AM5: =LN(AL5/AL4) -> -0.0617056516 | AN5: ='price data'!U3 -> 88.304611 | AO5: =LN(AN5/AN4) -> -0.01313698893 | AP5: ='price data'!V3 -> 291.380005 | AQ5: =LN(AP5/AP4) -> 0.0750958655 | AR5: ='price data'!W3 -> 28.719152 | AS5: =LN(AR5/AR4) -> -0.01990503236 | AT5: ='price data'!X3 -> 69.048775 | AU5: =LN(AT5/AT4) -> -0.08734534476 | AV5: ='price data'!Y3 -> 42.343563 | AW5: =LN(AV5/AV4) -> 0.06189211669 | AX5: ='price data'!Z3 -> 84.121315 | AY5: =LN(AX5/AX4) -> -0.1111565364 | AZ5: ='price data'!AA3 -> 45.470615 | BA5: =LN(AZ5/AZ4) -> -0.01533727835 | BB5: ='price data'!AB3 -> 38.429806 | BC5: =LN(BB5/BB4) -> -0.1131840066 | BD5: ='price data'!AC3 -> 82.144737 | BE5: =LN(BD5/BD4) -> -0.1691624699 | BF5: ='price data'!AD3 -> 58.23605 | BG5: =LN(BF5/BF4) -> -0.1420441379 | BH5: ='price data'!AE3 -> 75.622498 | BI5: =LN(BH5/BH4) -> 0.04155363727 | BK5: ='price data'!AF3 -> 2713.830078
A6: ='price data'!A4 -> 2018-03-01 | B6: ='price data'!B4 -> 17.742001 | C6: =LN(B6/B5) -> -0.253920406 | D6: ='price data'!C4 -> 32.950459 | E6: -0.07957710094 | F6: ='price data'!D4 -> 314.009735 | G6: -0.09465226668 | H6: ='price data'!E4 -> 130.841476 | I6: -0.04802113895 | J6: ='price data'!F4 -> 36.844788 | K6: -0.04312272072 | L6: ='price data'!G4 -> 92.497757 | M6: 0.02867053111 | N6: ='price data'!H4 -> 97.678406 | O6: -0.02672060981 | P6: ='price data'!I4 -> 9.410258 | Q6: 0.04334477376 | R6: ='price data'!J4 -> 78.067421 | S6: -0.03743491425 | T6: ='price data'!K4 -> 51.856998 | U6: -0.06240057695 | V6: ='price data'!L4 -> 158.391586 | W6: -0.02235840018 | X6: ='price data'!M4 -> 116.556267 | Y6: -0.005723623326 | Z6: ='price data'!N4 -> 45.648212 | AA6: 0.06182097134 | AB6: ='price data'!O4 -> 112.998688 | AC6: -0.007026514984 | AD6: ='price data'!P4 -> 94.926132 | AE6: -0.04906294461 | AF6: ='price data'!Q4 -> 37.044144 | AG6: 0.004847121482 | AH6: ='price data'!R4 -> 21.698078 | AI6: -0.1202657116 | AJ6: ='price data'!S4 -> 139.813293 | AK6: -0.002352949851 | AL6: ='price data'!T4 -> 186.544281 | AM6: -0.06443058819 | AN6: ='price data'!U4 -> 86.354073 | AO6: -0.02233635397 | AP6: ='price data'!V4 -> 295.350006 | AQ6: 0.01353283968 | AR6: ='price data'!W4 -> 28.330627 | AS6: -0.01362077167 | AT6: ='price data'!X4 -> 69.717117 | AU6: 0.009632729748 | AV6: ='price data'!Y4 -> 40.048107 | AW6: -0.05573500779 | AX6: ='price data'!Z4 -> 82.609093 | AY6: -0.01814022393 | AZ6: ='price data'!AA4 -> 43.80661 | BA6: -0.03728157391 | BB6: ='price data'!AB4 -> 38.494198 | BC6: 0.001674172214 | BD6: ='price data'!AC4 -> 81.195602 | BE6: -0.01162169356 | BF6: ='price data'!AD4 -> 57.953823 | BG6: -0.004858040512 | BH6: ='price data'!AE4 -> 72.366997 | BI6: -0.04400347858 | BK6: ='price data'!AF4 -> 2640.870117 | BL6: =LN(BK6/BK5) -> -0.02725249739
A7: ='price data'!A5 -> 2018-04-01 | B7: ='price data'!B5 -> 19.593332 | C7: 0.09925453781 | D7: ='price data'!C5 -> 33.651997 | E7: 0.02106720949 | F7: ='price data'!D5 -> 319.449493 | G7: 0.01717519133 | H7: ='price data'!E5 -> 128.16037 | I7: -0.02070411323 | J7: ='price data'!F5 -> 38.047462 | K7: 0.03212021001 | L7: ='price data'!G5 -> 101.476608 | M7: 0.09264391329 | N7: ='price data'!H5 -> 97.571426 | O7: -0.001095826917 | P7: ='price data'!I5 -> 9.546145 | Q7: 0.01433703721 | R7: ='price data'!J5 -> 81.484322 | S7: 0.04283780851 | T7: ='price data'!K5 -> 50.929001 | U7: -0.01805736627 | V7: ='price data'!L5 -> 165.157593 | W7: 0.04182976788 | X7: ='price data'!M5 -> 110.121857 | Y7: -0.0567865914 | Z7: ='price data'!N5 -> 45.245029 | AA7: -0.008871630937 | AB7: ='price data'!O5 -> 111.534958 | AC7: -0.0130381416 | AD7: ='price data'!P5 -> 93.898941 | AE7: -0.01087992306 | AF7: ='price data'!Q5 -> 37.181835 | AG7: 0.003710052997 | AH7: ='price data'!R5 -> 22.831018 | AI7: 0.0508963648 | AJ7: ='price data'!S5 -> 149.70163 | AK7: 0.06833626869 | AL7: ='price data'!T5 -> 165.18924 | AM7: -0.1215769167 | AN7: ='price data'!U5 -> 88.482864 | AO7: 0.02435293417 | AP7: ='price data'!V5 -> 312.459991 | AQ7: 0.05631531811 | AR7: ='price data'!W5 -> 29.224691 | AS7: 0.03107048855 | AT7: ='price data'!X5 -> 63.614216 | AU7: -0.0916089013 | AV7: ='price data'!Y5 -> 39.446606 | AW7: -0.01513339584 | AX7: ='price data'!Z5 -> 84.818916 | AY7: 0.02639882475 | AZ7: ='price data'!AA5 -> 44.483242 | BA7: 0.01532781474 | BB7: ='price data'!AB5 -> 39.72583 | BC7: 0.03149407721 | BD7: ='price data'!AC5 -> 81.211487 | BE7: 0.0001956195404 | BF7: ='price data'!AD5 -> 60.392845 | BG7: 0.04122409938 | BH7: ='price data'!AE5 -> 78.306503 | BI7: 0.07888029899 | BK7: ='price data'!AF5 -> 2648.050049 | BL7: 0.002715085948
A8: ='price data'!A6 -> 2018-05-01 | B8: ='price data'!B6 -> 18.982 | C8: -0.03169814256 | D8: ='price data'!C6 -> 39.111057 | E8: 0.1503328142 | F8: ='price data'!D6 -> 337.262665 | G8: 0.05426286818 | H8: ='price data'!E6 -> 135.54216 | I8: 0.0560003655 | J8: ='price data'!F6 -> 36.985111 | K8: -0.02831895412 | L8: ='price data'!G6 -> 100.819649 | M8: -0.006495041671 | N8: ='price data'!H6 -> 96.735062 | O8: -0.008608762105 | P8: ='price data'!I6 -> 9.94104 | Q8: 0.04053423489 | R8: ='price data'!J6 -> 81.542229 | S8: 0.0007103996506 | T8: ='price data'!K6 -> 55 | U8: 0.07690065969 | V8: ='price data'!L6 -> 166.721619 | W8: 0.009425342245 | X8: ='price data'!M6 -> 107.349052 | Y8: -0.0255018502 | Z8: ='price data'!N6 -> 48.382912 | AA8: 0.06705388577 | AB8: ='price data'!O6 -> 105.477226 | AC8: -0.05584300411 | AD8: ='price data'!P6 -> 92.839493 | AE8: -0.01134698781 | AF8: ='price data'!Q6 -> 37.001133 | AG8: -0.00487180177 | AH8: ='price data'!R6 -> 22.051558 | AI8: -0.03473679301 | AJ8: ='price data'!S6 -> 143.058746 | AK8: -0.04538882272 | AL8: ='price data'!T6 -> 167.6026 | AM8: 0.01450397526 | AN8: ='price data'!U6 -> 93.516327 | AO8: 0.05532713522 | AP8: ='price data'!V6 -> 351.600006 | AQ8: 0.1180177507 | AR8: ='price data'!W6 -> 28.68187 | AS8: -0.01874871833 | AT8: ='price data'!X6 -> 64.939529 | AU8: 0.02061954642 | AV8: ='price data'!Y6 -> 44.604774 | AW8: 0.122892883 | AX8: ='price data'!Z6 -> 77.25605 | AY8: -0.0933933541 | AZ8: ='price data'!AA6 -> 44.230495 | BA8: -0.00569805066 | BB8: ='price data'!AB6 -> 38.856289 | BC8: -0.02213166311 | BD8: ='price data'!AC6 -> 75.776581 | BE8: -0.06926741555 | BF8: ='price data'!AD6 -> 63.103729 | BG8: 0.04390922681 | BH8: ='price data'!AE6 -> 81.481003 | BI8: 0.03973924914 | BK8: ='price data'!AF6 -> 2705.27002 | BL8: 0.02137819129
A9: ='price data'!A7 -> 2018-06-01 | B9: ='price data'!B7 -> 22.863333 | C9: 0.1860432866 | D9: ='price data'!C7 -> 36.088421 | E9: -0.08043314877 | F9: ='price data'!D7 -> 322.919922 | G9: -0.04345767515 | H9: ='price data'!E7 -> 121.051964 | I9: -0.1130628279 | J9: ='price data'!F7 -> 37.262211 | K9: 0.007464276935 | L9: ='price data'!G7 -> 103.44149 | M9: 0.02567287165 | N9: ='price data'!H7 -> 101.928238 | O9: 0.0522930946 | P9: ='price data'!I7 -> 9.527905 | Q9: -0.04244678157 | R9: ='price data'!J7 -> 78.820297 | S9: -0.03395049346 | T9: ='price data'!K7 -> 56.459499 | U9: 0.02619036401 | V9: ='price data'!L7 -> 175.339035 | W9: 0.05039597314 | X9: ='price data'!M7 -> 107.304085 | Y9: -0.0004189736175 | Z9: ='price data'!N7 -> 43.822376 | AA9: -0.09900213902 | AB9: ='price data'!O7 -> 107.787384 | AC9: 0.02166555777 | AD9: ='price data'!P7 -> 90.401611 | AE9: -0.02661003235 | AF9: ='price data'!Q7 -> 37.741169 | AG9: 0.01980298076 | AH9: ='price data'!R7 -> 25.917583 | AI9: 0.1615383617 | AJ9: ='price data'!S7 -> 140.090439 | AK9: -0.02096715019 | AL9: ='price data'!T7 -> 168.312515 | AM9: 0.004226758638 | AN9: ='price data'!U7 -> 93.703117 | AO9: 0.001995413062 | AP9: ='price data'!V7 -> 391.429993 | AQ9: 0.1073124992 | AR9: ='price data'!W7 -> 29.243975 | AS9: 0.01940835372 | AT9: ='price data'!X7 -> 69.27948 | AU9: 0.06469224465 | AV9: ='price data'!Y7 -> 44.355061 | AW9: -0.005614076417 | AX9: ='price data'!Z7 -> 75.260765 | AY9: -0.02616627999 | AZ9: ='price data'!AA7 -> 42.78714 | BA9: -0.03317689317 | BB9: ='price data'!AB7 -> 41.008175 | BC9: 0.05390149434 | BD9: ='price data'!AC7 -> 79.127121 | BE9: 0.04326639866 | BF9: ='price data'!AD7 -> 64.912445 | BG9: 0.0282594974 | BH9: ='price data'!AE7 -> 84.989998 | BI9: 0.04216367793 | BK9: ='price data'!AF7 -> 2718.370117 | BL9: 0.004830749144
A10: ='price data'!A8 -> 2018-07-01 | B10: ='price data'!B8 -> 19.875999 | C10: -0.1400215248 | D10: ='price data'!C8 -> 35.026638 | E10: -0.02986320824 | F10: ='price data'!D8 -> 342.929718 | G10: 0.0601211494 | H10: ='price data'!E8 -> 128.305969 | I10: 0.05819788636 | J10: ='price data'!F8 -> 36.62141 | K10: -0.01734666113 | L10: ='price data'!G8 -> 103.310577 | M10: -0.001266376868 | N10: ='price data'!H8 -> 110.437668 | O10: 0.08018225464 | P10: ='price data'!I8 -> 8.64139 | Q10: -0.09766141188 | R10: ='price data'!J8 -> 79.636757 | S10: 0.01030521778 | T10: ='price data'!K8 -> 61.361 | U10: 0.08325090494 | V10: ='price data'!L8 -> 177.513931 | W10: 0.01232764779 | X10: ='price data'!M8 -> 111.321259 | Y10: 0.03675352659 | Z10: ='price data'!N8 -> 42.403053 | AA10: -0.03292419015 | AB10: ='price data'!O8 -> 117.718681 | AC10: 0.08813709866 | AD10: ='price data'!P8 -> 99.728058 | AE10: 0.09818497361 | AF10: ='price data'!Q8 -> 40.482071 | AG10: 0.07010767018 | AH10: ='price data'!R8 -> 26.418629 | AI10: 0.01914778656 | AJ10: ='price data'!S8 -> 141.745132 | AK10: 0.01174239296 | AL10: ='price data'!T8 -> 181.659821 | AM10: 0.07631336302 | AN10: ='price data'!U8 -> 100.801407 | AO10: 0.07302085944 | AP10: ='price data'!V8 -> 337.450012 | AQ10: -0.1483892953 | AR10: ='price data'!W8 -> 32.186115 | AS10: 0.09586157882 | AT10: ='price data'!X8 -> 71.782272 | AU10: 0.03548877904 | AV10: ='price data'!Y8 -> 45.596256 | AW10: 0.02759879065 | AX10: ='price data'!Z8 -> 81.216599 | AY10: 0.07616069758 | AZ10: ='price data'!AA8 -> 43.100994 | BA10: 0.00730846934 | BB10: ='price data'!AB8 -> 42.092281 | BC10: 0.02609293764 | BD10: ='price data'!AC8 -> 82.434471 | BE10: 0.04094800102 | BF10: ='price data'!AD8 -> 63.955204 | BG10: -0.01485646109 | BH10: ='price data'!AE8 -> 88.872002 | BI10: 0.04466357581 | BK10: ='price data'!AF8 -> 2816.290039 | BL10: 0.03538795078
A11: ='price data'!A9 -> 2018-08-01 | B11: ='price data'!B9 -> 20.110666 | C11: 0.01173739766 | D11: ='price data'!C9 -> 33.308113 | E11: -0.05030785678 | F11: ='price data'!D9 -> 329.926666 | G11: -0.03865511686 | H11: ='price data'!E9 -> 124.648964 | I11: -0.02891629565 | J11: ='price data'!F9 -> 41.689285 | K11: 0.1296110993 | L11: ='price data'!G9 -> 96.920662 | M11: -0.06384703568 | N11: ='price data'!H9 -> 109.815689 | O11: -0.005647865366 | P11: ='price data'!I9 -> 8.274103 | Q11: -0.04343293291 | R11: ='price data'!J9 -> 75.60524 | S11: -0.05195016467 | T11: ='price data'!K9 -> 61.59 | U11: 0.003725065511 | V11: ='price data'!L9 -> 180.434753 | W11: 0.01632014286 | X11: ='price data'!M9 -> 112.51181 | Y11: 0.01063794758 | Z11: ='price data'!N9 -> 42.693977 | AA11: 0.006837492059 | AB11: ='price data'!O9 -> 119.646286 | AC11: 0.01624205459 | AD11: ='price data'!P9 -> 99.947266 | AE11: 0.002195645247 | AF11: ='price data'!Q9 -> 38.693672 | AG11: -0.04518311228 | AH11: ='price data'!R9 -> 28.696096 | AI11: 0.0826916804 | AJ11: ='price data'!S9 -> 145.964935 | AK11: 0.02933582176 | AL11: ='price data'!T9 -> 180.462006 | AM11: -0.006615560175 | AN11: ='price data'!U9 -> 106.74041 | AO11: 0.05724749813 | AP11: ='price data'!V9 -> 367.679993 | AQ11: 0.08579558887 | AR11: ='price data'!W9 -> 33.467747 | AS11: 0.03904705057 | AT11: ='price data'!X9 -> 74.287582 | AU11: 0.03430626702 | AV11: ='price data'!Y9 -> 54.543468 | AW11: 0.1791723539 | AX11: ='price data'!Z9 -> 79.075699 | AY11: -0.0267140386 | AZ11: ='price data'!AA9 -> 43.822033 | BA11: 0.01659066794 | BB11: ='price data'!AB9 -> 44.831333 | BC11: 0.06304291757 | BD11: ='price data'!AC9 -> 88.559547 | BE11: 0.0716714864 | BF11: ='price data'!AD9 -> 62.903782 | BG11: -0.0165766117 | BH11: ='price data'!AE9 -> 100.635498 | BI11: 0.1243079035 | BK11: ='price data'!AF9 -> 2901.52002 | BL11: 0.02981431471
A12: ='price data'!A10 -> 2018-09-01 | B12: ='price data'!B10 -> 17.651333 | C12: -0.1304390165 | D12: ='price data'!C10 -> 31.109125 | E12: -0.06829981644 | F12: ='price data'!D10 -> 359.712982 | G12: 0.08643603571 | H12: ='price data'!E10 -> 136.893906 | I12: 0.0937047184 | J12: ='price data'!F10 -> 42.457268 | K12: 0.01825396994 | L12: ='price data'!G10 -> 101.005272 | M12: 0.0412799872 | N12: ='price data'!H10 -> 114.638885 | O12: 0.04298365144 | P12: ='price data'!I10 -> 8.073361 | Q12: -0.02456064023 | R12: ='price data'!J10 -> 65.964699 | S12: -0.1364058577 | T12: ='price data'!K10 -> 60.354 | U12: -0.02027229432 | V12: ='price data'!L10 -> 187.122818 | W12: 0.03639594882 | X12: ='price data'!M10 -> 117.399757 | Y12: 0.04252664363 | Z12: ='price data'!N10 -> 41.942528 | AA12: -0.01775755618 | AB12: ='price data'!O10 -> 123.555573 | AC12: 0.03215126532 | AD12: ='price data'!P10 -> 98.429459 | AE12: -0.01530256756 | AF12: ='price data'!Q10 -> 40.10009 | AG12: 0.03570250625 | AH12: ='price data'!R10 -> 26.643631 | AI12: -0.07421095046 | AJ12: ='price data'!S10 -> 151.457214 | AK12: 0.03693674759 | AL12: ='price data'!T10 -> 181.490707 | AM12: 0.005684188751 | AN12: ='price data'!U10 -> 109.097122 | AO12: 0.02183870102 | AP12: ='price data'!V10 -> 374.130005 | AQ12: 0.01739036834 | AR12: ='price data'!W10 -> 35.825684 | AS12: 0.0680828674 | AT12: ='price data'!X10 -> 74.538338 | AU12: 0.003369792537 | AV12: ='price data'!Y10 -> 54.280293 | AW12: -0.004836728866 | AX12: ='price data'!Z10 -> 82.296234 | AY12: 0.03991973836 | AZ12: ='price data'!AA10 -> 41.49855 | BA12: -0.05447824056 | BB12: ='price data'!AB10 -> 44.023262 | BC12: -0.01818911624 | BD12: ='price data'!AC10 -> 87.261963 | BE12: -0.01476050978 | BF12: ='price data'!AD10 -> 67.397316 | BG12: 0.06899890608 | BH12: ='price data'!AE10 -> 100.150002 | BI12: -0.004835976165 | BK12: ='price data'!AF10 -> 2913.97998 | BL12: 0.004285092964
A13: ='price data'!A11 -> 2018-10-01 | B13: ='price data'!B11 -> 22.488001 | C13: 0.2421705735 | D13: ='price data'!C11 -> 34.17503 | E13: 0.09399407593 | F13: ='price data'!D11 -> 343.231384 | G13: -0.04690163258 | H13: ='price data'!E11 -> 108.91185 | I13: -0.2286673776 | J13: ='price data'!F11 -> 39.926407 | K13: -0.06146017674 | L13: ='price data'!G11 -> 92.224701 | M13: -0.09094471209 | N13: ='price data'!H11 -> 112.570404 | O13: -0.01820821814 | P13: ='price data'!I11 -> 8.335199 | Q13: 0.03191751477 | R13: ='price data'!J11 -> 59.574284 | S13: -0.1018957309 | T13: ='price data'!K11 -> 54.528999 | U13: -0.1014945735 | V13: ='price data'!L11 -> 158.875977 | W13: -0.163641303 | X13: ='price data'!M11 -> 89.620087 | Y13: -0.2700053574 | Z13: ='price data'!N11 -> 41.578896 | AA13: -0.008707569392 | AB13: ='price data'!O11 -> 125.183022 | AC13: 0.01308580378 | AD13: ='price data'!P11 -> 95.097313 | AE13: -0.03443942465 | AF13: ='price data'!Q11 -> 41.920845 | AG13: 0.04440461855 | AH13: ='price data'!R11 -> 27.23856 | AI13: 0.02208348126 | AJ13: ='price data'!S11 -> 160.157715 | AK13: 0.05585587926 | AL13: ='price data'!T11 -> 163.876511 | AM13: -0.1020912888 | AN13: ='price data'!U11 -> 101.885658 | AO13: -0.06838732853 | AP13: ='price data'!V11 -> 301.779999 | AQ13: -0.2149050722 | AR13: ='price data'!W11 -> 35.004623 | AS13: -0.02318492786 | AT13: ='price data'!X11 -> 79.419197 | AU13: 0.0634265178 | AV13: ='price data'!Y11 -> 52.625969 | AW13: -0.03095152775 | AX13: ='price data'!Z11 -> 76.171936 | AY13: -0.07733224633 | AZ13: ='price data'!AA11 -> 42.028603 | BA13: 0.01269192343 | BB13: ='price data'!AB11 -> 47.074127 | BC13: 0.06700535346 | BD13: ='price data'!AC11 -> 93.181007 | BE13: 0.06562924994 | BF13: ='price data'!AD11 -> 63.164169 | BG13: -0.06486800099 | BH13: ='price data'!AE11 -> 79.900497 | BI13: -0.2258870091 | BK13: ='price data'!AF11 -> 2711.73999 | BL13: -0.07192934588
A14: ='price data'!A12 -> 2018-11-01 | B14: ='price data'!B12 -> 23.365334 | C14: 0.03827159286 | D14: ='price data'!C12 -> 35.445271 | E14: 0.03649458448 | F14: ='price data'!D12 -> 335.39679 | G14: -0.02309052997 | H14: ='price data'!E12 -> 122.570396 | I14: 0.1181466867 | J14: ='price data'!F12 -> 42.058987 | K14: 0.05203515079 | L14: ='price data'!G12 -> 98.246368 | M14: 0.06325028174 | N14: ='price data'!H12 -> 113.217415 | O14: 0.005731157454 | P14: ='price data'!I12 -> 8.360549 | Q14: 0.003036703654 | R14: ='price data'!J12 -> 44.238323 | S14: -0.2976325548 | T14: ='price data'!K12 -> 55.482498 | U14: 0.01733496777 | V14: ='price data'!L12 -> 162.886765 | W14: 0.02493138716 | X14: ='price data'!M12 -> 96.483482 | Y14: 0.07379234259 | Z14: ='price data'!N12 -> 43.734119 | AA14: 0.05053582177 | AB14: ='price data'!O12 -> 131.362183 | AC14: 0.04818142158 | AD14: ='price data'!P12 -> 97.669395 | AE14: 0.02668754043 | AF14: ='price data'!Q12 -> 44.127201 | AG14: 0.05129319778 | AH14: ='price data'!R12 -> 27.147032 | AI14: -0.003365894644 | AJ14: ='price data'!S12 -> 170.6689 | AK14: 0.06356637374 | AL14: ='price data'!T12 -> 179.087601 | AM14: 0.08876191471 | AN14: ='price data'!U12 -> 105.777557 | AO14: 0.03748718577 | AP14: ='price data'!V12 -> 286.130005 | AQ14: -0.0532520013 | AR14: ='price data'!W12 -> 37.581608 | AS14: 0.07103464331 | AT14: ='price data'!X12 -> 85.388275 | AU14: 0.07246868144 | AV14: ='price data'!Y12 -> 42.940453 | AW14: -0.2033953631 | AX14: ='price data'!Z12 -> 76.155701 | AY14: -0.0002131589563 | AZ14: ='price data'!AA12 -> 43.687183 | BA14: 0.03870435359 | BB14: ='price data'!AB12 -> 50.271927 | BC14: 0.06572328048 | BD14: ='price data'!AC12 -> 90.737213 | BE14: -0.02657635373 | BF14: ='price data'!AD12 -> 63.021496 | BG14: -0.002261319632 | BH14: ='price data'!AE12 -> 84.508499 | BI14: 0.05607003616 | BK14: ='price data'!AF12 -> 2760.169922 | BL14: 0.01770175219
A15: ='price data'!A13 -> 2018-12-01 | B15: ='price data'!B13 -> 22.186666 | C15: -0.05176199314 | D15: ='price data'!C13 -> 31.242273 | E15: -0.1262177633 | F15: ='price data'!D13 -> 313.372223 | G15: -0.06792258383 | H15: ='price data'!E13 -> 114.800789 | I15: -0.06548716947 | J15: ='price data'!F13 -> 38.070114 | K15: -0.09964352047 | L15: ='price data'!G13 -> 90.740547 | M15: -0.07947398071 | N15: ='price data'!H13 -> 107.492332 | O15: -0.0518904819 | P15: ='price data'!I13 -> 6.796833 | Q15: -0.2070673264 | R15: ='price data'!J13 -> 44.651218 | S15: 0.009290136162 | T15: ='price data'!K13 -> 52.248001 | U15: -0.06006598793 | V15: ='price data'!L13 -> 156.136948 | W15: -0.0423217722 | X15: ='price data'!M13 -> 89.377625 | Y15: -0.0765014515 | Z15: ='price data'!N13 -> 41.885185 | AA15: -0.04319636817 | AB15: ='price data'!O13 -> 116.135078 | AC15: -0.1232042849 | AD15: ='price data'!P13 -> 85.749489 | AE15: -0.1301581283 | AF15: ='price data'!Q13 -> 41.784622 | AG15: -0.05454801793 | AH15: ='price data'!R13 -> 25.282837 | AI15: -0.07114193572 | AJ15: ='price data'!S13 -> 161.755737 | AK15: -0.05363802116 | AL15: ='price data'!T13 -> 165.238434 | AM15: -0.08048559183 | AN15: ='price data'!U13 -> 97.305809 | AO15: -0.08347968091 | AP15: ='price data'!V13 -> 267.660004 | AQ15: -0.06672873716 | AR15: ='price data'!W13 -> 35.758076 | AS15: -0.04973863606 | AT15: ='price data'!X13 -> 83.048256 | AU15: -0.02778695985 | AV15: ='price data'!Y13 -> 38.061707 | AW15: -0.1206056309 | AX15: ='price data'!Z13 -> 66.89959 | AY15: -0.1295871034 | AZ15: ='price data'!AA13 -> 37.337315 | BA15: -0.1570615352 | BB15: ='price data'!AB13 -> 46.870453 | BC15: -0.07005933305 | BD15: ='price data'!AC13 -> 86.555756 | BE15: -0.04717877531 | BF15: ='price data'!AD13 -> 54.603764 | BG15: -0.1433730564 | BH15: ='price data'!AE13 -> 75.098503 | BI15: -0.118051484 | BK15: ='price data'!AF13 -> 2506.850098 | BL15: -0.09626521977
A16: ='price data'!A14 -> 2019-01-01 | B16: ='price data'!B14 -> 20.468 | C16: -0.08062878685 | D16: ='price data'!C14 -> 36.82785 | E16: 0.1644822708 | F16: ='price data'!D14 -> 374.70575 | G16: 0.1787493564 | H16: ='price data'!E14 -> 120.302773 | I16: 0.04681331674 | J16: ='price data'!F14 -> 41.549408 | K16: 0.08745370843 | L16: ='price data'!G14 -> 95.628296 | M16: 0.0524644571 | N16: ='price data'!H14 -> 110.173538 | O16: 0.02463722605 | P16: ='price data'!I14 -> 7.818578 | Q16: 0.1400459282 | R16: ='price data'!J14 -> 60.01062 | S16: 0.2956399608 | T16: ='price data'!K14 -> 56.294498 | U16: 0.07459517216 | V16: ='price data'!L14 -> 166.778091 | W16: 0.06593063844 | X16: ='price data'!M14 -> 105.693176 | Y16: 0.1676699595 | Z16: ='price data'!N14 -> 42.05476 | AA16: 0.004040394134 | AB16: ='price data'!O14 -> 119.761772 | AC16: 0.0307505571 | AD16: ='price data'!P14 -> 90.91449 | AE16: 0.05848926758 | AF16: ='price data'!Q14 -> 42.472946 | AG16: 0.01633893143 | AH16: ='price data'!R14 -> 26.045918 | AI16: 0.02973527118 | AJ16: ='price data'!S14 -> 162.858002 | AK16: 0.006791266691 | AL16: ='price data'!T14 -> 173.702423 | AM16: 0.04995413713 | AN16: ='price data'!U14 -> 100.045731 | AO16: 0.02776870209 | AP16: ='price data'!V14 -> 339.5 | AQ16: 0.2377564137 | AR16: ='price data'!W14 -> 34.775043 | AS16: -0.0278761714 | AT16: ='price data'!X14 -> 87.159088 | AU16: 0.04831321007 | AV16: ='price data'!Y14 -> 40.160961 | AW16: 0.05368669328 | AX16: ='price data'!Z14 -> 75.58709 | AY16: 0.1220926628 | AZ16: ='price data'!AA14 -> 42.060497 | BA16: 0.1191157579 | BB16: ='price data'!AB14 -> 45.903358 | BC16: -0.02084920349 | BD16: ='price data'!AC14 -> 89.531982 | BE16: 0.03380711791 | BF16: ='price data'!AD14 -> 58.679619 | BG16: 0.07198964231 | BH16: ='price data'!AE14 -> 85.936501 | BI16: 0.1348080379 | BK16: ='price data'!AF14 -> 2704.100098 | BL16: 0.07574215198
A17: ='price data'!A15 -> 2019-02-01 | B17: ='price data'!B15 -> 21.325333 | C17: 0.04103301779 | D17: ='price data'!C15 -> 37.262012 | E17: 0.01172001021 | F17: ='price data'!D15 -> 427.507721 | G17: 0.1318312977 | H17: ='price data'!E15 -> 124.87738 | I17: 0.03732062242 | J17: ='price data'!F15 -> 45.837757 | K17: 0.09822486684 | L17: ='price data'!G15 -> 99.740341 | M17: 0.04210145947 | N17: ='price data'!H15 -> 111.477608 | O17: 0.01176700478 | P17: ='price data'!I15 -> 7.927672 | Q17: 0.01385672723 | R17: ='price data'!J15 -> 63.823898 | S17: 0.06160615046 | T17: ='price data'!K15 -> 56.327499 | U17: 0.0005860489393 | V17: ='price data'!L15 -> 168.24115 | W17: 0.008734234467 | X17: ='price data'!M15 -> 108.610313 | Y17: 0.02722603544 | Z17: ='price data'!N15 -> 47.266983 | AA17: 0.1168394393 | AB17: ='price data'!O15 -> 122.9655 | AC17: 0.02639929196 | AD17: ='price data'!P15 -> 92.41436 | AE17: 0.01636298341 | AF17: ='price data'!Q15 -> 40.010868 | AG17: -0.05971619132 | AH17: ='price data'!R15 -> 26.965294 | AI17: 0.03468957449 | AJ17: ='price data'!S15 -> 167.467331 | AK17: 0.02790962568 | AL17: ='price data'!T15 -> 179.850967 | AM17: 0.03478492434 | AN17: ='price data'!U15 -> 107.32666 | AO17: 0.07024968958 | AP17: ='price data'!V15 -> 358.100006 | AQ17: 0.05333834676 | AR17: ='price data'!W15 -> 35.822468 | AS17: 0.02967531999 | AT17: ='price data'!X15 -> 89.742584 | AU17: 0.02921034792 | AV17: ='price data'!Y15 -> 41.780041 | AW17: 0.03952333308 | AX17: ='price data'!Z15 -> 78.6306 | AY17: 0.03947543524 | AZ17: ='price data'!AA15 -> 43.930817 | BA17: 0.04350706893 | BB17: ='price data'!AB15 -> 47.949299 | BC17: 0.0436059084 | BD17: ='price data'!AC15 -> 92.484283 | BE17: 0.03244281434 | BF17: ='price data'!AD15 -> 63.283981 | BG17: 0.07553977194 | BH17: ='price data'!AE15 -> 81.991501 | BI17: -0.04699306751 | BK17: ='price data'!AF15 -> 2784.48999 | BL17: 0.02929555315
A18: ='price data'!A16 -> 2019-03-01 | B18: ='price data'!B16 -> 18.657333 | C18: -0.1336564496 | D18: ='price data'!C16 -> 35.01572 | E18: -0.06217725913 | F18: ='price data'!D16 -> 372.486572 | G18: -0.1377713602 | H18: ='price data'!E16 -> 123.195274 | I18: -0.01356160587 | J18: ='price data'!F16 -> 47.803375 | K18: 0.04198810355 | L18: ='price data'!G16 -> 103.775894 | M18: 0.03966348969 | N18: ='price data'!H16 -> 109.689461 | O18: -0.01617045406 | P18: ='price data'!I16 -> 7.936712 | Q18: 0.001139659879 | R18: ='price data'!J16 -> 61.366764 | S18: -0.03925931135 | T18: ='price data'!K16 -> 58.844501 | U18: 0.04371553554 | V18: ='price data'!L16 -> 174.375046 | W18: 0.03581004953 | X18: ='price data'!M16 -> 112.238251 | Y18: 0.03285748683 | Z18: ='price data'!N16 -> 48.231232 | AA18: 0.02019476009 | AB18: ='price data'!O16 -> 126.634598 | AC18: 0.02940193009 | AD18: ='price data'!P16 -> 89.642639 | AE18: -0.03045128935 | AF18: ='price data'!Q16 -> 41.352219 | AG18: 0.03297496666 | AH18: ='price data'!R16 -> 22.726513 | AI18: -0.1710184152 | AJ18: ='price data'!S16 -> 174.088989 | AK18: 0.03877830608 | AL18: ='price data'!T16 -> 181.434967 | AM18: 0.008768734127 | AN18: ='price data'!U16 -> 113.471077 | AO18: 0.05567089522 | AP18: ='price data'!V16 -> 356.559998 | AQ18: -0.00430977073 | AR18: ='price data'!W16 -> 35.09528 | AS18: -0.02050864582 | AT18: ='price data'!X16 -> 94.75103 | AU18: 0.05430732019 | AV18: ='price data'!Y16 -> 46.03035 | AW18: 0.09688222408 | AX18: ='price data'!Z16 -> 76.182968 | AY18: -0.031623016 | AZ18: ='price data'!AA16 -> 40.427773 | BA18: -0.08309905631 | BB18: ='price data'!AB16 -> 49.811001 | BC18: 0.03809168142 | BD18: ='price data'!AC16 -> 91.120247 | BE18: -0.01485868672 | BF18: ='price data'!AD16 -> 65.419655 | BG18: 0.03319051613 | BH18: ='price data'!AE16 -> 89.037498 | BI18: 0.08244201129 | BK18: ='price data'!AF16 -> 2834.399902 | BL18: 0.01776551085
A19: ='price data'!A17 -> 2019-04-01 | B19: ='price data'!B17 -> 15.912667 | C19: -0.1591238004 | D19: ='price data'!C17 -> 37.126617 | E19: 0.05853704822 | F19: ='price data'!D17 -> 368.843872 | G19: -0.009827545455 | H19: ='price data'!E17 -> 126.768677 | I19: 0.0285932947 | J19: ='price data'!F17 -> 49.538784 | K19: 0.03565963424 | L19: ='price data'!G17 -> 101.147369 | M19: -0.02565515629 | N19: ='price data'!H17 -> 135.316269 | O19: 0.2099614803 | P19: ='price data'!I17 -> 9.446315 | Q19: 0.1741256347 | R19: ='price data'!J17 -> 62.538654 | S19: 0.01891644391 | T19: ='price data'!K17 -> 59.948002 | U19: 0.01857916476 | V19: ='price data'!L17 -> 186.485428 | W19: 0.06714468561 | X19: ='price data'!M17 -> 111.578011 | Y19: -0.00589985651 | Z19: ='price data'!N17 -> 45.842121 | AA19: -0.05080343705 | AB19: ='price data'!O17 -> 127.911903 | AC19: 0.01003601083 | AD19: ='price data'!P17 -> 102.766251 | AE19: 0.136625913 | AF19: ='price data'!Q17 -> 43.671574 | AG19: 0.05457132602 | AH19: ='price data'!R17 -> 23.816648 | AI19: 0.04685261544 | AJ19: ='price data'!S17 -> 181.120392 | AK19: 0.03959535981 | AL19: ='price data'!T17 -> 165.481461 | AM19: -0.09203811054 | AN19: ='price data'!U17 -> 125.651413 | AO19: 0.1019635332 | AP19: ='price data'!V17 -> 370.540009 | AQ19: 0.03845890238 | AR19: ='price data'!W17 -> 33.558254 | AS19: -0.04478379447 | AT19: ='price data'!X17 -> 96.963852 | AU19: 0.02308553464 | AV19: ='price data'!Y17 -> 48.628117 | AW19: 0.05490094117 | AX19: ='price data'!Z17 -> 87.65023 | AY19: 0.1402163148 | AZ19: ='price data'!AA17 -> 44.485321 | BA19: 0.09564227031 | BB19: ='price data'!AB17 -> 48.17675 | BC19: -0.03335932371 | BD19: ='price data'!AC17 -> 96.598236 | BE19: 0.05838045034 | BF19: ='price data'!AD17 -> 64.998634 | BG19: -0.00645649419 | BH19: ='price data'!AE17 -> 96.325996 | BI19: 0.07868062361 | BK19: ='price data'!AF17 -> 2945.830078 | BL19: 0.0385603975
A20: ='price data'!A18 -> 2019-05-01 | B20: ='price data'!B18 -> 12.344 | C20: -0.2539453437 | D20: ='price data'!C18 -> 31.779238 | E20: -0.1555209683 | F20: ='price data'!D18 -> 333.608917 | G20: -0.1004040436 | H20: ='price data'!E18 -> 109.59845 | I20: -0.1455407526 | J20: ='price data'!F18 -> 46.359638 | K20: -0.06632666795 | L20: ='price data'!G18 -> 95.915604 | M20: -0.05310987259 | N20: ='price data'!H18 -> 130.445786 | O20: -0.03665706435 | P20: ='price data'!I18 -> 8.743695 | Q20: -0.07729184916 | R20: ='price data'!J18 -> 58.049644 | S20: -0.07448625409 | T20: ='price data'!K18 -> 55.325001 | U20: -0.08025264913 | V20: ='price data'!L18 -> 173.805923 | W20: -0.07041381033 | X20: ='price data'!M18 -> 101.01442 | Y20: -0.09946071756 | Z20: ='price data'!N18 -> 39.555 | AA20: -0.1475112325 | AB20: ='price data'!O18 -> 118.807686 | AC20: -0.07383566734 | AD20: ='price data'!P18 -> 94.549217 | AE20: -0.08333648772 | AF20: ='price data'!Q18 -> 43.733891 | AG20: 0.001425929387 | AH20: ='price data'!R18 -> 21.072832 | AI20: -0.122400204 | AJ20: ='price data'!S18 -> 181.7621 | AK20: 0.00353672984 | AL20: ='price data'!T18 -> 139.494827 | AM20: -0.1708316523 | AN20: ='price data'!U18 -> 118.993584 | AO20: -0.05444193376 | AP20: ='price data'!V18 -> 343.279999 | AQ20: -0.07641498764 | AR20: ='price data'!W18 -> 34.310242 | AS20: 0.02216105616 | AT20: ='price data'!X18 -> 94.374474 | AU20: -0.02706761521 | AV20: ='price data'!Y18 -> 42.424503 | AW20: -0.1364758065 | AX20: ='price data'!Z18 -> 76.597565 | AY20: -0.1347889477 | AZ20: ='price data'!AA18 -> 40.618923 | BA20: -0.09092522782 | BB20: ='price data'!AB18 -> 46.256042 | BC20: -0.04068444627 | BD20: ='price data'!AC18 -> 95.283195 | BE20: -0.01370702295 | BF20: ='price data'!AD18 -> 57.298874 | BG20: -0.1260852817 | BH20: ='price data'!AE18 -> 88.753502 | BI20: -0.08187534372 | BK20: ='price data'!AF18 -> 2752.060059 | BL20: -0.06804089389
A21: ='price data'!A19 -> 2019-06-01 | B21: ='price data'!B19 -> 14.897333 | C21: 0.1880120886 | D21: ='price data'!C19 -> 36.726276 | E21: 0.1446792827 | F21: ='price data'!D19 -> 357.526611 | G21: 0.06924039598 | H21: ='price data'!E19 -> 124.673836 | I21: 0.128877783 | J21: ='price data'!F19 -> 48.765388 | K21: 0.05059158893 | L21: ='price data'!G19 -> 105.868866 | M21: 0.09873253524 | N21: ='price data'!H19 -> 137.954041 | O21: 0.05596288596 | P21: ='price data'!I19 -> 9.395799 | Q21: 0.07192980528 | R21: ='price data'!J19 -> 64.567932 | S21: 0.1064193034 | T21: ='price data'!K19 -> 54.139999 | U21: -0.0216516383 | V21: ='price data'!L19 -> 190.394562 | W21: 0.09115926937 | X21: ='price data'!M19 -> 110.995804 | Y21: 0.09422911987 | Z21: ='price data'!N19 -> 43.258259 | AA21: 0.08949606621 | AB21: ='price data'!O19 -> 127.035889 | AC21: 0.06696353528 | AD21: ='price data'!P19 -> 99.760292 | AE21: 0.05364971465 | AF21: ='price data'!Q19 -> 45.327297 | AG21: 0.03578609451 | AH21: ='price data'!R19 -> 20.167814 | AI21: -0.04389666058 | AJ21: ='price data'!S19 -> 191.485107 | AK21: 0.0521113462 | AL21: ='price data'!T19 -> 152.656799 | AM21: 0.09016473985 | AN21: ='price data'!U19 -> 129.36116 | AO21: 0.08353860676 | AP21: ='price data'!V19 -> 367.320007 | AQ21: 0.06768698403 | AR21: ='price data'!W19 -> 36.115173 | AS21: 0.05126917156 | AT21: ='price data'!X19 -> 100.555466 | AU21: 0.06343884171 | AV21: ='price data'!Y19 -> 48.146408 | AW21: 0.126520439 | AX21: ='price data'!Z19 -> 84.616234 | AY21: 0.09956085173 | AZ21: ='price data'!AA19 -> 43.048286 | BA21: 0.05808837414 | BB21: ='price data'!AB19 -> 48.622044 | BC21: 0.04988491505 | BD21: ='price data'!AC19 -> 104.335258 | BE21: 0.09075589176 | BF21: ='price data'!AD19 -> 62.754597 | BG21: 0.09095086172 | BH21: ='price data'!AE19 -> 94.681503 | BI21: 0.06465577231 | BK21: ='price data'!AF19 -> 2941.76001 | BL21: 0.0666583015
A22: ='price data'!A20 -> 2019-07-01 | B22: ='price data'!B20 -> 16.107332 | C22: 0.07809236841 | D22: ='price data'!C20 -> 38.863605 | E22: 0.05656574238 | F22: ='price data'!D20 -> 335.10318 | G22: -0.06477131132 | H22: ='price data'!E20 -> 120.447601 | I22: -0.03448620323 | J22: ='price data'!F20 -> 49.362366 | K22: 0.01216751308 | L22: ='price data'!G20 -> 104.73735 | M22: -0.01074542726 | N22: ='price data'!H20 -> 141.283356 | O22: 0.02384689736 | P22: ='price data'!I20 -> 8.752878 | Q22: -0.07088011391 | R22: ='price data'!J20 -> 64.322304 | S22: -0.003811433744 | T22: ='price data'!K20 -> 60.91 | U22: 0.1178240991 | V22: ='price data'!L20 -> 197.003403 | W22: 0.03412244168 | X22: ='price data'!M20 -> 119.318466 | Y22: 0.07230370458 | Z22: ='price data'!N20 -> 45.680069 | AA22: 0.05447390117 | AB22: ='price data'!O20 -> 118.772369 | AC22: -0.06726084139 | AD22: ='price data'!P20 -> 103.507996 | AE22: 0.03687863737 | AF22: ='price data'!Q20 -> 47.215199 | AG22: 0.04080641968 | AH22: ='price data'!R20 -> 19.656881 | AI22: -0.02566051218 | AJ22: ='price data'!S20 -> 194.306793 | AK22: 0.01462828181 | AL22: ='price data'!T20 -> 153.872147 | AM22: 0.007929785323 | AN22: ='price data'!U20 -> 131.591843 | AO22: 0.01709685124 | AP22: ='price data'!V20 -> 322.98999 | AQ22: -0.1286120898 | AR22: ='price data'!W20 -> 32.380268 | AS22: -0.1091638568 | AT22: ='price data'!X20 -> 108.249573 | AU22: 0.07372994655 | AV22: ='price data'!Y20 -> 51.824543 | AW22: 0.07361730489 | AX22: ='price data'!Z20 -> 84.875954 | AY22: 0.003064686418 | AZ22: ='price data'!AA20 -> 45.151184 | BA22: 0.04769408731 | BB22: ='price data'!AB20 -> 47.039036 | BC22: -0.03309919813 | BD22: ='price data'!AC20 -> 104.231384 | BE22: -0.0009960749964 | BF22: ='price data'!AD20 -> 60.895603 | BG22: -0.03007086251 | BH22: ='price data'!AE20 -> 93.338997 | BI22: -0.01428066424 | BK22: ='price data'!AF20 -> 2980.379883 | BL22: 0.01304272482
A23: ='price data'!A21 -> 2019-08-01 | B23: ='price data'!B21 -> 15.040667 | C23: -0.06851690611 | D23: ='price data'!C21 -> 35.732552 | E23: -0.0839961145 | F23: ='price data'!D21 -> 357.605164 | G23: 0.06499099951 | H23: ='price data'!E21 -> 109.695099 | I23: -0.09351012199 | J23: ='price data'!F21 -> 41.971748 | K23: -0.1621915867 | L23: ='price data'!G21 -> 100.151741 | M23: -0.0447693419 | N23: ='price data'!H21 -> 136.442535 | O23: -0.03486395385 | P23: ='price data'!I21 -> 8.547943 | Q23: -0.02369189137 | R23: ='price data'!J21 -> 50.780777 | S23: -0.2363885677 | T23: ='price data'!K21 -> 59.526501 | U23: -0.0229757565 | V23: ='price data'!L21 -> 210.113007 | W23: 0.06442451185 | X23: ='price data'!M21 -> 109.088173 | Y23: -0.08963962155 | Z23: ='price data'!N21 -> 42.842579 | AA23: -0.06412963134 | AB23: ='price data'!O21 -> 117.07589 | AC23: -0.0143864387 | AD23: ='price data'!P21 -> 98.723221 | AE23: -0.0473286785 | AF23: ='price data'!Q21 -> 49.377251 | AG23: 0.04477395859 | AH23: ='price data'!R21 -> 21.997871 | AI23: 0.1125182208 | AJ23: ='price data'!S21 -> 200.992111 | AK23: 0.03382734136 | AL23: ='price data'!T21 -> 142.423294 | AM23: -0.07731847625 | AN23: ='price data'!U21 -> 133.127274 | AO23: 0.01160058432 | AP23: ='price data'!V21 -> 293.75 | AQ23: -0.09489226657 | AR23: ='price data'!W21 -> 29.637451 | AS23: -0.08851042685 | AT23: ='price data'!X21 -> 110.971977 | AU23: 0.02483828768 | AV23: ='price data'!Y21 -> 50.778519 | AW23: -0.02039042932 | AX23: ='price data'!Z21 -> 67.098152 | AY23: -0.2350343233 | AZ23: ='price data'!AA21 -> 41.751488 | BA23: -0.07828141184 | BB23: ='price data'!AB21 -> 50.01968 | BC23: 0.0614387178 | BD23: ='price data'!AC21 -> 107.895248 | BE23: 0.03454755653 | BF23: ='price data'!AD21 -> 56.080322 | BG23: -0.08237598727 | BH23: ='price data'!AE21 -> 88.814499 | BI23: -0.04968808111 | BK23: ='price data'!AF21 -> 2926.459961 | BL23: -0.01825728178
A24: ='price data'!A22 -> 2019-09-01 | B24: ='price data'!B22 -> 16.058001 | C24: 0.06544956409 | D24: ='price data'!C22 -> 36.108276 | E24: 0.01045999708 | F24: ='price data'!D22 -> 376.025269 | G24: 0.05022686201 | H24: ='price data'!E22 -> 116.433517 | I24: 0.05961575069 | J24: ='price data'!F22 -> 44.303009 | K24: 0.05405587272 | L24: ='price data'!G22 -> 101.937653 | M24: 0.01767493541 | N24: ='price data'!H22 -> 129.543869 | O24: -0.05188395644 | P24: ='price data'!I22 -> 8.538619 | Q24: -0.001091384086 | R24: ='price data'!J22 -> 55.027885 | S24: 0.08032217929 | T24: ='price data'!K22 -> 61.056999 | U24: 0.02538622937 | V24: ='price data'!L22 -> 213.9021 | W24: 0.01787291916 | X24: ='price data'!M22 -> 118.427803 | Y24: 0.08214703569 | Z24: ='price data'!N22 -> 46.880062 | AA24: 0.09006002328 | AB24: ='price data'!O22 -> 118.89048 | AC24: 0.0153803762 | AD24: ='price data'!P22 -> 105.759491 | AE24: 0.06884737605 | AF24: ='price data'!Q22 -> 48.838978 | AG24: -0.0109610885 | AH24: ='price data'!R22 -> 24.116098 | AI24: 0.09193390836 | AJ24: ='price data'!S22 -> 199.032883 | AK24: -0.009795606253 | AL24: ='price data'!T22 -> 146.108337 | AM24: 0.02554481372 | AN24: ='price data'!U22 -> 134.704147 | AO24: 0.01177525187 | AP24: ='price data'!V22 -> 267.619995 | AQ24: -0.09316102026 | AR24: ='price data'!W22 -> 30.234486 | AS24: 0.01994439534 | AT24: ='price data'!X22 -> 114.802391 | AU24: 0.03393460122 | AV24: ='price data'!Y22 -> 54.690399 | AW24: 0.07421476217 | AX24: ='price data'!Z22 -> 76.288719 | AY24: 0.1283685742 | AZ24: ='price data'!AA22 -> 47.218811 | BA24: 0.12305726 | BB24: ='price data'!AB22 -> 51.911751 | BC24: 0.03712865274 | BD24: ='price data'!AC22 -> 112.620697 | BE24: 0.04286467825 | BF24: ='price data'!AD22 -> 58.543617 | BG24: 0.04298708166 | BH24: ='price data'!AE22 -> 86.795502 | BI24: -0.02299511365 | BK24: ='price data'!AF22 -> 2976.73999 | BL24: 0.01703525049
A25: ='price data'!A23 -> 2019-10-01 | B25: ='price data'!B23 -> 20.994667 | C25: 0.2680612231 | D25: ='price data'!C23 -> 36.159313 | E25: 0.001412445308 | F25: ='price data'!D23 -> 335.939117 | G25: -0.1127264018 | H25: ='price data'!E23 -> 127.025085 | I25: 0.08706414606 | J25: ='price data'!F23 -> 42.599392 | K25: -0.03921261712 | L25: ='price data'!G23 -> 99.823265 | M25: -0.02096010892 | N25: ='price data'!H23 -> 129.146255 | O25: -0.0030740587 | P25: ='price data'!I23 -> 8.007287 | Q25: -0.06424728304 | R25: ='price data'!J23 -> 61.495762 | S25: 0.1111282051 | T25: ='price data'!K23 -> 62.939999 | U25: 0.03037403803 | V25: ='price data'!L23 -> 217.582779 | W25: 0.01706093751 | X25: ='price data'!M23 -> 108.907631 | Y25: -0.08380341657 | Z25: ='price data'!N23 -> 51.428879 | AA25: 0.09260739514 | AB25: ='price data'!O23 -> 121.334801 | AC25: 0.02035094184 | AD25: ='price data'!P23 -> 112.256561 | AE25: 0.05961941149 | AF25: ='price data'!Q23 -> 49.187023 | AG25: 0.007101104992 | AH25: ='price data'!R23 -> 23.049675 | AI25: -0.04522791475 | AJ25: ='price data'!S23 -> 182.337906 | AK25: -0.08760846023 | AL25: ='price data'!T23 -> 146.63269 | AM25: 0.003582371533 | AN25: ='price data'!U23 -> 138.909073 | AO25: 0.03073869813 | AP25: ='price data'!V23 -> 287.410004 | AQ25: 0.07134173647 | AR25: ='price data'!W23 -> 32.287712 | AS25: 0.06570353099 | AT25: ='price data'!X23 -> 114.922394 | AU25: 0.001044754582 | AV25: ='price data'!Y23 -> 60.743771 | AW25: 0.104976369 | AX25: ='price data'!Z23 -> 77.297989 | AY25: 0.01314286296 | AZ25: ='price data'!AA23 -> 46.935699 | BA25: -0.006013792717 | BB25: ='price data'!AB23 -> 52.006359 | BC25: 0.001820818838 | BD25: ='price data'!AC23 -> 111.273186 | BE25: -0.01203719595 | BF25: ='price data'!AD23 -> 56.023109 | BG25: -0.04400779984 | BH25: ='price data'!AE23 -> 88.833 | BI25: 0.02320340254 | BK25: ='price data'!AF23 -> 3037.560059 | BL25: 0.02022584237
A26: ='price data'!A24 -> 2019-11-01 | B26: ='price data'!B24 -> 21.996 | C26: 0.04659216555 | D26: ='price data'!C24 -> 35.030548 | E26: -0.03171405563 | F26: ='price data'!D24 -> 361.902222 | G26: 0.07444412623 | H26: ='price data'!E24 -> 134.461868 | I26: 0.05689606291 | J26: ='price data'!F24 -> 40.934494 | K26: -0.03986689918 | L26: ='price data'!G24 -> 100.674179 | M26: 0.008488079368 | N26: ='price data'!H24 -> 150.677261 | O26: 0.1541946832 | P26: ='price data'!I24 -> 8.584004 | Q26: 0.06954846923 | R26: ='price data'!J24 -> 69.444618 | S26: 0.1215613097 | T26: ='price data'!K24 -> 65.204498 | U26: 0.03534657854 | V26: ='price data'!L24 -> 204.532288 | W26: -0.06185352067 | X26: ='price data'!M24 -> 109.493996 | Y26: 0.005369615757 | Z26: ='price data'!N24 -> 52.811714 | AA26: 0.02653315923 | AB26: ='price data'!O24 -> 126.342964 | AC26: 0.04044647065 | AD26: ='price data'!P24 -> 119.351639 | AE26: 0.06128711061 | AF26: ='price data'!Q24 -> 48.256241 | AG26: -0.01910466197 | AH26: ='price data'!R24 -> 25.575415 | AI26: 0.1039798689 | AJ26: ='price data'!S24 -> 180.279984 | AK26: -0.01135048298 | AL26: ='price data'!T24 -> 150.880905 | AM26: 0.0285600647 | AN26: ='price data'!U24 -> 146.669891 | AO26: 0.05436485409 | AP26: ='price data'!V24 -> 314.660004 | AQ26: 0.09058292186 | AR26: ='price data'!W24 -> 32.413929 | AS26: 0.003901513413 | AT26: ='price data'!X24 -> 113.380714 | AU26: -0.01350575949 | AV26: ='price data'!Y24 -> 65.258781 | AW26: 0.07169606988 | AX26: ='price data'!Z24 -> 79.401344 | AY26: 0.02684735533 | AZ26: ='price data'!AA24 -> 48.413219 | BA26: 0.03099433765 | BB26: ='price data'!AB24 -> 52.347633 | BC26: 0.006540721828 | BD26: ='price data'!AC24 -> 113.009758 | BE26: 0.01548585615 | BF26: ='price data'!AD24 -> 56.487415 | BG26: 0.00825360365 | BH26: ='price data'!AE24 -> 90.040001 | BI26: 0.01349582456 | BK26: ='price data'!AF24 -> 3140.97998 | BL26: 0.03348026579
A27: ='price data'!A25 -> 2019-12-01 | B27: ='price data'!B25 -> 27.888666 | C27: 0.2373597511 | D27: ='price data'!C25 -> 35.614391 | E27: 0.01652931693 | F27: ='price data'!D25 -> 323.833313 | G27: -0.111145153 | H27: ='price data'!E25 -> 137.202576 | I27: 0.02017784107 | J27: ='price data'!F25 -> 43.32859 | K27: 0.05683961257 | L27: ='price data'!G25 -> 104.599945 | M27: 0.03825367407 | N27: ='price data'!H25 -> 143.768646 | O27: -0.04693482249 | P27: ='price data'!I25 -> 8.811396 | Q27: 0.02614541238 | R27: ='price data'!J25 -> 68.766777 | S27: -0.00980883573 | T27: ='price data'!K25 -> 66.969498 | U27: 0.02670880772 | V27: ='price data'!L25 -> 202.556625 | W27: -0.009706373463 | X27: ='price data'!M25 -> 110.449379 | Y27: 0.008687590694 | Z27: ='price data'!N25 -> 54.748947 | AA27: 0.03602511347 | AB27: ='price data'!O25 -> 134.972214 | AC27: 0.06606878933 | AD27: ='price data'!P25 -> 126.272141 | AE27: 0.05636534163 | AF27: ='price data'!Q25 -> 50.392021 | AG27: 0.04330768248 | AH27: ='price data'!R25 -> 27.280224 | AI27: 0.0645305056 | AJ27: ='price data'!S25 -> 184.355392 | AK27: 0.02235426389 | AL27: ='price data'!T25 -> 158.148407 | AM27: 0.04704305997 | AN27: ='price data'!U25 -> 153.313171 | AO27: 0.0442982766 | AP27: ='price data'!V25 -> 323.570007 | AQ27: 0.02792279195 | AR27: ='price data'!W25 -> 33.287937 | AS27: 0.02660684128 | AT27: ='price data'!X25 -> 116.018776 | AU27: 0.02300073379 | AV27: ='price data'!Y25 -> 71.92057 | AW27: 0.09720170374 | AX27: ='price data'!Z25 -> 80.349442 | AY27: 0.01186985248 | AZ27: ='price data'!AA25 -> 50.237976 | BA27: 0.03699833846 | BB27: ='price data'!AB25 -> 53.355652 | BC27: 0.01907319263 | BD27: ='price data'!AC25 -> 112.772522 | BE27: -0.002101458868 | BF27: ='price data'!AD25 -> 58.553165 | BG27: 0.03591727497 | BH27: ='price data'!AE25 -> 92.391998 | BI27: 0.02578634602 | BK27: ='price data'!AF25 -> 3230.780029 | BL27: 0.02818875636
A28: ='price data'!A26 -> 2020-01-01 | B28: ='price data'!B26 -> 43.371334 | C28: 0.4415783462 | D28: ='price data'!C26 -> 32.839405 | E28: -0.08112063148 | F28: ='price data'!D26 -> 316.387573 | G28: -0.02326095847 | H28: ='price data'!E26 -> 122.031136 | I28: -0.1171822653 | J28: ='price data'!F26 -> 41.530766 | K28: -0.04237819229 | L28: ='price data'!G26 -> 92.995079 | M28: -0.117596448 | N28: ='price data'!H26 -> 138.309998 | O28: -0.03870785439 | P28: ='price data'!I26 -> 8.356612 | Q28: -0.0529928019 | R28: ='price data'!J26 -> 76.785194 | S28: 0.1102910992 | T28: ='price data'!K26 -> 71.639 | U28: 0.06740235641 | V28: ='price data'!L26 -> 212.925507 | W28: 0.04992289506 | X28: ='price data'!M26 -> 118.433975 | Y28: 0.0697983249 | Z28: ='price data'!N26 -> 58.481209 | AA28: 0.06594735333 | AB28: ='price data'!O26 -> 137.748093 | AC28: 0.02035766899 | AD28: ='price data'!P26 -> 119.895157 | AE28: -0.05182175781 | AF28: ='price data'!Q26 -> 53.168816 | AG28: 0.05363921002 | AH28: ='price data'!R26 -> 25.275845 | AI28: -0.07631284749 | AJ28: ='price data'!S26 -> 199.618027 | AK28: 0.07954030247 | AL28: ='price data'!T26 -> 142.227768 | AM28: -0.1061041044 | AN28: ='price data'!U26 -> 165.494629 | AO28: 0.07645604243 | AP28: ='price data'!V26 -> 345.089996 | AQ28: 0.06438974551 | AR28: ='price data'!W26 -> 31.639687 | AS28: -0.0507828288 | AT28: ='price data'!X26 -> 115.758682 | AU28: -0.002244343444 | AV28: ='price data'!Y26 -> 75.805008 | AW28: 0.05260204346 | AX28: ='price data'!Z26 -> 78.052261 | AY28: -0.02900653239 | AZ28: ='price data'!AA26 -> 46.000935 | BA28: -0.08810951235 | BB28: ='price data'!AB26 -> 51.652443 | BC28: -0.03244242045 | BD28: ='price data'!AC26 -> 109.13192 | BE28: -0.03281528443 | BF28: ='price data'!AD26 -> 52.125591 | BG28: -0.1162791268 | BH28: ='price data'!AE26 -> 100.435997 | BI28: 0.08348030569 | BK28: ='price data'!AF26 -> 3225.52002 | BL28: -0.001629419365
A29: ='price data'!A27 -> 2020-02-01 | B29: ='price data'!B27 -> 44.532665 | C29: 0.02642424887 | D29: ='price data'!C27 -> 29.997065 | E29: -0.09052962273 | F29: ='price data'!D27 -> 273.482849 | G29: -0.1457290483 | H29: ='price data'!E27 -> 116.235207 | I29: -0.04866044053 | J29: ='price data'!F27 -> 36.33923 | K29: -0.133536628 | L29: ='price data'!G27 -> 81.016991 | M29: -0.1378876797 | N29: ='price data'!H27 -> 117.650002 | O29: -0.161783396 | P29: ='price data'!I27 -> 6.706483 | Q29: -0.2199784113 | R29: ='price data'!J27 -> 67.102249 | S29: -0.1347942746 | T29: ='price data'!K27 -> 66.962502 | U29: -0.06750682734 | V29: ='price data'!L27 -> 203.348038 | W29: -0.04602338823 | X29: ='price data'!M27 -> 107.244011 | Y29: -0.09924891754 | Z29: ='price data'!N27 -> 50.788006 | AA29: -0.1410452646 | AB29: ='price data'!O27 -> 124.433167 | AC29: -0.1016578435 | AD29: ='price data'!P27 -> 105.850685 | AE29: -0.1245882002 | AF29: ='price data'!Q27 -> 48.698631 | AG29: -0.08782114026 | AH29: ='price data'!R27 -> 26.470943 | AI29: 0.04619844425 | AJ29: ='price data'!S27 -> 181.146103 | AK29: -0.09710177088 | AL29: ='price data'!T27 -> 133.783417 | AM29: -0.06120757127 | AN29: ='price data'!U27 -> 157.503265 | AO29: -0.04949255291 | AP29: ='price data'!V27 -> 369.029999 | AQ29: 0.06707269785 | AR29: ='price data'!W27 -> 28.684202 | AS29: -0.09806573206 | AT29: ='price data'!X27 -> 105.803467 | AU29: -0.08992440837 | AV29: ='price data'!Y27 -> 66.951157 | AW29: -0.1242010055 | AX29: ='price data'!Z27 -> 64.672112 | AY29: -0.1880485421 | AZ29: ='price data'!AA27 -> 41.15733 | BA29: -0.1112596823 | BB29: ='price data'!AB27 -> 47.554001 | BC29: -0.08267156512 | BD29: ='price data'!AC27 -> 102.640633 | BE29: -0.06132353819 | BF29: ='price data'!AD27 -> 43.163883 | BG29: -0.1886519143 | BH29: ='price data'!AE27 -> 94.1875 | BI29: -0.06423320247 | BK29: ='price data'!AF27 -> 2954.219971 | BL29: -0.08785953695
A30: ='price data'!A28 -> 2020-03-01 | B30: ='price data'!B28 -> 34.933334 | C30: -0.2427814625 | D30: ='price data'!C28 -> 20.437344 | E30: -0.3837357279 | F30: ='price data'!D28 -> 149.139999 | G30: -0.6063534552 | H30: ='price data'!E28 -> 108.563538 | I30: -0.06828017949 | J30: ='price data'!F28 -> 35.77499 | K30: -0.01564882805 | L30: ='price data'!G28 -> 63.628727 | M30: -0.2415938473 | N30: ='price data'!H28 -> 96.599998 | O30: -0.1971354117 | P30: ='price data'!I28 -> 4.654067 | Q30: -0.3653332095 | R30: ='price data'!J28 -> 48.969837 | S30: -0.3150130234 | T30: ='price data'!K28 -> 58.0975 | U30: -0.1420101574 | V30: ='price data'!L28 -> 174.288971 | W30: -0.1542043094 | X30: ='price data'!M28 -> 92.36116 | Y30: -0.1494001708 | Z30: ='price data'!N28 -> 49.751133 | AA30: -0.02062698713 | AB30: ='price data'!O28 -> 122.107147 | AC30: -0.01886984713 | AD30: ='price data'!P28 -> 82.075081 | AE30: -0.2543950187 | AF30: ='price data'!Q28 -> 40.286312 | AG30: -0.1896391602 | AH30: ='price data'!R28 -> 28.502529 | AI30: 0.07394517934 | AJ30: ='price data'!S28 -> 155.224564 | AK30: -0.1544310361 | AL30: ='price data'!T28 -> 123.479965 | AM30: -0.08014328511 | AN30: ='price data'!U28 -> 153.741684 | AO30: -0.02417237079 | AP30: ='price data'!V28 -> 375.5 | AQ30: 0.01738053237 | AR30: ='price data'!W28 -> 28.014734 | AS30: -0.02361593219 | AT30: ='price data'!X28 -> 102.785316 | AU30: -0.02894078591 | AV30: ='price data'!Y28 -> 62.42836 | AW30: -0.06994369423 | AX30: ='price data'!Z28 -> 45.212296 | AY30: -0.3579609878 | AZ30: ='price data'!AA28 -> 27.738869 | BA30: -0.3945673975 | BB30: ='price data'!AB28 -> 47.176441 | BC30: -0.007971291831 | BD30: ='price data'!AC28 -> 108.302658 | BE30: 0.05369580917 | BF30: ='price data'!AD28 -> 32.318462 | BG30: -0.289365458 | BH30: ='price data'!AE28 -> 97.486 | BI30: 0.03442130156 | BK30: ='price data'!AF28 -> 2584.590088 | BL30: -0.1336677247
A31: ='price data'!A29 -> 2020-04-01 | B31: ='price data'!B29 -> 52.125332 | C31: 0.4002095471 | D31: ='price data'!C29 -> 22.189878 | E31: 0.08227242336 | F31: ='price data'!D29 -> 141.020004 | G31: -0.05598370275 | H31: ='price data'!E29 -> 108.881615 | I31: 0.002925585808 | J31: ='price data'!F29 -> 38.568905 | K31: 0.07519733596 | L31: ='price data'!G29 -> 80.787216 | M31: 0.2387536844 | N31: ='price data'!H29 -> 108.150002 | O31: 0.1129404504 | P31: ='price data'!I29 -> 4.904598 | Q31: 0.05243167148 | R31: ='price data'!J29 -> 41.980564 | S31: -0.1539977879 | T31: ='price data'!K29 -> 67.334999 | U31: 0.1475575124 | V31: ='price data'!L29 -> 206.578568 | W31: 0.1699661401 | X31: ='price data'!M29 -> 104.542198 | Y31: 0.1238842546 | Z31: ='price data'!N29 -> 55.138081 | AA31: 0.1028073655 | AB31: ='price data'!O29 -> 139.715958 | AC31: 0.1347125768 | AD31: ='price data'!P29 -> 87.298767 | AE31: 0.06170188875 | AF31: ='price data'!Q29 -> 42.145809 | AG31: 0.04512349025 | AH31: ='price data'!R29 -> 29.912516 | AI31: 0.04828416795 | AJ31: ='price data'!S29 -> 176.074463 | AK31: 0.1260341224 | AL31: ='price data'!T29 -> 137.419067 | AM31: 0.106956224 | AN31: ='price data'!U29 -> 174.700699 | AO31: 0.1278004009 | AP31: ='price data'!V29 -> 419.850006 | AQ31: 0.1116390477 | AR31: ='price data'!W29 -> 32.924179 | AS31: 0.1614767258 | AT31: ='price data'!X29 -> 110.139145 | AU31: 0.06910201861 | AV31: ='price data'!Y29 -> 72.128075 | AW31: 0.1444236989 | AX31: ='price data'!Z29 -> 54.083069 | AY31: 0.1791520941 | AZ31: ='price data'!AA29 -> 33.567268 | BA31: 0.1907167829 | BB31: ='price data'!AB29 -> 50.442715 | BC31: 0.06694369935 | BD31: ='price data'!AC29 -> 116.374199 | BE31: 0.07188115601 | BF31: ='price data'!AD29 -> 39.553307 | BG31: 0.2020106605 | BH31: ='price data'!AE29 -> 123.699997 | BI31: 0.2381504772 | BK31: ='price data'!AF29 -> 2912.429932 | BL31: 0.1194208388
A32: ='price data'!A30 -> 2020-05-01 | B32: ='price data'!B30 -> 55.666668 | C32: 0.0657304983 | D32: ='price data'!C30 -> 25.763752 | E32: 0.1493323038 | F32: ='price data'!D30 -> 145.850006 | G32: 0.0336769848 | H32: ='price data'!E30 -> 113.421844 | I32: 0.04085280953 | J32: ='price data'!F30 -> 43.932323 | K32: 0.1302039543 | L32: ='price data'!G30 -> 80.523788 | M32: -0.00326609131 | N32: ='price data'!H30 -> 117.300003 | O32: 0.08121561034 | P32: ='price data'!I30 -> 5.502014 | Q32: 0.1149410746 | R32: ='price data'!J30 -> 40.560623 | S32: -0.03440903015 | T32: ='price data'!K30 -> 71.676003 | U32: 0.06247585934 | V32: ='price data'!L30 -> 233.501541 | W32: 0.122507862 | X32: ='price data'!M30 -> 103.992691 | Y32: -0.005270180683 | Z32: ='price data'!N30 -> 57.849937 | AA32: 0.04801176195 | AB32: ='price data'!O30 -> 138.514725 | AC32: -0.008634852567 | AD32: ='price data'!P30 -> 89.633667 | AE32: 0.02639465814 | AF32: ='price data'!Q30 -> 42.871357 | AG32: 0.01706868505 | AH32: ='price data'!R30 -> 30.868277 | AI32: 0.03145203412 | AJ32: ='price data'!S30 -> 174.910416 | AK32: -0.006633056508 | AL32: ='price data'!T30 -> 141.507629 | AM32: 0.02931849065 | AN32: ='price data'!U30 -> 178.639023 | AO32: 0.02229292014 | AP32: ='price data'!V30 -> 419.730011 | AQ32: -0.0002858452998 | AR32: ='price data'!W30 -> 32.778267 | AS32: -0.004441607543 | AT32: ='price data'!X30 -> 109.039406 | AU32: -0.01003518113 | AV32: ='price data'!Y30 -> 78.054474 | AW32: 0.07896360931 | AX32: ='price data'!Z30 -> 52.860413 | AY32: -0.02286645715 | AZ32: ='price data'!AA30 -> 33.08157 | BA32: -0.01457509576 | BB32: ='price data'!AB30 -> 50.92308 | BC32: 0.009477922922 | BD32: ='price data'!AC30 -> 118.777306 | BE32: 0.02043950909 | BF32: ='price data'!AD30 -> 38.702148 | BG32: -0.02175420402 | BH32: ='price data'!AE30 -> 122.1185 | BI32: -0.01286737036 | BK32: ='price data'!AF30 -> 3044.310059 | BL32: 0.04428653296
A33: ='price data'!A31 -> 2020-06-01 | B33: ='price data'!B31 -> 71.987335 | C33: 0.2571086531 | D33: ='price data'!C31 -> 25.186357 | E33: -0.02266608378 | F33: ='price data'!D31 -> 183.300003 | G33: 0.2285454338 | H33: ='price data'!E31 -> 119.436157 | I33: 0.05166797695 | J33: ='price data'!F31 -> 42.848255 | K33: -0.02498541541 | L33: ='price data'!G31 -> 79.505142 | M33: -0.01273094506 | N33: ='price data'!H31 -> 111.510002 | O33: -0.05062049032 | P33: ='price data'!I31 -> 5.858537 | Q33: 0.06278570669 | R33: ='price data'!J31 -> 42.16576 | S33: 0.03881079817 | T33: ='price data'!K31 -> 70.902496 | U33: -0.01085036796 | V33: ='price data'!L31 -> 235.409164 | W33: 0.008136446891 | X33: ='price data'!M31 -> 101.902565 | Y33: -0.02030350618 | Z33: ='price data'!N31 -> 55.310871 | AA33: -0.04488289313 | AB33: ='price data'!O31 -> 131.861252 | AC33: -0.04922638911 | AD33: ='price data'!P31 -> 86.640045 | AE33: -0.03396887509 | AF33: ='price data'!Q31 -> 41.034534 | AG33: -0.04378992909 | AH33: ='price data'!R31 -> 32.183235 | AI33: 0.04171664254 | AJ33: ='price data'!S31 -> 174.328308 | AK33: -0.003333585305 | AL33: ='price data'!T31 -> 142.500061 | AM33: 0.006988796955 | AN33: ='price data'!U31 -> 198.941772 | AO33: 0.1076450405 | AP33: ='price data'!V31 -> 455.040009 | AQ33: 0.08077367333 | AR33: ='price data'!W31 -> 28.345936 | AS33: -0.1452820354 | AT33: ='price data'!X31 -> 112.472755 | AU33: 0.03100167471 | AV33: ='price data'!Y31 -> 89.801079 | AW33: 0.1401900233 | AX33: ='price data'!Z31 -> 53.835236 | AY33: 0.01827347479 | AZ33: ='price data'!AA31 -> 34.261574 | BA33: 0.0350481049 | BB33: ='price data'!AB31 -> 48.92627 | BC33: -0.04000178785 | BD33: ='price data'!AC31 -> 115.184013 | BE33: -0.03071939915 | BF33: ='price data'!AD31 -> 38.801819 | BG33: 0.002572024602 | BH33: ='price data'!AE31 -> 137.940994 | BI33: 0.1218341292 | BK33: ='price data'!AF31 -> 3100.290039 | BL33: 0.0182213742
A34: ='price data'!A32 -> 2020-07-01 | B34: ='price data'!B32 -> 95.384003 | C34: 0.2814206802 | D34: ='price data'!C32 -> 24.778198 | E34: -0.0163383054 | F34: ='price data'!D32 -> 158 | G34: -0.1485291382 | H34: ='price data'!E32 -> 125.4599 | I34: 0.04920420804 | J34: ='price data'!F32 -> 43.270855 | K34: 0.00981439293 | L34: ='price data'!G32 -> 74.791687 | M34: -0.06111495637 | N34: ='price data'!H32 -> 116.940002 | O34: 0.04754670894 | P34: ='price data'!I32 -> 6.369231 | Q34: 0.08357882645 | R34: ='price data'!J32 -> 37.530006 | S34: -0.1164677443 | T34: ='price data'!K32 -> 74.397499 | U34: 0.04811668825 | V34: ='price data'!L32 -> 250.975891 | W34: 0.06403175918 | X34: ='price data'!M32 -> 103.733559 | Y34: 0.01780856743 | Z34: ='price data'!N32 -> 44.124817 | AA34: -0.2259471036 | AB34: ='price data'!O32 -> 136.671371 | AC34: 0.03582904383 | AD34: ='price data'!P32 -> 89.016533 | AE34: 0.02705999444 | AF34: ='price data'!Q32 -> 43.779816 | AG34: 0.0647588844 | AH34: ='price data'!R32 -> 33.076942 | AI34: 0.02739075853 | AJ34: ='price data'!S32 -> 183.598953 | AK34: 0.05181342658 | AL34: ='price data'!T32 -> 137.457443 | AM34: -0.03602806403 | AN34: ='price data'!U32 -> 200.408096 | AO34: 0.007343588703 | AP34: ='price data'!V32 -> 488.880005 | AQ34: 0.07173172386 | AR34: ='price data'!W32 -> 33.356312 | AS34: 0.1627633509 | AT34: ='price data'!X32 -> 123.337181 | AU34: 0.09221089924 | AV34: ='price data'!Y32 -> 104.630066 | AW34: 0.1528339574 | AX34: ='price data'!Z32 -> 56.018696 | AY34: 0.03975729514 | AZ34: ='price data'!AA32 -> 34.179459 | BA34: -0.002399585038 | BB34: ='price data'!AB32 -> 51.011822 | BC34: 0.04174293874 | BD34: ='price data'!AC32 -> 124.434875 | BE34: 0.07725152408 | BF34: ='price data'!AD32 -> 36.511192 | BG34: -0.06084828325 | BH34: ='price data'!AE32 -> 158.233994 | BI34: 0.1372488981 | BK34: ='price data'!AF32 -> 3271.120117 | BL34: 0.0536368016
A35: ='price data'!A33 -> 2020-08-01 | B35: ='price data'!B33 -> 166.106674 | C35: 0.5547193155 | D35: ='price data'!C33 -> 29.496906 | E35: 0.1743212229 | F35: ='price data'!D33 -> 171.820007 | G35: 0.08385242492 | H35: ='price data'!E33 -> 135.369598 | I35: 0.07602261495 | J35: ='price data'!F33 -> 39.09314 | K35: -0.1015323097 | L35: ='price data'!G33 -> 74.782768 | M35: -0.0001192583321 | N35: ='price data'!H33 -> 131.869995 | O35: 0.1201555511 | P35: ='price data'!I33 -> 6.571582 | Q35: 0.03127585483 | R35: ='price data'!J33 -> 39.199368 | S35: 0.0435198512 | T35: ='price data'!K33 -> 81.476501 | U35: 0.0908923217 | V35: ='price data'!L33 -> 269.457123 | W35: 0.07105239664 | X35: ='price data'!M33 -> 104.045738 | Y35: 0.003004911841 | Z35: ='price data'!N33 -> 47.101604 | AA35: 0.06528468771 | AB35: ='price data'!O33 -> 143.84436 | AC35: 0.05115258933 | AD35: ='price data'!P33 -> 93.185776 | AE35: 0.04577297549 | AF35: ='price data'!Q33 -> 45.902084 | AG35: 0.04733762983 | AH35: ='price data'!R33 -> 33.923122 | AI35: 0.02526042346 | AJ35: ='price data'!S33 -> 201.781219 | AK35: 0.09443026064 | AL35: ='price data'!T33 -> 148.92215 | AM35: 0.08010932244 | AN35: ='price data'!U33 -> 220.467468 | AO35: 0.09539437899 | AP35: ='price data'!V33 -> 529.559998 | AQ35: 0.07992939848 | AR35: ='price data'!W33 -> 33.078354 | AS35: -0.008367909065 | AT35: ='price data'!X33 -> 130.940323 | AU35: 0.05981975601 | AV35: ='price data'!Y33 -> 127.060654 | AW35: 0.1942336148 | AX35: ='price data'!Z33 -> 59.908268 | AY35: 0.06712903349 | AZ35: ='price data'!AA33 -> 35.411232 | BA35: 0.03540420836 | BB35: ='price data'!AB33 -> 53.19109 | BC35: 0.04183349133 | BD35: ='price data'!AC33 -> 133.522278 | BE35: 0.07048585365 | BF35: ='price data'!AD33 -> 34.654392 | BG35: -0.05219437287 | BH35: ='price data'!AE33 -> 172.548004 | BI35: 0.08660056967 | BK35: ='price data'!AF33 -> 3500.310059 | BL35: 0.06771908318
A36: ='price data'!A34 -> 2020-09-01 | B36: ='price data'!B34 -> 143.003326 | C36: -0.1497623077 | D36: ='price data'!C34 -> 29.457088 | E36: -0.001350816233 | F36: ='price data'!D34 -> 165.259995 | G36: -0.03892749693 | H36: ='price data'!E34 -> 141.875992 | I36: 0.04694457973 | J36: ='price data'!F34 -> 36.472736 | K36: -0.06938198146 | L36: ='price data'!G34 -> 65.077858 | M36: -0.1390031156 | N36: ='price data'!H34 -> 124.080002 | O36: -0.06089001592 | P36: ='price data'!I34 -> 6.41741 | Q36: -0.02373998548 | R36: ='price data'!J34 -> 38.519264 | S36: -0.01750214443 | T36: ='price data'!K34 -> 73.279999 | U36: -0.1060269407 | V36: ='price data'!L34 -> 262.527863 | W36: -0.0260520582 | X36: ='price data'!M34 -> 104.006142 | Y36: -0.0003806358345 | Z36: ='price data'!N34 -> 48.194004 | AA36: 0.02292755933 | AB36: ='price data'!O34 -> 140.52594 | AC36: -0.02333978365 | AD36: ='price data'!P34 -> 89.539818 | AE36: -0.03991167182 | AF36: ='price data'!Q34 -> 45.753799 | AG36: -0.003235692561 | AH36: ='price data'!R34 -> 32.408833 | AI36: -0.04566583768 | AJ36: ='price data'!S34 -> 208.63652 | AK36: 0.03340956296 | AL36: ='price data'!T34 -> 147.659637 | AM36: -0.008513810904 | AN36: ='price data'!U34 -> 206.105682 | AO36: -0.06736108993 | AP36: ='price data'!V34 -> 500.029999 | AQ36: -0.05737837467 | AR36: ='price data'!W34 -> 32.12426 | AS36: -0.02926760282 | AT36: ='price data'!X34 -> 131.565079 | AU36: 0.004759956746 | AV36: ='price data'!Y34 -> 114.239182 | AW36: -0.1063702248 | AX36: ='price data'!Z34 -> 57.082783 | AY36: -0.04831197809 | AZ36: ='price data'!AA34 -> 35.104881 | BA36: -0.008688877317 | BB36: ='price data'!AB34 -> 53.388527 | BC36: 0.003704971577 | BD36: ='price data'!AC34 -> 135.094727 | BE36: 0.01170787353 | BF36: ='price data'!AD34 -> 30.374443 | BG36: -0.1318229068 | BH36: ='price data'!AE34 -> 157.436493 | BI36: -0.09165332391 | BK36: ='price data'!AF34 -> 3363 | BL36: -0.0400181201
A37: ='price data'!A35 -> 2020-10-01 | B37: ='price data'!B35 -> 129.346664 | C37: =LN(B37/B36) -> -0.1003717709 | D37: ='price data'!C35 -> 34.374893 | E37: =LN(D37/D36) -> 0.154391883 | F37: ='price data'!D35 -> 144.389999 | G37: =LN(F37/F36) -> -0.135001996 | H37: ='price data'!E35 -> 149.390732 | I37: =LN(H37/H36) -> 0.05161185569 | J37: ='price data'!F35 -> 33.241211 | K37: =LN(J37/J36) -> -0.09277462124 | L37: ='price data'!G35 -> 62.818214 | M37: =LN(L37/L36) -> -0.0353393052 | N37: ='price data'!H35 -> 121.25 | O37: =LN(N37/N36) -> -0.02307200517 | P37: ='price data'!I35 -> 7.448436 | Q37: =LN(P37/P36) -> 0.148989468 | R37: ='price data'!J35 -> 45.952705 | S37: =LN(R37/R36) -> 0.1764542356 | T37: ='price data'!K35 -> 80.805496 | U37: =LN(T37/T36) -> 0.0977572763 | V37: ='price data'!L35 -> 253.458801 | W37: =LN(V37/V36) -> -0.03515593205 | X37: ='price data'!M35 -> 95.449387 | Y37: =LN(X37/X36) -> -0.08585382715 | Z37: ='price data'!N35 -> 41.213425 | AA37: =LN(Z37/Z36) -> -0.1564705622 | AB37: ='price data'!O35 -> 129.416382 | AC37: =LN(AB37/AB36) -> -0.08235712432 | AD37: ='price data'!P35 -> 91.186073 | AE37: =LN(AD37/AD36) -> 0.01821875689 | AF37: ='price data'!Q35 -> 44.900291 | AG37: =LN(AF37/AF36) -> -0.01883055073 | AH37: ='price data'!R35 -> 30.784084 | AI37: =LN(AH37/AH36) -> -0.05143320593 | AJ37: ='price data'!S35 -> 202.467422 | AK37: =LN(AJ37/AJ36) -> -0.03001460456 | AL37: ='price data'!T35 -> 147.456802 | AM37: =LN(AL37/AL36) -> -0.001374610189 | AN37: ='price data'!U35 -> 198.40358 | AO37: =LN(AN37/AN36) -> -0.03808581761 | AP37: ='price data'!V35 -> 475.73999 | AQ37: =LN(AP37/AP36) -> -0.04979662913 | AR37: ='price data'!W35 -> 31.056372 | AS37: =LN(AR37/AR36) -> -0.03380750321 | AT37: ='price data'!X35 -> 129.776031 | AU37: =LN(AT37/AT36) -> -0.01369150033 | AV37: ='price data'!Y35 -> 107.383438 | AW37: =LN(AV37/AV36) -> -0.06188837658 | AX37: ='price data'!Z35 -> 57.532104 | AY37: =LN(AX37/AX36) -> 0.007840574878 | AZ37: ='price data'!AA35 -> 38.859852 | BA37: =LN(AZ37/AZ36) -> 0.1016214548 | BB37: ='price data'!AB35 -> 51.144939 | BC37: =LN(BB37/BB36) -> -0.04293232947 | BD37: ='price data'!AC35 -> 133.97467 | BE37: =LN(BD37/BD36) -> -0.008325461625 | BF37: ='price data'!AD35 -> 28.861471 | BG37: =LN(BF37/BF36) -> -0.0510940418 | BH37: ='price data'!AE35 -> 151.807495 | BI37: =LN(BH37/BH36) -> -0.03640891998 | BK37: ='price data'!AF35 -> 3269.959961 | BL37: =LN(BK37/BK36) -> -0.02805569227
A38: ='price data'!A36 -> 2020-11-01 | B38: ='price data'!B36 -> 189.199997 | C38: 0.380308523 | D38: ='price data'!C36 -> 43.643078 | E38: 0.2387182468 | F38: ='price data'!D36 -> 210.710007 | G38: 0.3779648487 | H38: ='price data'!E36 -> 166.13266 | I38: 0.1062213899 | J38: ='price data'!F36 -> 40.201309 | K38: 0.190109156 | L38: ='price data'!G36 -> 78.798431 | M38: 0.2266480222 | N38: ='price data'!H36 -> 148.009995 | O38: 0.1994252755 | P38: ='price data'!I36 -> 8.749262 | Q38: 0.1609652765 | R38: ='price data'!J36 -> 63.045616 | S38: 0.3162458125 | T38: ='price data'!K36 -> 87.720001 | U38: 0.08210495193 | V38: ='price data'!L36 -> 263.627197 | W38: 0.03933468346 | X38: ='price data'!M36 -> 105.587578 | Y38: 0.1009446038 | Z38: ='price data'!N36 -> 45.001549 | AA38: 0.08793285861 | AB38: ='price data'!O36 -> 136.56163 | AC38: 0.05374104082 | AD38: ='price data'!P36 -> 110.656448 | AE38: 0.1935281615 | AF38: ='price data'!Q36 -> 48.20755 | AG38: 0.071071372 | AH38: ='price data'!R36 -> 31.539114 | AI38: 0.02423068666 | AJ38: ='price data'!S36 -> 206.687881 | AK38: 0.02063083951 | AL38: ='price data'!T36 -> 159.228653 | AM38: 0.07680597328 | AN38: ='price data'!U36 -> 209.770599 | AO38: 0.05571130887 | AP38: ='price data'!V36 -> 490.700012 | AQ38: 0.03096150206 | AR38: ='price data'!W36 -> 35.344334 | AS38: 0.1293340919 | AT38: ='price data'!X36 -> 132.181381 | AU38: 0.01836495166 | AV38: ='price data'!Y36 -> 117.435226 | AW38: 0.08948095188 | AX38: ='price data'!Z36 -> 67.956551 | AY38: 0.1665254226 | AZ38: ='price data'!AA36 -> 42.827026 | BA38: 0.09720771651 | BB38: ='price data'!AB36 -> 54.791405 | BC38: 0.06886979537 | BD38: ='price data'!AC36 -> 147.531433 | BE38: 0.09639050593 | BF38: ='price data'!AD36 -> 33.736599 | BG38: 0.1560757496 | BH38: ='price data'!AE36 -> 158.401993 | BI38: 0.04252282345 | BK38: ='price data'!AF36 -> 3621.629883 | BL38: 0.1021464279
A39: ='price data'!A37 -> 2020-12-01 | B39: ='price data'!B37 -> 235.223328 | C39: 0.217730754 | D39: ='price data'!C37 -> 41.452961 | E39: -0.05148537561 | F39: ='price data'!D37 -> 214.059998 | G39: 0.01577352646 | H39: ='price data'!E37 -> 174.200516 | I39: 0.0474204007 | J39: ='price data'!F37 -> 41.817955 | K39: 0.03942623547 | L39: ='price data'!G37 -> 77.454048 | M39: -0.01720825402 | N39: ='price data'!H37 -> 181.179993 | O39: 0.2022111683 | P39: ='price data'!I37 -> 8.469826 | Q39: -0.0324593886 | R39: ='price data'!J37 -> 66.885323 | S39: 0.05912102804 | T39: ='price data'!K37 -> 87.632004 | U39: -0.001003661263 | V39: ='price data'!L37 -> 252.422928 | W39: -0.04343000609 | X39: ='price data'!M37 -> 109.165283 | Y39: 0.03332235974 | Z39: ='price data'!N37 -> 46.70702 | AA39: 0.03719756318 | AB39: ='price data'!O37 -> 149.581238 | AC39: 0.09106362868 | AD39: ='price data'!P37 -> 119.283279 | AE39: 0.07507082138 | AF39: ='price data'!Q37 -> 51.636265 | AG39: 0.06870858792 | AH39: ='price data'!R37 -> 30.525229 | AI39: -0.03267496781 | AJ39: ='price data'!S37 -> 205.18161 | AK39: -0.007314344705 | AL39: ='price data'!T37 -> 162.5215 | AM39: 0.02046906234 | AN39: ='price data'!U37 -> 218.523483 | AO39: 0.04087893453 | AP39: ='price data'!V37 -> 540.72998 | AQ39: 0.09708707394 | AR39: ='price data'!W37 -> 34.309711 | AS39: -0.02970966298 | AT39: ='price data'!X37 -> 132.4384 | AU39: 0.001942553802 | AV39: ='price data'!Y37 -> 131.116043 | AW39: 0.110195842 | AX39: ='price data'!Z37 -> 71.193451 | AY39: 0.04653228878 | AZ39: ='price data'!AA37 -> 44.631554 | BA39: 0.04127174576 | BB39: ='price data'!AB37 -> 53.285797 | BC39: -0.02786351572 | BD39: ='price data'!AC37 -> 139.188797 | BE39: -0.05820999482 | BF39: ='price data'!AD37 -> 37.350471 | BG39: 0.1017622501 | BH39: ='price data'!AE37 -> 162.846497 | BI39: 0.02767195953 | BK39: ='price data'!AF37 -> 3756.070068 | BL39: 0.03644904769
A40: ='price data'!A38 -> 2021-01-01 | B40: ='price data'!B38 -> 264.51001 | C40: 0.1173437008 | D40: ='price data'!C38 -> 50.452354 | E40: 0.1964700913 | F40: ='price data'!D38 -> 194.190002 | G40: -0.09741926869 | H40: ='price data'!E38 -> 174.985291 | I40: 0.004494892436 | J40: ='price data'!F38 -> 41.659092 | K40: -0.003806152649 | L40: ='price data'!G38 -> 78.141914 | M40: 0.008841752349 | N40: ='price data'!H38 -> 168.169998 | O40: -0.07451561296 | P40: ='price data'!I38 -> 10.146446 | Q40: 0.180613531 | R40: ='price data'!J38 -> 66.203003 | S40: -0.01025373147 | T40: ='price data'!K38 -> 91.367996 | U40: 0.04174899028 | V40: ='price data'!L38 -> 258.767914 | W40: 0.02482560856 | X40: ='price data'!M38 -> 103.294212 | Y40: -0.05528174794 | Z40: ='price data'!N38 -> 52.041485 | AA40: 0.1081467144 | AB40: ='price data'!O38 -> 155.04628 | AC40: 0.03588400976 | AD40: ='price data'!P38 -> 120.785248 | AE40: 0.01251299882 | AF40: ='price data'!Q38 -> 45.337093 | AG40: -0.1300987083 | AH40: ='price data'!R38 -> 33.158703 | AI40: 0.0827516941 | AJ40: ='price data'!S38 -> 198.736786 | AK40: -0.03191422361 | AL40: ='price data'!T38 -> 163.330414 | AM40: 0.004964928097 | AN40: ='price data'!U38 -> 227.896378 | AO40: 0.04199756074 | AP40: ='price data'!V38 -> 532.390015 | AQ40: -0.01554370984 | AR40: ='price data'!W38 -> 33.461521 | AS40: -0.02503228185 | AT40: ='price data'!X38 -> 122.034813 | AU40: -0.08181127518 | AV40: ='price data'!Y38 -> 130.394699 | AW40: -0.005516758692 | AX40: ='price data'!Z38 -> 71.384964 | AY40: 0.002686425083 | AZ40: ='price data'!AA38 -> 44.678108 | BA40: 0.001042530073 | BB40: ='price data'!AB38 -> 49.657833 | BC40: -0.07051368047 | BD40: ='price data'!AC38 -> 136.150635 | BE40: -0.02206938026 | BF40: ='price data'!AD38 -> 40.630646 | BG40: 0.08417708751 | BH40: ='price data'!AE38 -> 160.309998 | BI40: -0.01569859267 | BK40: ='price data'!AF38 -> 3714.23999 | BL40: -0.01119913762
A41: ='price data'!A39 -> 2021-02-01 | B41: ='price data'!B39 -> 225.166672 | C41: -0.1610382032 | D41: ='price data'!C39 -> 51.099438 | E41: 0.01274409334 | F41: ='price data'!D39 -> 212.009995 | G41: 0.08779634826 | H41: ='price data'!E39 -> 207.705154 | I41: 0.1714176262 | J41: ='price data'!F39 -> 42.270145 | K41: 0.01456140479 | L41: ='price data'!G39 -> 91.715866 | M41: 0.1601688012 | N41: ='price data'!H39 -> 189.039993 | O41: 0.1169832352 | P41: ='price data'!I39 -> 11.273829 | Q41: 0.1053605255 | R41: ='price data'!J39 -> 77.73275 | S41: 0.160550837 | T41: ='price data'!K39 -> 101.095497 | U41: 0.101170321 | V41: ='price data'!L39 -> 246.843292 | W41: -0.0471778851 | X41: ='price data'!M39 -> 103.138115 | Y41: -0.001512331252 | Z41: ='price data'!N39 -> 56.982189 | AA41: 0.09069755634 | AB41: ='price data'!O39 -> 150.607712 | AC41: -0.02904513044 | AD41: ='price data'!P39 -> 139.1465 | AE41: 0.1415131761 | AF41: ='price data'!Q39 -> 46.128021 | AG41: 0.0172950687 | AH41: ='price data'!R39 -> 30.957735 | AI41: -0.06868232898 | AJ41: ='price data'!S39 -> 197.111282 | AK41: -0.008212813289 | AL41: ='price data'!T39 -> 162.772568 | AM41: -0.003421290665 | AN41: ='price data'!U39 -> 228.309006 | AO41: 0.001808957662 | AP41: ='price data'!V39 -> 538.849976 | AQ41: 0.01206086285 | AR41: ='price data'!W39 -> 31.554798 | AS41: -0.05867049829 | AT41: ='price data'!X39 -> 118.289429 | AU41: -0.03117194706 | AV41: ='price data'!Y39 -> 119.821632 | AW41: -0.08456175983 | AX41: ='price data'!Z39 -> 79.081551 | AY41: 0.1023923522 | AZ41: ='price data'!AA39 -> 53.040123 | BA41: 0.1715650371 | BB41: ='price data'!AB39 -> 50.693623 | BC41: 0.0206439812 | BD41: ='price data'!AC39 -> 125.907127 | BE41: -0.07821733521 | BF41: ='price data'!AD39 -> 49.26601 | BG41: 0.1927117815 | BH41: ='price data'!AE39 -> 154.6465 | BI41: -0.0359675611 | BK41: ='price data'!AF39 -> 3811.149902 | BL41: 0.02575687665
A42: ='price data'!A40 -> 2021-03-01 | B42: ='price data'!B40 -> 222.643326 | C42: -0.0112698364 | D42: ='price data'!C40 -> 57.201897 | E42: 0.1128135631 | F42: ='price data'!D40 -> 254.720001 | G42: 0.1835314868 | H42: ='price data'!E40 -> 223.089661 | I42: 0.07145421271 | J42: ='price data'!F40 -> 48.713825 | K42: 0.1418818258 | L42: ='price data'!G40 -> 97.467613 | M42: 0.06082476345 | N42: ='price data'!H40 -> 184.520004 | O42: -0.02420071548 | P42: ='price data'!I40 -> 11.803794 | Q42: 0.04593698332 | R42: ='price data'!J40 -> 81.390022 | S42: 0.04597602415 | T42: ='price data'!K40 -> 103.125999 | U42: 0.01988594691 | V42: ='price data'!L40 -> 291.66568 | W42: 0.1668545249 | X42: ='price data'!M40 -> 117.109627 | Y42: 0.1270414667 | Z42: ='price data'!N40 -> 60.365189 | AA42: 0.05767385241 | AB42: ='price data'!O40 -> 157.179871 | AC42: 0.04271230217 | AD42: ='price data'!P40 -> 143.930634 | AE42: 0.03380414024 | AF42: ='price data'!Q40 -> 49.630692 | AG42: 0.07318883653 | AH42: ='price data'!R40 -> 34.777023 | AI42: 0.116334023 | AJ42: ='price data'!S40 -> 215.641586 | AK42: 0.08984925291 | AL42: ='price data'!T40 -> 180.632111 | AM42: 0.1041084888 | AN42: ='price data'!U40 -> 232.173126 | AO42: 0.01678332528 | AP42: ='price data'!V40 -> 521.659973 | AQ42: -0.03242121159 | AR42: ='price data'!W40 -> 34.136463 | AS42: 0.07864045569 | AT42: ='price data'!X40 -> 129.684586 | AU42: 0.09197083135 | AV42: ='price data'!Y40 -> 120.881424 | AW42: 0.008805861179 | AX42: ='price data'!Z40 -> 84.267288 | AY42: 0.06351413583 | AZ42: ='price data'!AA40 -> 54.765373 | BA42: 0.03200944979 | BB42: ='price data'!AB40 -> 53.306221 | BC42: 0.05025291747 | BD42: ='price data'!AC40 -> 131.634567 | BE42: 0.04448510371 | BF42: ='price data'!AD40 -> 51.448074 | BG42: 0.04333863624 | BH42: ='price data'!AE40 -> 154.703995 | BI42: 0.0003717142955 | BK42: ='price data'!AF40 -> 3972.889893 | BL42: 0.04156280748
A43: ='price data'!A41 -> 2021-04-01 | B43: ='price data'!B41 -> 236.479996 | C43: 0.06029256482 | D43: ='price data'!C41 -> 56.962978 | E43: -0.004185514131 | F43: ='price data'!D41 -> 234.309998 | G43: -0.08351989019 | H43: ='price data'!E41 -> 219.472031 | I43: -0.01634895493 | J43: ='price data'!F41 -> 47.960175 | K43: -0.01559189168 | L43: ='price data'!G41 -> 95.86779 | M43: -0.01655009369 | N43: ='price data'!H41 -> 186.020004 | O43: 0.00809633595 | P43: ='price data'!I41 -> 11.119657 | Q43: -0.05970656219 | R43: ='price data'!J41 -> 81.388016 | S43: -2.464705958e-05 | T43: ='price data'!K41 -> 117.675003 | U43: 0.1319750809 | V43: ='price data'!L41 -> 311.203949 | W43: 0.06484026699 | X43: ='price data'!M41 -> 124.684937 | Y43: 0.06267957248 | Z43: ='price data'!N41 -> 54.262642 | AA43: -0.1065766002 | AB43: ='price data'!O41 -> 155.630539 | AC43: -0.009905966169 | AD43: ='price data'!P41 -> 145.424515 | AE43: 0.01032567955 | AF43: ='price data'!Q41 -> 51.249561 | AG43: 0.03209761945 | AH43: ='price data'!R41 -> 35.308487 | AI43: 0.01516644988 | AJ43: ='price data'!S41 -> 227.12886 | AK43: 0.05189981621 | AL43: ='price data'!T41 -> 184.813263 | AM43: 0.02288349916 | AN43: ='price data'!U41 -> 248.332794 | AO43: 0.06728643177 | AP43: ='price data'!V41 -> 513.469971 | AQ43: -0.01582443432 | AR43: ='price data'!W41 -> 36.416634 | AS43: 0.06465953909 | AT43: ='price data'!X41 -> 127.759872 | AU43: -0.01495273875 | AV43: ='price data'!Y41 -> 130.094742 | AW43: 0.07345287146 | AX43: ='price data'!Z41 -> 92.832771 | AY43: 0.09680596624 | AZ43: ='price data'!AA41 -> 55.69503 | BA43: 0.01683280027 | BB43: ='price data'!AB41 -> 52.976204 | BC43: -0.006210209461 | BD43: ='price data'!AC41 -> 136.154663 | BE43: 0.03376181595 | BF43: ='price data'!AD41 -> 52.747406 | BG43: 0.02494156861 | BH43: ='price data'!AE41 -> 173.371002 | BI43: 0.1139202371 | BK43: ='price data'!AF41 -> 4181.169922 | BL43: 0.05109733039
A44: ='price data'!A42 -> 2021-05-01 | B44: ='price data'!B42 -> 208.406662 | C44: -0.1263723441 | D44: ='price data'!C42 -> 59.043591 | E44: 0.03587445357 | F44: ='price data'!D42 -> 247.020004 | G44: 0.05282430481 | H44: ='price data'!E42 -> 232.99939 | I44: 0.05981103255 | J44: ='price data'!F42 -> 50.192142 | K44: 0.04548750155 | L44: ='price data'!G42 -> 96.537483 | M44: 0.006961303024 | N44: ='price data'!H42 -> 178.649994 | O44: -0.04042566543 | P44: ='price data'!I42 -> 14.000746 | Q44: 0.2303961709 | R44: ='price data'!J42 -> 87.21917 | S44: 0.06919610762 | T44: ='price data'!K42 -> 117.842499 | U44: 0.001422365869 | V44: ='price data'!L42 -> 306.627258 | W44: -0.01481561522 | X44: ='price data'!M42 -> 126.319496 | Y44: 0.01302432859 | Z44: ='price data'!N42 -> 53.875927 | AA44: -0.007152242758 | AB44: ='price data'!O42 -> 161.866104 | AC44: 0.03928461641 | AD44: ='price data'!P42 -> 156.200485 | AE44: 0.07148318766 | AF44: ='price data'!Q42 -> 52.493298 | AG44: 0.02397845218 | AH44: ='price data'!R42 -> 35.733658 | AI44: 0.01196968578 | AJ44: ='price data'!S42 -> 225.021896 | AK44: -0.009319808594 | AL44: ='price data'!T42 -> 190.344345 | AM44: 0.02948884784 | AN44: ='price data'!U42 -> 245.870926 | AO44: -0.00996305072 | AP44: ='price data'!V42 -> 502.809998 | AQ44: -0.02097918743 | AR44: ='price data'!W42 -> 36.492008 | AS44: 0.002067629427 | AT44: ='price data'!X42 -> 129.955368 | AU44: 0.0170385664 | AV44: ='price data'!Y42 -> 123.31588 | AW44: -0.05351377619 | AX44: ='price data'!Z42 -> 98.947006 | AY44: 0.06378470065 | AZ44: ='price data'!AA42 -> 58.014484 | BA44: 0.04080178856 | BB44: ='price data'!AB42 -> 52.341625 | BC44: -0.01205088798 | BD44: ='price data'!AC42 -> 138.217758 | BE44: 0.01503893049 | BF44: ='price data'!AD42 -> 53.788712 | BG44: 0.01954903524 | BH44: ='price data'!AE42 -> 161.153503 | BI44: -0.07307647299 | BK44: ='price data'!AF42 -> 4204.109863 | BL44: 0.00547149262
A45: ='price data'!A43 -> 2021-06-01 | B45: ='price data'!B43 -> 226.566666 | C45: 0.083547956 | D45: ='price data'!C43 -> 58.904221 | E45: -0.002363249686 | F45: ='price data'!D43 -> 239.559998 | G45: -0.03066542216 | H45: ='price data'!E43 -> 210.335388 | I45: -0.1023324931 | J45: ='price data'!F43 -> 50.287029 | K45: 0.001888690507 | L45: ='price data'!G43 -> 98.613609 | M45: 0.0212779166 | N45: ='price data'!H43 -> 175.770004 | O45: -0.0162522059 | P45: ='price data'!I43 -> 14.318727 | Q45: 0.02245764702 | R45: ='price data'!J43 -> 83.497154 | S45: -0.04361159876 | T45: ='price data'!K43 -> 122.0895 | U45: 0.03540540368 | V45: ='price data'!L43 -> 306.608032 | W45: -6.270350164e-05 | X45: ='price data'!M43 -> 130.263474 | Y45: 0.03074474243 | Z45: ='price data'!N43 -> 53.277725 | AA45: -0.0111654284 | AB45: ='price data'!O43 -> 158.535828 | AC45: -0.02078886302 | AD45: ='price data'!P43 -> 147.926331 | AE45: -0.05442595607 | AF45: ='price data'!Q43 -> 51.372982 | AG45: -0.02157311207 | AH45: ='price data'!R43 -> 37.201645 | AI45: 0.04025993498 | AJ45: ='price data'!S43 -> 223.459259 | AK45: -0.006968601941 | AL45: ='price data'!T43 -> 187.580383 | AM45: -0.01462731108 | AN45: ='price data'!U43 -> 267.383209 | AO45: 0.08387616195 | AP45: ='price data'!V43 -> 528.210022 | AQ45: 0.04928161239 | AR45: ='price data'!W43 -> 37.260723 | AS45: 0.02084649146 | AT45: ='price data'!X43 -> 130.032471 | AU45: 0.0005931277598 | AV45: ='price data'!Y43 -> 135.767838 | AW45: 0.09619716005 | AX45: ='price data'!Z43 -> 95.815262 | AY45: -0.03216243053 | AZ45: ='price data'!AA43 -> 52.513683 | BA45: -0.0996189393 | BB45: ='price data'!AB43 -> 51.915409 | BC45: -0.008176299634 | BD45: ='price data'!AC43 -> 137.773804 | BE45: -0.003217159102 | BF45: ='price data'!AD43 -> 58.975861 | BG45: 0.09206459357 | BH45: ='price data'!AE43 -> 172.007996 | BI45: 0.06518361857 | BK45: ='price data'!AF43 -> 4297.5 | BL45: 0.02197087263
A46: ='price data'!A44 -> 2021-07-01 | B46: ='price data'!B44 -> 229.066666 | C46: 0.01097384635 | D46: ='price data'!C44 -> 56.584686 | E46: -0.0401743687 | F46: ='price data'!D44 -> 226.479996 | G46: -0.05614727591 | H46: ='price data'!E44 -> 199.820068 | I46: -0.05128604084 | J46: ='price data'!F44 -> 52.535709 | K46: 0.04374593873 | L46: ='price data'!G44 -> 95.854988 | M46: -0.02837276661 | N46: ='price data'!H44 -> 176.020004 | O46: 0.001421302689 | P46: ='price data'!I44 -> 13.441872 | Q46: -0.06319364982 | R46: ='price data'!J44 -> 80.394577 | S46: -0.03786582378 | T46: ='price data'!K44 -> 134.726501 | U46: 0.09849242264 | V46: ='price data'!L44 -> 317.204529 | W46: 0.03397660462 | X46: ='price data'!M44 -> 125.260529 | Y46: -0.0391633222 | Z46: ='price data'!N44 -> 50.981106 | AA46: -0.04406323288 | AB46: ='price data'!O44 -> 165.714874 | AC46: 0.0442880731 | AD46: ='price data'!P44 -> 144.350372 | AE46: -0.02447090315 | AF46: ='price data'!Q44 -> 54.553261 | AG46: 0.06006509827 | AH46: ='price data'!R44 -> 39.522499 | AI46: 0.06051712395 | AJ46: ='price data'!S44 -> 234.797165 | AK46: 0.04949290269 | AL46: ='price data'!T44 -> 186.928741 | AM46: -0.003479982814 | AN46: ='price data'!U44 -> 281.211304 | AO46: 0.05042348915 | AP46: ='price data'!V44 -> 517.570007 | AQ46: -0.02034917834 | AR46: ='price data'!W44 -> 40.733696 | AS46: 0.08911589229 | AT46: ='price data'!X44 -> 137.067505 | AU46: 0.05268934551 | AV46: ='price data'!Y44 -> 144.590363 | AW46: 0.06295830809 | AX46: ='price data'!Z44 -> 93.767494 | AY46: -0.02160373324 | AZ46: ='price data'!AA44 -> 51.501255 | BA46: -0.01946758791 | BB46: ='price data'!AB44 -> 51.683762 | BC46: -0.004471993044 | BD46: ='price data'!AC44 -> 139.2686 | BE46: 0.01079120369 | BF46: ='price data'!AD44 -> 53.824352 | BG46: -0.09140222043 | BH46: ='price data'!AE44 -> 166.379501 | BI46: -0.03326963441 | BK46: ='price data'!AF44 -> 4395.259766 | BL46: 0.02249317601
A47: ='price data'!A45 -> 2021-08-01 | B47: ='price data'!B45 -> 245.240005 | C47: 0.06822426419 | D47: ='price data'!C45 -> 48.789852 | E47: -0.1482160428 | F47: ='price data'!D45 -> 219.5 | G47: -0.03130439063 | H47: ='price data'!E45 -> 204.895676 | I47: 0.02508365043 | J47: ='price data'!F45 -> 56.38929 | K47: 0.07078613704 | L47: ='price data'!G45 -> 91.109795 | M47: -0.05077119009 | N47: ='price data'!H45 -> 181.300003 | O47: 0.02955548664 | P47: ='price data'!I45 -> 12.555384 | Q47: -0.06822503354 | R47: ='price data'!J45 -> 81.799156 | S47: 0.01732020205 | T47: ='price data'!K45 -> 144.697495 | U47: 0.07139851684 | V47: ='price data'!L45 -> 315.26181 | W47: -0.006143331242 | X47: ='price data'!M45 -> 124.709572 | Y47: -0.004408190339 | Z47: ='price data'!N45 -> 51.303772 | AA47: 0.006309184244 | AB47: ='price data'!O45 -> 166.609879 | AC47: 0.005386340655 | AD47: ='price data'!P45 -> 152.997086 | AE47: 0.05817539228 | AF47: ='price data'!Q45 -> 53.86454 | AG47: -0.01270511407 | AH47: ='price data'!R45 -> 44.698288 | AI47: 0.1230650964 | AJ47: ='price data'!S45 -> 229.718323 | AK47: -0.021868138 | AL47: ='price data'!T45 -> 183.906784 | AM47: -0.01629845952 | AN47: ='price data'!U45 -> 297.961029 | AO47: 0.05785634451 | AP47: ='price data'!V45 -> 569.190002 | AQ47: 0.09506950584 | AR47: ='price data'!W45 -> 44.232613 | AS47: 0.08240670622 | AT47: ='price data'!X45 -> 138.084717 | AU47: 0.007393846408 | AV47: ='price data'!Y45 -> 150.508408 | AW47: 0.04011428815 | AX47: ='price data'!Z45 -> 99.003807 | AY47: 0.05434005383 | AZ47: ='price data'!AA45 -> 53.989742 | BA47: 0.04718788925 | BB47: ='price data'!AB45 -> 51.533539 | BC47: -0.002910812521 | BD47: ='price data'!AC45 -> 144.690826 | BE47: 0.03819478889 | BF47: ='price data'!AD45 -> 50.972797 | BG47: -0.0544339059 | BH47: ='price data'!AE45 -> 173.539505 | BI47: 0.0421339383 | BK47: ='price data'!AF45 -> 4522.680176 | BL47: 0.02857814312
A48: ='price data'!A46 -> 2021-09-01 | B48: ='price data'!B46 -> 258.493347 | C48: 0.05263261339 | D48: ='price data'!C46 -> 52.473236 | E48: 0.07278090872 | F48: ='price data'!D46 -> 219.940002 | G48: 0.002002558461 | H48: ='price data'!E46 -> 186.531143 | I48: -0.09390274031 | J48: ='price data'!F46 -> 52.003887 | K48: -0.08096078107 | L48: ='price data'!G46 -> 96.80381 | M48: 0.06062103532 | N48: ='price data'!H46 -> 169.169998 | O48: -0.06924901964 | P48: ='price data'!I46 -> 13.644223 | Q48: 0.08316663104 | R48: ='price data'!J46 -> 79.952248 | S48: -0.02283736925 | T48: ='price data'!K46 -> 133.675995 | U48: -0.07922639757 | V48: ='price data'!L46 -> 317.272156 | W48: 0.006356505349 | X48: ='price data'!M46 -> 124.87796 | Y48: 0.001349330427 | Z48: ='price data'!N46 -> 50.892117 | AA48: -0.008056238475 | AB48: ='price data'!O46 -> 156.341415 | AC48: -0.06361285216 | AD48: ='price data'!P46 -> 156.574509 | AE48: 0.02311311707 | AF48: ='price data'!Q46 -> 50.191299 | AG48: -0.07063069146 | AH48: ='price data'!R46 -> 39.452984 | AI48: -0.1248255166 | AJ48: ='price data'!S46 -> 234.528061 | AK48: 0.02072136806 | AL48: ='price data'!T46 -> 166.926117 | AM48: -0.09687771919 | AN48: ='price data'!U46 -> 278.792816 | AO48: -0.06649379181 | AP48: ='price data'!V46 -> 610.340027 | AQ48: 0.06980192212 | AR48: ='price data'!W46 -> 41.294655 | AS48: -0.06872929498 | AT48: ='price data'!X46 -> 135.573044 | AU48: -0.01835682292 | AV48: ='price data'!Y46 -> 140.4785 | AW48: -0.06896449758 | AX48: ='price data'!Z46 -> 99.464233 | AY48: 0.004639808263 | AZ48: ='price data'!AA46 -> 55.950462 | BA48: 0.03567262654 | BB48: ='price data'!AB46 -> 50.60593 | BC48: -0.01816407532 | BD48: ='price data'!AC46 -> 136.672668 | BE48: -0.05701044923 | BF48: ='price data'!AD46 -> 55.82539 | BG48: 0.09093668556 | BH48: ='price data'!AE46 -> 164.251999 | BI48: -0.05500344023 | BK48: ='price data'!AF46 -> 4307.540039 | BL48: -0.04873779285
A49: ='price data'!A47 -> 2021-10-01 | B49: ='price data'!B47 -> 371.333344 | C49: 0.3622302039 | D49: ='price data'!C47 -> 54.185513 | E49: 0.03211033576 | F49: ='price data'!D47 -> 207.029999 | G49: -0.06049108551 | H49: ='price data'!E47 -> 198.230011 | I49: 0.06082981645 | J49: ='price data'!F47 -> 53.475243 | K49: 0.02790033335 | L49: ='price data'!G47 -> 109.24662 | M49: 0.1209215423 | N49: ='price data'!H47 -> 169.070007 | O49: -0.0005912429129 | P49: ='price data'!I47 -> 16.457863 | Q49: 0.1874871483 | R49: ='price data'!J47 -> 81.44339 | S49: 0.01847862121 | T49: ='price data'!K47 -> 148.046005 | U49: 0.1021041458 | V49: ='price data'!L47 -> 361.123535 | W49: 0.1294601602 | X49: ='price data'!M47 -> 112.446785 | Y49: -0.1048568529 | Z49: ='price data'!N47 -> 46.803936 | AA49: -0.08374073731 | AB49: ='price data'!O47 -> 157.677322 | AC49: 0.008508505398 | AD49: ='price data'!P47 -> 162.50499 | AE49: 0.03717671646 | AF49: ='price data'!Q47 -> 54.328884 | AG49: 0.07921433423 | AH49: ='price data'!R47 -> 39.052895 | AI49: -0.01019267522 | AJ49: ='price data'!S47 -> 238.846863 | AK49: 0.01824736214 | AL49: ='price data'!T47 -> 170.028275 | AM49: 0.0184134454 | AN49: ='price data'!U47 -> 327.941498 | AO49: 0.1623663217 | AP49: ='price data'!V47 -> 690.309998 | AQ49: 0.123124546 | AR49: ='price data'!W47 -> 41.995541 | AS49: 0.01683037328 | AT49: ='price data'!X47 -> 138.66658 | AU49: 0.02256178141 | AV49: ='price data'!Y47 -> 148.718552 | AW49: 0.0570011548 | AX49: ='price data'!Z47 -> 104.049812 | AY49: 0.04507163381 | AZ49: ='price data'!AA47 -> 60.548603 | BA49: 0.07897970579 | BB49: ='price data'!AB47 -> 49.650219 | BC49: -0.01906596175 | BD49: ='price data'!AC47 -> 146.517624 | BE49: 0.0695569393 | BF49: ='price data'!AD47 -> 61.18774 | BG49: 0.09171805883 | BH49: ='price data'!AE47 -> 168.621506 | BI49: 0.02625476602 | BK49: ='price data'!AF47 -> 4605.379883 | BL49: 0.06685817534
A50: ='price data'!A48 -> 2021-11-01 | B50: ='price data'!B48 -> 381.58667 | C50: 0.02723784655 | D50: ='price data'!C48 -> 57.610058 | E50: 0.06128358562 | F50: ='price data'!D48 -> 197.850006 | G50: -0.04535450731 | H50: ='price data'!E48 -> 188.909393 | I50: -0.0481605302 | J50: ='price data'!F48 -> 52.749573 | K50: -0.0136631216 | L50: ='price data'!G48 -> 107.700813 | M50: -0.0142507624 | N50: ='price data'!H48 -> 144.899994 | O50: -0.1542690638 | P50: ='price data'!I48 -> 18.491007 | Q50: 0.1164811489 | R50: ='price data'!J48 -> 73.770462 | S50: -0.09894977009 | T50: ='price data'!K48 -> 141.897507 | U50: -0.04241805476 | V50: ='price data'!L48 -> 389.169006 | W50: 0.07479360998 | X50: ='price data'!M48 -> 110.097717 | Y50: -0.02111177969 | Z50: ='price data'!N48 -> 46.994976 | AA50: 0.004073400428 | AB50: ='price data'!O48 -> 150.949295 | AC50: -0.04360669321 | AD50: ='price data'!P48 -> 152.841248 | AE50: -0.06130892104 | AF50: ='price data'!Q48 -> 50.550823 | AG50: -0.07207679297 | AH50: ='price data'!R48 -> 40.526402 | AI50: 0.03703665369 | AJ50: ='price data'!S48 -> 237.922791 | AK50: -0.003876392507 | AL50: ='price data'!T48 -> 161.80661 | AM50: -0.04956289005 | AN50: ='price data'!U48 -> 326.922943 | AO50: -0.00311073791 | AP50: ='price data'!V48 -> 641.900024 | AQ50: -0.07270820346 | AR50: ='price data'!W48 -> 51.587112 | AS50: 0.2057084279 | AT50: ='price data'!X48 -> 141.077682 | AU50: 0.01723832825 | AV50: ='price data'!Y48 -> 164.106674 | AW50: 0.09846106064 | AX50: ='price data'!Z48 -> 96.684532 | AY50: -0.07341631498 | AZ50: ='price data'!AA48 -> 56.580082 | BA50: -0.06778938274 | BB50: ='price data'!AB48 -> 47.661037 | BC50: -0.04088857164 | BD50: ='price data'!AC48 -> 137.898376 | BE50: -0.06062871348 | BF50: ='price data'!AD48 -> 56.793461 | BG50: -0.07452564679 | BH50: ='price data'!AE48 -> 175.3535 | BI50: 0.03914734269 | BK50: ='price data'!AF48 -> 4567 | BL50: -0.008368625696
A51: ='price data'!A49 -> 2021-12-01 | B51: ='price data'!B49 -> 352.26001 | C51: -0.07996843941 | D51: ='price data'!C49 -> 58.366646 | E51: 0.01304742603 | F51: ='price data'!D49 -> 201.320007 | G51: 0.01738651852 | H51: ='price data'!E49 -> 201.991882 | I51: 0.06696001048 | J51: ='price data'!F49 -> 60.954414 | K51: 0.1445705958 | L51: ='price data'!G49 -> 113.269814 | M51: 0.05041557424 | N51: ='price data'!H49 -> 154.889999 | O51: 0.06667137318 | P51: ='price data'!I49 -> 20.114227 | Q51: 0.08414286984 | R51: ='price data'!J49 -> 73.366615 | S51: -0.005489411946 | T51: ='price data'!K49 -> 144.852005 | U51: 0.02060755072 | V51: ='price data'!L49 -> 403.157806 | W51: 0.03531435147 | X51: ='price data'!M49 -> 127.344406 | Y51: 0.1455269665 | Z51: ='price data'!N49 -> 49.533981 | AA51: 0.05261821652 | AB51: ='price data'!O49 -> 166.690445 | AC51: 0.09919448386 | AD51: ='price data'!P49 -> 152.379364 | AE51: -0.003026560687 | AF51: ='price data'!Q49 -> 57.508587 | AG51: 0.1289550495 | AH51: ='price data'!R49 -> 44.386772 | AI51: 0.09098783417 | AJ51: ='price data'!S49 -> 262.197693 | AK51: 0.09715255919 | AL51: ='price data'!T49 -> 170.404694 | AM51: 0.05177430427 | AN51: ='price data'!U49 -> 333.197876 | AO51: 0.01901204091 | AP51: ='price data'!V49 -> 602.440002 | AQ51: -0.06344448704 | AR51: ='price data'!W49 -> 57.192596 | AS51: 0.1031525756 | AT51: ='price data'!X49 -> 159.617447 | AU51: 0.1234693212 | AV51: ='price data'!Y49 -> 176.54538 | AW51: 0.07306128622 | AX51: ='price data'!Z49 -> 103.455292 | AY51: 0.067686127 | AZ51: ='price data'!AA49 -> 56.272282 | BA51: -0.005454928055 | BB51: ='price data'!AB49 -> 49.263325 | BC51: 0.03306565968 | BD51: ='price data'!AC49 -> 141.879501 | BE51: 0.02846110476 | BF51: ='price data'!AD49 -> 58.855206 | BG51: 0.03565909613 | BH51: ='price data'!AE49 -> 166.716995 | BI51: -0.0505062023 | BK51: ='price data'!AF49 -> 4766.180176 | BL51: 0.04268864821
A52: ='price data'!A50 -> 2022-01-01 | B52: ='price data'!B50 -> 312.23999 | C52: -0.1205974768 | D52: ='price data'!C50 -> 52.493149 | E52: -0.1060619307 | F52: ='price data'!D50 -> 200.240005 | G52: -0.005379044585 | H52: ='price data'!E50 -> 196.930832 | I52: -0.02537494799 | J52: ='price data'!F50 -> 53.547924 | K52: -0.1295492447 | L52: ='price data'!G50 -> 126.763733 | M52: 0.1125522766 | N52: ='price data'!H50 -> 142.970001 | O52: -0.08008035607 | P52: ='price data'!I50 -> 19.659065 | Q52: -0.02288882054 | R52: ='price data'!J50 -> 73.438637 | S52: 0.0009811911331 | T52: ='price data'!K50 -> 135.303497 | U52: -0.06819218491 | V52: ='price data'!L50 -> 357.973877 | W52: -0.118868049 | X52: ='price data'!M50 -> 127.258659 | Y52: -0.0006735740062 | Z52: ='price data'!N50 -> 46.956291 | AA52: -0.05344172861 | AB52: ='price data'!O50 -> 167.879196 | AC52: 0.007106179741 | AD52: ='price data'!P50 -> 142.996979 | AE52: -0.0635497231 | AF52: ='price data'!Q50 -> 59.256866 | AG52: 0.02994737937 | AH52: ='price data'!R50 -> 42.749001 | AI52: -0.03759567043 | AJ52: ='price data'!S50 -> 253.766541 | AK52: -0.03268405823 | AL52: ='price data'!T50 -> 159.266937 | AM52: -0.06759451738 | AN52: ='price data'!U50 -> 308.093109 | AO52: -0.07833449648 | AP52: ='price data'!V50 -> 427.140015 | AQ52: -0.3438762152 | AR52: ='price data'!W50 -> 51.03265 | AS52: -0.1139588255 | AT52: ='price data'!X50 -> 156.563248 | AU52: -0.01931992717 | AV52: ='price data'!Y50 -> 173.771454 | AW52: -0.01583700073 | AX52: ='price data'!Z50 -> 106.638084 | AY52: 0.03030115069 | AZ52: ='price data'!AA50 -> 60.376167 | BA52: 0.07039235389 | BB52: ='price data'!AB50 -> 50.467419 | BC52: 0.02414807035 | BD52: ='price data'!AC50 -> 137.646317 | BE52: -0.03029063788 | BF52: ='price data'!AD50 -> 73.061638 | BG52: 0.2162231491 | BH52: ='price data'!AE50 -> 149.573502 | BI52: -0.10850981 | BK52: ='price data'!AF50 -> 4515.549805 | BL52: -0.05401822998
A53: ='price data'!A51 -> 2022-02-01 | B53: ='price data'!B51 -> 290.143341 | C53: -0.07339701067 | D53: ='price data'!C51 -> 46.510143 | E53: -0.121012248 | F53: ='price data'!D51 -> 205.339996 | G53: 0.0251504503 | H53: ='price data'!E51 -> 184.161194 | I53: -0.06704113204 | J53: ='price data'!F51 -> 53.960228 | K53: 0.007670228047 | L53: ='price data'!G51 -> 138.99321 | M53: 0.09210009927 | N53: ='price data'!H51 -> 148.460007 | O53: 0.0376807838 | P53: ='price data'!I51 -> 17.09301 | Q53: -0.1398689471 | R53: ='price data'!J51 -> 74.23925 | S53: 0.01084279928 | T53: ='price data'!K51 -> 135.057007 | U53: -0.00182341773 | V53: ='price data'!L51 -> 308.079132 | W53: -0.1501033424 | X53: ='price data'!M51 -> 116.721252 | Y53: -0.08643306958 | Z53: ='price data'!N51 -> 45.879051 | AA53: -0.02320858263 | AB53: ='price data'!O51 -> 160.356857 | AC53: -0.04584296139 | AD53: ='price data'!P51 -> 137.271301 | AE53: -0.04086423727 | AF53: ='price data'!Q51 -> 60.451523 | AG53: 0.01996011596 | AH53: ='price data'!R51 -> 45.897068 | AI53: 0.07105541034 | AJ53: ='price data'!S51 -> 239.408096 | AK53: -0.05824510401 | AL53: ='price data'!T51 -> 142.6035 | AM53: -0.1105135917 | AN53: ='price data'!U51 -> 296.016296 | AO53: -0.03998753237 | AP53: ='price data'!V51 -> 394.519989 | AQ53: -0.07944205526 | AR53: ='price data'!W51 -> 45.809181 | AS53: -0.1079810944 | AT53: ='price data'!X51 -> 152.935043 | AU53: -0.02344679322 | AV53: ='price data'!Y51 -> 164.167221 | AW53: -0.05685540449 | AX53: ='price data'!Z51 -> 106.724121 | AY53: 0.0008064877719 | AZ53: ='price data'!AA51 -> 59.799511 | BA53: -0.009596957313 | BB53: ='price data'!AB51 -> 51.497646 | BC53: 0.02020813813 | BD53: ='price data'!AC51 -> 133.068268 | BE53: -0.0338251852 | BF53: ='price data'!AD51 -> 75.427765 | BG53: 0.03187200226 | BH53: ='price data'!AE51 -> 153.563004 | BI53: 0.02632300814 | BK53: ='price data'!AF51 -> 4373.939941 | BL53: -0.03186276118
A54: ='price data'!A52 -> 2022-03-01 | B54: ='price data'!B52 -> 359.200012 | C54: 0.2135042897 | D54: ='price data'!C52 -> 43.54353 | E54: -0.06590929045 | F54: ='price data'!D52 -> 191.5 | G54: -0.06977931377 | H54: ='price data'!E52 -> 218.758926 | I54: 0.1721589005 | J54: ='price data'!F52 -> 53.950546 | K54: -0.0001794445479 | L54: ='price data'!G52 -> 158.818619 | M54: 0.133337707 | N54: ='price data'!H52 -> 137.160004 | O54: -0.07916745208 | P54: ='price data'!I52 -> 16.460295 | Q54: -0.03771849068 | R54: ='price data'!J52 -> 71.122299 | S54: -0.04289206973 | T54: ='price data'!K52 -> 139.067505 | U54: 0.02926249934 | V54: ='price data'!L52 -> 291.98407 | W54: -0.05365742607 | X54: ='price data'!M52 -> 125.368553 | Y54: 0.07146919254 | Z54: ='price data'!N52 -> 48.031162 | AA54: 0.04584140094 | AB54: ='price data'!O52 -> 173.80127 | AC54: 0.08051083212 | AD54: ='price data'!P52 -> 131.966309 | AE54: -0.03941261173 | AF54: ='price data'!Q52 -> 60.218414 | AG54: -0.003863585177 | AH54: ='price data'!R52 -> 56.519657 | AI54: 0.2081872521 | AJ54: ='price data'!S52 -> 243.208588 | AK54: 0.01574985154 | AL54: ='price data'!T52 -> 144.204758 | AM54: 0.01116616829 | AN54: ='price data'!U52 -> 306.079468 | AO54: 0.03343026072 | AP54: ='price data'!V52 -> 374.589996 | AQ54: -0.05183772437 | AR54: ='price data'!W52 -> 50.52282 | AS54: 0.09794058586 | AT54: ='price data'!X52 -> 149.903595 | AU54: -0.02002088821 | AV54: ='price data'!Y52 -> 173.823639 | AW54: 0.05715566765 | AX54: ='price data'!Z52 -> 114.088554 | AY54: 0.06672773983 | AZ54: ='price data'!AA52 -> 54.896545 | BA54: -0.08554706974 | BB54: ='price data'!AB52 -> 48.878143 | BC54: -0.05220577474 | BD54: ='price data'!AC52 -> 146.615311 | BE54: 0.09694993489 | BF54: ='price data'!AD52 -> 80.319305 | BG54: 0.06283455971 | BH54: ='price data'!AE52 -> 162.997498 | BI54: 0.05962391867 | BK54: ='price data'!AF52 -> 4530.410156 | BL54: 0.03514828631
A55: ='price data'!A53 -> 2022-04-01 | B55: ='price data'!B53 -> 290.253326 | C55: -0.2131252902 | D55: ='price data'!C53 -> 37.739716 | E55: -0.1430481127 | F55: ='price data'!D53 -> 148.839996 | G55: -0.252015932 | H55: ='price data'!E53 -> 206.702713 | I55: -0.05668873707 | J55: ='price data'!F53 -> 47.39056 | K55: -0.1296447594 | L55: ='price data'!G53 -> 152.810379 | M55: -0.03856499023 | N55: ='price data'!H53 -> 111.629997 | O55: -0.2059583526 | P55: ='price data'!I53 -> 13.783428 | Q55: -0.1774841163 | R55: ='price data'!J53 -> 57.999233 | S55: -0.20397113 | T55: ='price data'!K53 -> 114.109497 | U55: -0.1978009753 | V55: ='price data'!L53 -> 294.796204 | W55: 0.00958503772 | X55: ='price data'!M53 -> 127.480202 | Y55: 0.01670325089 | Z55: ='price data'!N53 -> 42.245323 | AA55: -0.1283563591 | AB55: ='price data'!O53 -> 176.968796 | AC55: 0.01806090319 | AD55: ='price data'!P53 -> 115.547958 | AE55: -0.1328609906 | AF55: ='price data'!Q53 -> 63.233784 | AG55: 0.04886052935 | AH55: ='price data'!R53 -> 53.160202 | AI55: -0.06127845546 | AJ55: ='price data'!S53 -> 245.057617 | AK55: 0.007573892356 | AL55: ='price data'!T53 -> 139.691101 | AM55: -0.0318006567 | AN55: ='price data'!U53 -> 275.512238 | AO55: -0.1052127189 | AP55: ='price data'!V53 -> 190.360001 | AQ55: -0.6769150623 | AR55: ='price data'!W53 -> 47.887863 | AS55: -0.05356302514 | AT55: ='price data'!X53 -> 157.506714 | AU55: 0.04947569845 | AV55: ='price data'!Y53 -> 156.940002 | AW55: -0.1021776368 | AX55: ='price data'!Z53 -> 104.762207 | AY55: -0.0852818497 | AZ55: ='price data'!AA53 -> 46.81213 | BA55: -0.1593080566 | BB55: ='price data'!AB53 -> 44.425953 | BC55: -0.09550649745 | BD55: ='price data'!AC53 -> 151.20488 | BE55: 0.0308235137 | BF55: ='price data'!AD53 -> 82.906181 | BG55: 0.03169961605 | BH55: ='price data'!AE53 -> 124.281502 | BI55: -0.2711856809 | BK55: ='price data'!AF53 -> 4131.930176 | BL55: -0.0920678248
A56: ='price data'!A54 -> 2022-05-01 | B56: ='price data'!B54 -> 252.753326 | C56: -0.1383400625 | D56: ='price data'!C54 -> 38.506256 | E56: 0.02010770686 | F56: ='price data'!D54 -> 131.399994 | G56: -0.1246258162 | H56: ='price data'!E54 -> 212.93222 | I56: 0.0296923072 | J56: ='price data'!F54 -> 43.886589 | K56: -0.07681426909 | L56: ='price data'!G54 -> 170.357208 | M56: 0.1086996563 | N56: ='price data'!H54 -> 110.440002 | O56: -0.01071739898 | P56: ='price data'!I54 -> 13.404792 | Q56: -0.02785474601 | R56: ='price data'!J54 -> 60.908924 | S56: 0.04894991296 | T56: ='price data'!K54 -> 113.762001 | U56: -0.003049931847 | V56: ='price data'!L54 -> 297.102356 | W56: 0.007792428721 | X56: ='price data'!M54 -> 133.873016 | Y56: 0.04893063475 | Z56: ='price data'!N54 -> 43.049717 | AA56: 0.01886200765 | AB56: ='price data'!O54 -> 176.056778 | AC56: -0.005166877961 | AD56: ='price data'!P54 -> 128.95575 | AE56: 0.1097836577 | AF56: ='price data'!Q54 -> 62.029987 | AG56: -0.01922078588 | AH56: ='price data'!R54 -> 52.184872 | AI56: -0.01851738923 | AJ56: ='price data'!S54 -> 248.057404 | AK56: 0.0121668328 | AL56: ='price data'!T54 -> 144.601868 | AM56: 0.03455066459 | AN56: ='price data'!U54 -> 269.903137 | AO56: -0.02056890588 | AP56: ='price data'!V54 -> 197.440002 | AQ56: 0.03651772934 | AR56: ='price data'!W54 -> 51.762226 | AS56: 0.07779856519 | AT56: ='price data'!X54 -> 145.890808 | AU56: -0.07660963444 | AV56: ='price data'!Y54 -> 148.169678 | AW56: -0.0575054894 | AX56: ='price data'!Z54 -> 102.580261 | AY56: -0.02104756031 | AZ56: ='price data'!AA54 -> 48.157921 | BA56: 0.02834327409 | BB56: ='price data'!AB54 -> 49.813232 | BC56: 0.1144568259 | BD56: ='price data'!AC54 -> 127.129128 | BE56: -0.1734324125 | BF56: ='price data'!AD54 -> 93.360626 | BG56: 0.1187600741 | BH56: ='price data'!AE54 -> 120.209503 | BI56: -0.03331309119 | BK56: ='price data'!AF54 -> 4132.149902 | BL56: 5.317615463e-05
A57: ='price data'!A55 -> 2022-06-01 | B57: ='price data'!B55 -> 224.473328 | C57: =LN(B57/B56) -> -0.1186571232 | D57: ='price data'!C55 -> 31.61734 | E57: -0.1971150173 | F57: ='price data'!D55 -> 136.720001 | G57: 0.03968898573 | H57: ='price data'!E55 -> 176.343597 | I57: -0.1885395516 | J57: ='price data'!F55 -> 41.538826 | K57: -0.05498022753 | L57: ='price data'!G55 -> 142.375 | M57: -0.1794330343 | N57: ='price data'!H55 -> 94.400002 | O57: -0.1569313108 | P57: ='price data'!I55 -> 10.906091 | Q57: -0.2062908145 | R57: ='price data'!J55 -> 49.534695 | S57: -0.2067063661 | T57: ='price data'!K55 -> 108.962997 | U57: -0.04310020803 | V57: ='price data'!L55 -> 269.153595 | W57: -0.09879451065 | X57: ='price data'!M55 -> 137.79039 | Y57: 0.02884190853 | Z57: ='price data'!N55 -> 36.542561 | AA57: -0.163878021 | AB57: ='price data'!O55 -> 175.194458 | AC57: -0.004909999704 | AD57: ='price data'!P55 -> 109.821594 | AE57: -0.1606121459 | AF57: ='price data'!Q55 -> 61.569996 | AG57: -0.007443255453 | AH57: ='price data'!R55 -> 46.809402 | AI57: -0.1087085643 | AJ57: ='price data'!S55 -> 242.81517 | AK57: -0.02135965048 | AL57: ='price data'!T55 -> 126.612892 | AM57: -0.132849891 | AN57: ='price data'!U55 -> 255.56575 | AO57: -0.05458342769 | AP57: ='price data'!V55 -> 174.869995 | AQ57: -0.1213919387 | AR57: ='price data'!W55 -> 51.584187 | AS57: -0.003445483418 | AT57: ='price data'!X55 -> 141.855804 | AU57: -0.02804737461 | AV57: ='price data'!Y55 -> 136.304245 | AW57: -0.08346860729 | AX57: ='price data'!Z55 -> 93.51226 | AY57: -0.09255297562 | AZ57: ='price data'!AA55 -> 46.396751 | BA57: -0.03725619624 | BB57: ='price data'!AB55 -> 49.28878 | BC57: -0.01058418261 | BD57: ='price data'!AC55 -> 120.59816 | BE57: -0.05273929869 | BF57: ='price data'!AD55 -> 84.138573 | BG57: -0.104004575 | BH57: ='price data'!AE55 -> 106.209999 | BI57: -0.123817822 | BK57: ='price data'!AF55 -> 3785.379883 | BL57: -0.08765158167
A58: ='price data'!A56 -> 2022-07-01 | B58: ='price data'!B56 -> 297.149994 | C58: 0.2804801477 | D58: ='price data'!C56 -> 36.097126 | E58: 0.1325075457 | F58: ='price data'!D56 -> 159.309998 | G58: 0.1529169309 | H58: ='price data'!E56 -> 195.570129 | I58: 0.1034846837 | J58: ='price data'!F56 -> 44.198322 | K58: 0.06205826843 | L58: ='price data'!G56 -> 161.059387 | M58: 0.1233087386 | N58: ='price data'!H56 -> 106.099998 | O58: 0.1168409324 | P58: ='price data'!I56 -> 14.394472 | Q58: 0.2775228035 | R58: ='price data'!J56 -> 57.569984 | S58: 0.1503279876 | T58: ='price data'!K56 -> 116.32 | U58: 0.06533666626 | V58: ='price data'!L56 -> 297.191254 | W58: 0.09909368263 | X58: ='price data'!M56 -> 127.640793 | Y58: -0.07651360322 | Z58: ='price data'!N56 -> 35.468067 | AA58: -0.02984486553 | AB58: ='price data'!O56 -> 172.243469 | AC58: -0.01698755223 | AD58: ='price data'!P56 -> 112.503502 | AE58: 0.02412717364 | AF58: ='price data'!Q56 -> 63.256905 | AG58: 0.02702961765 | AH58: ='price data'!R56 -> 45.929188 | AI58: -0.01898326108 | AJ58: ='price data'!S56 -> 260.469269 | AK58: 0.0701843483 | AL58: ='price data'!T56 -> 140.143967 | AM58: 0.1015358929 | AN58: ='price data'!U56 -> 279.358093 | AO58: 0.08901473122 | AP58: ='price data'!V56 -> 224.899994 | AQ58: 0.2516130202 | AR58: ='price data'!W56 -> 49.69516 | AS58: -0.03730762798 | AT58: ='price data'!X56 -> 137.041458 | AU58: -0.03452758369 | AV58: ='price data'!Y56 -> 162.015808 | AW58: 0.172804428 | AX58: ='price data'!Z56 -> 97.724609 | AY58: 0.04406085995 | AZ58: ='price data'!AA56 -> 49.370525 | BA58: 0.06212415097 | BB58: ='price data'!AB56 -> 44.860077 | BC58: -0.0941482234 | BD58: ='price data'!AC56 -> 130.983612 | BE58: 0.08260818901 | BF58: ='price data'!AD56 -> 95.230637 | BG58: 0.1238365891 | BH58: ='price data'!AE56 -> 134.949997 | BI58: 0.2394860603 | BK58: ='price data'!AF56 -> 4130.290039 | BL58: 0.08720138463
A59: ='price data'!A57 -> 2022-08-01 | B59: ='price data'!B57 -> 275.609985 | C59: -0.07525027309 | D59: ='price data'!C57 -> 38.038368 | E59: 0.05238208457 | F59: ='price data'!D57 -> 160.25 | G59: 0.00588311877 | H59: ='price data'!E57 -> 183.482285 | I59: -0.06380090789 | J59: ='price data'!F57 -> 43.957218 | K59: -0.005469981834 | L59: ='price data'!G57 -> 155.434418 | M59: -0.03554926686 | N59: ='price data'!H57 -> 112.080002 | O59: 0.0548308931 | P59: ='price data'!I57 -> 14.933408 | Q59: 0.03675660675 | R59: ='price data'!J57 -> 57.203892 | S59: -0.006379382736 | T59: ='price data'!K57 -> 108.220001 | U59: -0.07217881233 | V59: ='price data'!L57 -> 284.827209 | W59: -0.04249317222 | X59: ='price data'!M57 -> 125.35714 | Y59: -0.01805323068 | Z59: ='price data'!N57 -> 31.179859 | AA59: -0.1288604291 | AB59: ='price data'!O57 -> 159.235397 | AC59: -0.07852540169 | AD59: ='price data'!P57 -> 111.894966 | AE59: -0.005423722338 | AF59: ='price data'!Q57 -> 60.831913 | AG59: -0.03908975547 | AH59: ='price data'!R57 -> 47.412689 | AI59: 0.03178907419 | AJ59: ='price data'!S57 -> 249.501404 | AK59: -0.04302034251 | AL59: ='price data'!T57 -> 121.662254 | AM59: -0.1414214342 | AN59: ='price data'!U57 -> 260.182922 | AO59: -0.07110951651 | AP59: ='price data'!V57 -> 223.559998 | AQ59: -0.005976006831 | AR59: ='price data'!W57 -> 44.845638 | AS59: -0.1026812178 | AT59: ='price data'!X57 -> 136.967941 | AU59: -0.0005366020438 | AV59: ='price data'!Y57 -> 156.741913 | AW59: -0.03309332424 | AX59: ='price data'!Z57 -> 93.580673 | AY59: -0.04332953353 | AZ59: ='price data'!AA57 -> 45.819603 | BA59: -0.07464157355 | BB59: ='price data'!AB57 -> 41.117058 | BC59: -0.08712517365 | BD59: ='price data'!AC57 -> 131.479568 | BE59: 0.003779246981 | BF59: ='price data'!AD57 -> 93.914124 | BG59: -0.01392091701 | BH59: ='price data'!AE57 -> 126.769997 | BI59: -0.06252991995 | BK59: ='price data'!AF57 -> 3955 | BL59: -0.04336703065
A60: ='price data'!A58 -> 2022-09-01 | B60: ='price data'!B58 -> 265.25 | C60: -0.03831399103 | D60: ='price data'!C58 -> 32.018795 | E60: -0.1722722604 | F60: ='price data'!D58 -> 121.080002 | G60: -0.2802835951 | H60: ='price data'!E58 -> 162.989395 | I60: -0.118432986 | J60: ='price data'!F58 -> 39.31773 | K60: -0.1115412806 | L60: ='price data'!G58 -> 142.567184 | M60: -0.08641053819 | N60: ='price data'!H58 -> 94.330002 | O60: -0.172413626 | P60: ='price data'!I58 -> 11.084138 | Q60: -0.2980857734 | R60: ='price data'!J58 -> 48.222939 | S60: -0.1707871173 | T60: ='price data'!K58 -> 95.650002 | U60: -0.1234704847 | V60: ='price data'!L58 -> 274.28067 | W60: -0.03773078702 | X60: ='price data'!M58 -> 117.410133 | Y60: -0.06549356807 | Z60: ='price data'!N58 -> 25.426588 | AA60: -0.2039769433 | AB60: ='price data'!O58 -> 162.312347 | AC60: 0.01913895514 | AD60: ='price data'!P58 -> 102.813889 | AE60: -0.08464017681 | AF60: ='price data'!Q58 -> 55.222878 | AG60: -0.0967372122 | AH60: ='price data'!R58 -> 43.508492 | AI60: -0.08593375586 | AJ60: ='price data'!S58 -> 229.447769 | AK60: -0.08378912489 | AL60: ='price data'!T58 -> 109.2211 | AM60: -0.1078745277 | AN60: ='price data'!U58 -> 232.245483 | AO60: -0.1135900012 | AP60: ='price data'!V58 -> 235.440002 | AQ60: 0.05177628696 | AR60: ='price data'!W58 -> 43.388126 | AS60: -0.03304051705 | AT60: ='price data'!X58 -> 125.360321 | AU60: -0.08855473247 | AV60: ='price data'!Y58 -> 137.971115 | AW60: -0.1275562348 | AX60: ='price data'!Z58 -> 84.820938 | AY60: -0.09828145442 | AZ60: ='price data'!AA58 -> 43.031105 | BA60: -0.06278878637 | BB60: ='price data'!AB58 -> 37.340702 | BC60: -0.09633913374 | BD60: ='price data'!AC58 -> 129.212891 | BE60: -0.01739010121 | BF60: ='price data'!AD58 -> 86.612747 | BG60: -0.08093379151 | BH60: ='price data'!AE58 -> 113 | BI60: -0.1149865786 | BK60: ='price data'!AF58 -> 3585.620117 | BL60: -0.09804916667
A61: ='price data'!A59 -> 2022-10-01 | B61: ='price data'!B59 -> 227.539993 | C61: -0.1533467611 | D61: ='price data'!C59 -> 39.162907 | E61: 0.2014069747 | F61: ='price data'!D59 -> 142.509995 | G61: 0.1629606369 | H61: ='price data'!E59 -> 215.021255 | I61: 0.2770517464 | J61: ='price data'!F59 -> 44.655106 | K61: 0.1272930947 | L61: ='price data'!G59 -> 179.511398 | M61: 0.2304253492 | N61: ='price data'!H59 -> 106.540001 | O61: 0.121721217 | P61: ='price data'!I59 -> 13.231689 | Q61: 0.1770995571 | R61: ='price data'!J59 -> 60.682976 | S61: 0.2298283767 | T61: ='price data'!K59 -> 94.510002 | U61: -0.01199004663 | V61: ='price data'!L59 -> 294.349274 | W61: 0.07061514385 | X61: ='price data'!M59 -> 136.660614 | Y61: 0.1518273668 | Z61: ='price data'!N59 -> 28.05114 | AA61: 0.09823387466 | AB61: ='price data'!O59 -> 172.854309 | AC61: 0.06292654839 | AD61: ='price data'!P59 -> 123.848915 | AE61: 0.1861419444 | AF61: ='price data'!Q59 -> 59.42852 | AG61: 0.07339692188 | AH61: ='price data'!R59 -> 47.028954 | AI61: 0.07780731715 | AJ61: ='price data'!S59 -> 271.132996 | AK61: 0.1669340431 | AL61: ='price data'!T59 -> 124.334145 | AM61: 0.129598391 | AN61: ='price data'!U59 -> 231.477661 | AO61: -0.003311556525 | AP61: ='price data'!V59 -> 291.880005 | AQ61: 0.2148866636 | AR61: ='price data'!W59 -> 46.154419 | AS61: 0.06180690014 | AT61: ='price data'!X59 -> 133.720993 | AU61: 0.06456332882 | AV61: ='price data'!Y59 -> 153.086044 | AW61: 0.1039557907 | AX61: ='price data'!Z59 -> 104.013931 | AY61: 0.2039824194 | AZ61: ='price data'!AA59 -> 44.266495 | BA61: 0.02830484408 | BB61: ='price data'!AB59 -> 36.750645 | BC61: -0.01592816163 | BD61: ='price data'!AC59 -> 141.795456 | BE61: 0.09292420654 | BF61: ='price data'!AD59 -> 109.925072 | BG61: 0.2383519713 | BH61: ='price data'!AE59 -> 102.440002 | BI61: -0.09811053786 | BK61: ='price data'!AF59 -> 3871.97998 | BL61: 0.0768345644
A62: ='price data'!A60 -> 2022-11-01 | B62: ='price data'!B60 -> 194.699997 | C62: -0.1558661194 | D62: ='price data'!C60 -> 40.470001 | E62: 0.03283093478 | F62: ='price data'!D60 -> 178.880005 | G62: 0.2273030803 | H62: ='price data'!E60 -> 236.410004 | I62: 0.09483071904 | J62: ='price data'!F60 -> 49.32589 | K62: 0.09948043845 | L62: ='price data'!G60 -> 181.902893 | M62: 0.01323428522 | N62: ='price data'!H60 -> 97.870003 | O62: -0.08488041278 | P62: ='price data'!I60 -> 13.756207 | Q62: 0.03887550606 | R62: ='price data'!J60 -> 67.046852 | S62: 0.09972846114 | T62: ='price data'!K60 -> 100.989998 | U62: 0.06631581207 | V62: ='price data'!L60 -> 322.041718 | W62: 0.08991402714 | X62: ='price data'!M60 -> 147.145599 | Y62: 0.07392198373 | Z62: ='price data'!N60 -> 29.669285 | AA62: 0.05608306274 | AB62: ='price data'!O60 -> 176.858459 | AC62: 0.02290065082 | AD62: ='price data'!P60 -> 137.166794 | AE62: 0.1021352645 | AF62: ='price data'!Q60 -> 63.162045 | AG62: 0.06092932113 | AH62: ='price data'!R60 -> 48.918461 | AI62: 0.03939139621 | AJ62: ='price data'!S60 -> 271.262268 | AK62: 0.0004766708378 | AL62: ='price data'!T60 -> 124.512054 | AM62: 0.001429871391 | AN62: ='price data'!U60 -> 254.422989 | AO62: 0.09451482084 | AP62: ='price data'!V60 -> 305.529999 | AQ62: 0.04570519416 | AR62: ='price data'!W60 -> 49.703999 | AS62: 0.0740926833 | AT62: ='price data'!X60 -> 149.160004 | AU62: 0.1092640946 | AV62: ='price data'!Y60 -> 147.784851 | AW62: -0.03524263576 | AX62: ='price data'!Z60 -> 106.822174 | AY62: 0.0266406846 | AZ62: ='price data'!AA60 -> 46.262886 | BA62: 0.04411197101 | BB62: ='price data'!AB60 -> 38.98 | BC62: 0.05889291755 | BD62: ='price data'!AC60 -> 151.847565 | BE62: 0.06849158735 | BF62: ='price data'!AD60 -> 110.450844 | BG62: 0.004771601245 | BH62: ='price data'!AE60 -> 96.540001 | BI62: -0.05931984026 | BK62: ='price data'!AF60 -> 4080.110107 | BL62: 0.05235797612
A63: ='price data'!A61 -> 2022-12-01 | B63: ='price data'!B61 -> 123.18 | C63: -0.4578131967 | D63: ='price data'!C61 -> 33.565353 | E63: -0.1870666094 | F63: ='price data'!D61 -> 190.490005 | G63: 0.06288450808 | H63: ='price data'!E61 -> 239.559998 | I63: 0.01323629631 | J63: ='price data'!F61 -> 47.262379 | K63: -0.04273448629 | L63: ='price data'!G61 -> 179.490005 | M63: -0.01335346581 | N63: ='price data'!H61 -> 86.879997 | O63: -0.1191122764 | P63: ='price data'!I61 -> 11.63 | Q63: -0.1679021739 | R63: ='price data'!J61 -> 65.346703 | S63: -0.02568467121 | T63: ='price data'!K61 -> 88.230003 | U63: -0.135074407 | V63: ='price data'!L61 -> 315.859985 | W63: -0.01938206621 | X63: ='price data'!M61 -> 140.889999 | Y63: -0.04344312901 | Z63: ='price data'!N61 -> 26.43 | AA63: -0.115612607 | AB63: ='price data'!O61 -> 176.649994 | AC63: -0.001179406164 | AD63: ='price data'!P61 -> 133.11673 | AE63: -0.02997124729 | AF63: ='price data'!Q61 -> 63.610001 | AG63: 0.007067139461 | AH63: ='price data'!R61 -> 44.580002 | AI63: -0.09286947798 | AJ63: ='price data'!S61 -> 263.529999 | AK63: -0.02891892178 | AL63: ='price data'!T61 -> 119.919998 | AM63: -0.03757769338 | AN63: ='price data'!U61 -> 239.820007 | AO63: -0.05910952181 | AP63: ='price data'!V61 -> 294.880005 | AQ63: -0.03547945931 | AR63: ='price data'!W61 -> 51.240002 | AS63: 0.03043512342 | AT63: ='price data'!X61 -> 151.559998 | AU63: 0.01596199083 | AV63: ='price data'!Y61 -> 129.929993 | AW63: -0.1287617166 | AX63: ='price data'!Z61 -> 99.459999 | AY63: -0.07140998347 | AZ63: ='price data'!AA61 -> 43.029999 | BA63: -0.07244251776 | BB63: ='price data'!AB61 -> 39.400002 | BC63: 0.01071717299 | BD63: ='price data'!AC61 -> 141.257477 | BE63: -0.07229285266 | BF63: ='price data'!AD61 -> 110.300003 | BG63: -0.001366617846 | BH63: ='price data'!AE61 -> 84 | BI63: -0.1391406417 | BK63: ='price data'!AF61 -> 3839.5 | BL63: -0.06078182527
A66: Stand Dev | C66: =STDEV(C5:C64) -> 0.1972789188 | E66: =STDEV(E5:E64) -> 0.1156337846 | G66: =STDEV(G5:G64) -> 0.1398086124 | I66: =STDEV(I5:I64) -> 0.09090770778 | K66: =STDEV(K5:K64) -> 0.0782885692 | M66: =STDEV(M5:M64) -> 0.09342011177 | O66: =STDEV(O5:O64) -> 0.09345668131 | Q66: =STDEV(Q5:Q64) -> 0.1244481179 | S66: =STDEV(S5:S64) -> 0.1244487224 | U66: =STDEV(U5:U64) -> 0.07416128504 | W66: =STDEV(W5:W64) -> 0.07141792731 | Y66: =STDEV(Y5:Y64) -> 0.07840875542 | AA66: =STDEV(AA5:AA64) -> 0.08339339334 | AC66: =STDEV(AC5:AC64) -> 0.05157098991 | AE66: =STDEV(AE5:AE64) -> 0.08037487691 | AG66: =STDEV(AG5:AG64) -> 0.05740802067 | AI66: =STDEV(AI5:AI64) -> 0.07754620886 | AK66: =STDEV(AK5:AK64) -> 0.05572780938 | AM66: =STDEV(AM5:AM64) -> 0.0694688052 | AO66: =STDEV(AO5:AO64) -> 0.06090956554 | AQ66: =STDEV(AQ5:AQ64) -> 0.134748595 | AS66: =STDEV(AS5:AS64) -> 0.07345038062 | AU66: =STDEV(AU5:AU64) -> 0.04971711661 | AW66: =STDEV(AW5:AW64) -> 0.09281806793 | AY66: =STDEV(AY5:AY64) -> 0.09775485537 | BA66: =STDEV(BA5:BA64) -> 0.08877047748 | BC66: =STDEV(BC5:BC64) -> 0.04978412566 | BE66: =STDEV(BE5:BE64) -> 0.05844974892 | BG66: =STDEV(BG5:BG64) -> 0.1001490752 | BI66: =STDEV(BI5:BI64) -> 0.09447829474 | BL66: =STDEV(BL5:BL64) -> 0.05443176025

Sheet Corr. Matrix
A2: Correlation Matrix
C4: _1 | D4: _2 | E4: _3 | F4: _4 | G4: _5 | H4: _6 | I4: _7 | J4: _8 | K4: _9 | L4: _10 | M4: _11 | N4: _12 | O4: _13 | P4: _14 | Q4: _15 | R4: _16 | S4: _17 | T4: _18 | U4: _19 | V4: _20 | W4: _21 | X4: _22 | Y4: _23 | Z4: _24 | AA4: _25 | AB4: _26 | AC4: _27 | AD4: _28 | AE4: _29 | AF4: _30
C5: ='Returns & Stand Dev'!B2 -> TSLA | D5: ='Returns & Stand Dev'!D2 -> GM | E5: ='Returns & Stand Dev'!F2 -> BA | F5: ='Returns & Stand Dev'!H2 -> CAT | G5: ='Returns & Stand Dev'!J2 -> CSCO | H5: ='Returns & Stand Dev'!L2 -> CVX | I5: ='Returns & Stand Dev'!N2 -> DIS | J5: ='Returns & Stand Dev'!P2 -> F | K5: ='Returns & Stand Dev'!R2 -> GE | L5: ='Returns & Stand Dev'!T2 -> GOOGL | M5: ='Returns & Stand Dev'!V2 -> HD | N5: ='Returns & Stand Dev'!X2 -> IBM | O5: ='Returns & Stand Dev'!Z2 -> INTC | P5: ='Returns & Stand Dev'!AB2 -> JNJ | Q5: ='Returns & Stand Dev'!AD2 -> JPM | R5: ='Returns & Stand Dev'!AF2 -> KO | S5: ='Returns & Stand Dev'!AH2 -> KR | T5: ='Returns & Stand Dev'!AJ2 -> MCD | U5: ='Returns & Stand Dev'!AL2 -> MMM | V5: ='Returns & Stand Dev'!AN2 -> MSFT | W5: ='Returns & Stand Dev'!AP2 -> NFLX | X5: ='Returns & Stand Dev'!AR2 -> PFE | Y5: ='Returns & Stand Dev'!AT2 -> PG | Z5: ='Returns & Stand Dev'!AV2 -> AAPL | AA5: ='Returns & Stand Dev'!AX2 -> PRU | AB5: ='Returns & Stand Dev'!AZ2 -> TFC | AC5: ='Returns & Stand Dev'!BB2 -> VZ | AD5: ='Returns & Stand Dev'!BD2 -> WMT | AE5: ='Returns & Stand Dev'!BF2 -> XOM | AF5: ='Returns & Stand Dev'!BH2 -> AMZN
A6: _1 | B6: =C5 -> TSLA | C6: =CORREL(INDIRECT(C$4),INDIRECT($A6)) -> 1 | D6: 0.4045528507 | E6: 0.1753315565 | F6: 0.08933255225 | G6: 0.1605738567 | H6: 0.2229676097 | I6: 0.3439929841 | J6: 0.293335516 | K6: 0.1948463462 | L6: 0.4841894629 | M6: =CORREL(INDIRECT(M$4),INDIRECT($A6)) -> 0.3466542439 | N6: 0.04503933117 | O6: 0.2551350842 | P6: 0.2990338763 | Q6: 0.2341421089 | R6: 0.1927503127 | S6: 0.2702603674 | T6: 0.3079568271 | U6: 0.3032976617 | V6: 0.5406210229 | W6: =CORREL(INDIRECT(W$4),INDIRECT($A6)) -> 0.330707801 | X6: 0.1640516687 | Y6: 0.1282961545 | Z6: 0.6040942031 | AA6: 0.3223198674 | AB6: 0.3112642491 | AC6: 0.1158380152 | AD6: 0.3309885159 | AE6: 0.1525210865 | AF6: 0.5214574348
A7: _2 | B7: =D5 -> GM | C7: 0.4045528507 | D7: 1 | E7: 0.5622620386 | F7: 0.4808078337 | G7: 0.3990014099 | H7: 0.5497972305 | I7: 0.5189543083 | J7: 0.810320282 | K7: 0.5900992721 | L7: 0.5181555349 | M7: 0.5477846298 | N7: 0.326929407 | O7: 0.4562364577 | P7: 0.1942486244 | Q7: 0.6898103093 | R7: 0.3265514343 | S7: 0.1523279801 | T7: 0.5055570521 | U7: 0.5678900806 | V7: 0.3861692029 | W7: 0.3063641169 | X7: 0.1796838142 | Y7: 0.2703383895 | Z7: 0.4402005837 | AA7: 0.6223890601 | AB7: 0.6505645629 | AC7: 0.166686568 | AD7: 0.2657352332 | AE7: 0.5193470053 | AF7: 0.2572938577
A8: _3 | B8: =E5 -> BA | C8: 0.1753315565 | D8: 0.5622620386 | E8: 1 | F8: 0.4192605653 | G8: 0.4456495526 | H8: 0.4997797931 | I8: 0.5030849111 | J8: 0.5550084804 | K8: 0.6089728217 | L8: 0.354349861 | M8: 0.3503786002 | N8: 0.4278311993 | O8: 0.3609304678 | P8: 0.1639159706 | Q8: 0.6022384118 | R8: 0.4444307146 | S8: 0.1152996363 | T8: 0.4199315977 | U8: 0.388540332 | V8: 0.3578097158 | W8: 0.2681636141 | X8: 0.07781465321 | Y8: 0.2805750744 | Z8: 0.2962985303 | AA8: 0.584870783 | AB8: 0.6073458609 | AC8: 0.2340215436 | AD8: 0.1376400362 | AE8: 0.4921353075 | AF8: 0.1568584075
A9: _4 | B9: =F5 -> CAT | C9: 0.08933255225 | D9: 0.4808078337 | E9: 0.4192605653 | F9: 1 | G9: 0.4713028398 | H9: 0.5877200447 | I9: 0.4557141467 | J9: 0.4892884214 | K9: 0.5120946288 | L9: 0.4079512673 | M9: 0.4088946744 | N9: 0.5085583143 | O9: 0.4775043322 | P9: 0.4027309496 | Q9: 0.6633835942 | R9: 0.3281523479 | S9: 0.2280837985 | T9: 0.3297178282 | U9: 0.7503682577 | V9: 0.4260158409 | W9: 0.3280636038 | X9: 0.3169320663 | Y9: 0.2513306411 | Z9: 0.328015847 | AA9: 0.6341018223 | AB9: 0.438559663 | AC9: 0.1502677031 | AD9: 0.2816688301 | AE9: 0.5147447386 | AF9: 0.29030288
A10: _5 | B10: =G5 -> CSCO | C10: 0.1605738567 | D10: 0.3990014099 | E10: 0.4456495526 | F10: 0.4713028398 | G10: 1 | H10: 0.4283789606 | I10: 0.4757039448 | J10: 0.4502300737 | K10: 0.367878842 | L10: 0.4352507698 | M10: 0.4242364549 | N10: 0.5186919925 | O10: 0.5011660017 | P10: 0.4474823314 | Q10: 0.538740612 | R10: 0.3027844394 | S10: 0.3229207247 | T10: 0.3631395445 | U10: 0.5305104753 | V10: 0.5025210682 | W10: 0.4083521948 | X10: 0.4641725726 | Y10: 0.3948030738 | Z10: 0.4572784272 | AA10: 0.545459953 | AB10: 0.3763517847 | AC10: 0.2741291032 | AD10: 0.3618545769 | AE10: 0.3625829685 | AF10: 0.4101409404
A11: _6 | B11: =H5 -> CVX | C11: 0.2229676097 | D11: 0.5497972305 | E11: 0.4997797931 | F11: 0.5877200447 | G11: 0.4283789606 | H11: 1 | I11: 0.5133159216 | J11: 0.5687609454 | K11: 0.4918885241 | L11: 0.4278634976 | M11: 0.4314322951 | N11: 0.4739161485 | O11: 0.4466405326 | P11: 0.4180108508 | Q11: 0.64271569 | R11: 0.4517185312 | S11: 0.17522692 | T11: 0.513759333 | U11: 0.5677606225 | V11: 0.3614255011 | W11: 0.2041308908 | X11: 0.2932028426 | Y11: 0.2047516903 | Z11: 0.2830414638 | AA11: 0.7315533307 | AB11: 0.604527278 | AC11: 0.3390915468 | AD11: 0.2419794464 | AE11: 0.8984353593 | AF11: 0.2784801958
A12: _7 | B12: =I5 -> DIS | C12: 0.3439929841 | D12: 0.5189543083 | E12: 0.5030849111 | F12: 0.4557141467 | G12: 0.4757039448 | H12: 0.5133159216 | I12: 1 | J12: 0.5457171779 | K12: 0.5240548379 | L12: 0.5779446751 | M12: 0.3291817551 | N12: 0.3112242371 | O12: 0.3520541634 | P12: 0.3660551512 | Q12: 0.7313844578 | R12: 0.5297723176 | S12: 0.1874509362 | T12: 0.4636627085 | U12: 0.4481722582 | V12: 0.5120552641 | W12: 0.42636041 | X12: 0.1588853388 | Y12: 0.2691564087 | Z12: 0.4971990118 | AA12: 0.6556487126 | AB12: 0.5729576315 | AC12: 0.2928053003 | AD12: 0.3080502647 | AE12: 0.4758920195 | AF12: 0.4490292534
A13: _8 | B13: =J5 -> F | C13: 0.293335516 | D13: 0.810320282 | E13: 0.5550084804 | F13: 0.4892884214 | G13: 0.4502300737 | H13: 0.5687609454 | I13: 0.5457171779 | J13: 1 | K13: 0.563115974 | L13: 0.4793887258 | M13: 0.4926497364 | N13: 0.2547029204 | O13: 0.3605466445 | P13: 0.2078494448 | Q13: 0.6693165049 | R13: 0.3556540638 | S13: 0.1384329813 | T13: 0.4969952461 | U13: 0.4554533841 | V13: 0.4652563269 | W13: 0.3525753241 | X13: 0.1663946298 | Y13: 0.2523608096 | Z13: 0.4482445874 | AA13: 0.6266514358 | AB13: 0.6523599338 | AC13: 0.112561636 | AD13: 0.2635370358 | AE13: 0.5640184584 | AF13: 0.3346359895
A14: _9 | B14: =K5 -> GE | C14: 0.1948463462 | D14: 0.5900992721 | E14: 0.6089728217 | F14: 0.5120946288 | G14: 0.367878842 | H14: 0.4918885241 | I14: 0.5240548379 | J14: 0.563115974 | K14: 1 | L14: 0.4589999102 | M14: 0.2423098025 | N14: 0.3430032752 | O14: 0.3754122548 | P14: 0.09961394118 | Q14: 0.6742719624 | R14: 0.2939095453 | S14: 0.06700035576 | T14: 0.2256262874 | U14: 0.3938311356 | V14: 0.2953528005 | W14: 0.3884167584 | X14: 0.01638322686 | Y14: 0.08415818942 | Z14: 0.3563461446 | AA14: 0.6549224206 | AB14: 0.5663137692 | AC14: 0.085454044 | AD14: 0.1769702043 | AE14: 0.4913592807 | AF14: 0.1892909187
A15: _10 | B15: =L5 -> GOOGL | C15: 0.4841894629 | D15: 0.5181555349 | E15: 0.354349861 | F15: 0.4079512673 | G15: 0.4352507698 | H15: 0.4278634976 | I15: 0.5779446751 | J15: 0.4793887258 | K15: 0.4589999102 | L15: 1 | M15: 0.531980326 | N15: 0.3820088902 | O15: 0.3488679963 | P15: 0.3009356438 | Q15: 0.5824502054 | R15: 0.4219253421 | S15: 0.279669688 | T15: 0.3668207255 | U15: 0.5468590251 | V15: 0.7460196246 | W15: 0.4275456751 | X15: 0.3001141376 | Y15: 0.282102744 | Z15: 0.5604935911 | AA15: 0.5863957391 | AB15: 0.5926978155 | AC15: 0.2798281807 | AD15: 0.2679416102 | AE15: 0.3491795063 | AF15: 0.6291965507
A16: _11 | B16: =M5 -> HD | C16: =CORREL(INDIRECT(C$4),INDIRECT($A16)) -> 0.3466542439 | D16: 0.5477846298 | E16: 0.3503786002 | F16: 0.4088946744 | G16: 0.4242364549 | H16: 0.4314322951 | I16: 0.3291817551 | J16: 0.4926497364 | K16: 0.2423098025 | L16: 0.531980326 | M16: =CORREL(INDIRECT(M$4),INDIRECT($A16)) -> 1 | N16: 0.5168757833 | O16: 0.2502448831 | P16: 0.3599922848 | Q16: 0.4534211571 | R16: 0.4412895038 | S16: 0.1847307866 | T16: 0.6046394201 | U16: 0.5784836031 | V16: 0.6065177163 | W16: =CORREL(INDIRECT(W$4),INDIRECT($A16)) -> 0.327995216 | X16: 0.4264433712 | Y16: 0.4495200003 | Z16: 0.4653574056 | AA16: 0.4827435352 | AB16: 0.3814257838 | AC16: 0.2220159436 | AD16: 0.3931369727 | AE16: 0.3467192536 | AF16: 0.4609080541
A17: _12 | B17: =N5 -> IBM | C17: 0.04503933117 | D17: 0.326929407 | E17: 0.4278311993 | F17: 0.5085583143 | G17: 0.5186919925 | H17: 0.4739161485 | I17: 0.3112242371 | J17: 0.2547029204 | K17: 0.3430032752 | L17: 0.3820088902 | M17: 0.5168757833 | N17: 1 | O17: 0.4005716565 | P17: 0.5200180911 | Q17: 0.4704447147 | R17: 0.4260421288 | S17: 0.1467269306 | T17: 0.5062045567 | U17: 0.5817335901 | V17: 0.319464989 | W17: 0.1439764367 | X17: 0.3793902486 | Y17: 0.4501974986 | Z17: 0.3055639243 | AA17: 0.6430365731 | AB17: 0.3771663715 | AC17: 0.2623512178 | AD17: 0.1930088572 | AE17: 0.4990141757 | AF17: 0.2813992047
A18: _13 | B18: =O5 -> INTC | C18: 0.2551350842 | D18: 0.4562364577 | E18: 0.3609304678 | F18: 0.4775043322 | G18: 0.5011660017 | H18: 0.4466405326 | I18: 0.3520541634 | J18: 0.3605466445 | K18: 0.3754122548 | L18: 0.3488679963 | M18: 0.2502448831 | N18: 0.4005716565 | O18: 1 | P18: 0.384347206 | Q18: 0.4753041644 | R18: 0.1230172588 | S18: 0.1835239174 | T18: 0.3010184736 | U18: 0.5362878765 | V18: 0.4450416645 | W18: 0.239637102 | X18: 0.1949288091 | Y18: 0.2187988363 | Z18: 0.3708390603 | AA18: 0.4096465952 | AB18: 0.3335475764 | AC18: 0.3466702621 | AD18: 0.09134327526 | AE18: 0.3949113674 | AF18: 0.2325140818
A19: _14 | B19: =P5 -> JNJ | C19: 0.2990338763 | D19: 0.1942486244 | E19: 0.1639159706 | F19: 0.4027309496 | G19: 0.4474823314 | H19: 0.4180108508 | I19: 0.3660551512 | J19: 0.2078494448 | K19: 0.09961394118 | L19: 0.3009356438 | M19: 0.3599922848 | N19: 0.5200180911 | O19: 0.384347206 | P19: 1 | Q19: 0.4134715923 | R19: 0.5189585923 | S19: 0.3310512508 | T19: 0.5250696337 | U19: 0.5917140432 | V19: 0.4468305881 | W19: 0.074561095 | X19: 0.5518753944 | Y19: 0.4748198956 | Z19: 0.3855537955 | AA19: 0.5477410245 | AB19: 0.3026200008 | AC19: 0.4530816729 | AD19: 0.4856940678 | AE19: 0.433783262 | AF19: 0.2442750702
A20: _15 | B20: =Q5 -> JPM | C20: 0.2341421089 | D20: 0.6898103093 | E20: 0.6022384118 | F20: 0.6633835942 | G20: 0.538740612 | H20: 0.64271569 | I20: 0.7313844578 | J20: 0.6693165049 | K20: 0.6742719624 | L20: 0.5824502054 | M20: 0.4534211571 | N20: 0.4704447147 | O20: 0.4753041644 | P20: 0.4134715923 | Q20: 1 | R20: 0.487773366 | S20: 0.1738963797 | T20: 0.4512065169 | U20: 0.5954209786 | V20: 0.4748183142 | W20: 0.3797304816 | X20: 0.3105651243 | Y20: 0.2819032637 | Z20: 0.3974527478 | AA20: 0.8095325947 | AB20: 0.7865119831 | AC20: 0.3581438706 | AD20: 0.2116078091 | AE20: 0.6207476017 | AF20: 0.2803584881
A21: _16 | B21: =R5 -> KO | C21: 0.1927503127 | D21: 0.3265514343 | E21: 0.4444307146 | F21: 0.3281523479 | G21: 0.3027844394 | H21: 0.4517185312 | I21: 0.5297723176 | J21: 0.3556540638 | K21: 0.2939095453 | L21: 0.4219253421 | M21: 0.4412895038 | N21: 0.4260421288 | O21: 0.1230172588 | P21: 0.5189585923 | Q21: 0.487773366 | R21: 1 | S21: 0.06350780127 | T21: 0.6836371178 | U21: 0.401656485 | V21: 0.33664358 | W21: -0.09960023323 | X21: 0.2713720035 | Y21: 0.6502443721 | Z21: 0.2629041986 | AA21: 0.5622433719 | AB21: 0.4473154356 | AC21: 0.4137793327 | AD21: 0.3810970184 | AE21: 0.4129590461 | AF21: 0.07067409811
A22: _17 | B22: =S5 -> KR | C22: 0.2702603674 | D22: 0.1523279801 | E22: 0.1152996363 | F22: 0.2280837985 | G22: 0.3229207247 | H22: 0.17522692 | I22: 0.1874509362 | J22: 0.1384329813 | K22: 0.06700035576 | L22: 0.279669688 | M22: 0.1847307866 | N22: 0.1467269306 | O22: 0.1835239174 | P22: 0.3310512508 | Q22: 0.1738963797 | R22: 0.06350780127 | S22: 1 | T22: 0.1488292453 | U22: 0.2984808944 | V22: 0.3168063296 | W22: 0.1382953103 | X22: 0.2628465338 | Y22: 0.236354941 | Z22: 0.2971453528 | AA22: 0.1960249117 | AB22: 0.07060469715 | AC22: 0.2515186305 | AD22: 0.5060848705 | AE22: 0.09105776681 | AF22: 0.2484362177
A23: _18 | B23: =T5 -> MCD | C23: 0.3079568271 | D23: 0.5055570521 | E23: 0.4199315977 | F23: 0.3297178282 | G23: 0.3631395445 | H23: 0.513759333 | I23: 0.4636627085 | J23: 0.4969952461 | K23: 0.2256262874 | L23: 0.3668207255 | M23: 0.6046394201 | N23: 0.5062045567 | O23: 0.3010184736 | P23: 0.5250696337 | Q23: 0.4512065169 | R23: 0.6836371178 | S23: 0.1488292453 | T23: 1 | U23: 0.4772950422 | V23: 0.4108353912 | W23: 0.1170101655 | X23: 0.3771552955 | Y23: 0.5446337477 | Z23: 0.3805733899 | AA23: 0.5978569201 | AB23: 0.4414930615 | AC23: 0.3976853977 | AD23: 0.4461016676 | AE23: 0.4592786335 | AF23: 0.2451602848
A24: _19 | B24: =U5 -> MMM | C24: 0.3032976617 | D24: 0.5678900806 | E24: 0.388540332 | F24: 0.7503682577 | G24: 0.5305104753 | H24: 0.5677606225 | I24: 0.4481722582 | J24: 0.4554533841 | K24: 0.3938311356 | L24: 0.5468590251 | M24: 0.5784836031 | N24: 0.5817335901 | O24: 0.5362878765 | P24: 0.5917140432 | Q24: 0.5954209786 | R24: 0.401656485 | S24: 0.2984808944 | T24: 0.4772950422 | U24: 1 | V24: 0.5570469903 | W24: 0.289760463 | X24: 0.4238888733 | Y24: 0.4623168343 | Z24: 0.4889531635 | AA24: 0.6051324409 | AB24: 0.470126503 | AC24: 0.3380985082 | AD24: 0.3649440861 | AE24: 0.5241557349 | AF24: 0.3897226729
A25: _20 | B25: =V5 -> MSFT | C25: 0.5406210229 | D25: 0.3861692029 | E25: 0.3578097158 | F25: 0.4260158409 | G25: 0.5025210682 | H25: 0.3614255011 | I25: 0.5120552641 | J25: 0.4652563269 | K25: 0.2953528005 | L25: 0.7460196246 | M25: 0.6065177163 | N25: 0.319464989 | O25: 0.4450416645 | P25: 0.4468305881 | Q25: 0.4748183142 | R25: 0.33664358 | S25: 0.3168063296 | T25: 0.4108353912 | U25: 0.5570469903 | V25: 1 | W25: 0.501471224 | X25: 0.3207325276 | Y25: 0.336508907 | Z25: 0.6954003268 | AA25: 0.4850081793 | AB25: 0.4062607826 | AC25: 0.2756119846 | AD25: 0.3913629276 | AE25: 0.3038235622 | AF25: 0.7326252662
A26: _21 | B26: =W5 -> NFLX | C26: =CORREL(INDIRECT(C$4),INDIRECT($A26)) -> 0.330707801 | D26: 0.3063641169 | E26: 0.2681636141 | F26: 0.3280636038 | G26: 0.4083521948 | H26: 0.2041308908 | I26: 0.42636041 | J26: 0.3525753241 | K26: 0.3884167584 | L26: 0.4275456751 | M26: =CORREL(INDIRECT(M$4),INDIRECT($A26)) -> 0.327995216 | N26: 0.1439764367 | O26: 0.239637102 | P26: 0.074561095 | Q26: 0.3797304816 | R26: -0.09960023323 | S26: 0.1382953103 | T26: 0.1170101655 | U26: 0.289760463 | V26: 0.501471224 | W26: =CORREL(INDIRECT(W$4),INDIRECT($A26)) -> 1 | X26: 0.1622313688 | Y26: -0.07445454002 | Z26: 0.4178718589 | AA26: 0.2553151339 | AB26: 0.2644109692 | AC26: 0.04565673721 | AD26: 0.07619119661 | AE26: 0.1228031889 | AF26: 0.6323850033
A27: _22 | B27: =X5 -> PFE | C27: 0.1640516687 | D27: 0.1796838142 | E27: 0.07781465321 | F27: 0.3169320663 | G27: 0.4641725726 | H27: 0.2932028426 | I27: 0.1588853388 | J27: 0.1663946298 | K27: 0.01638322686 | L27: 0.3001141376 | M27: 0.4264433712 | N27: 0.3793902486 | O27: 0.1949288091 | P27: 0.5518753944 | Q27: 0.3105651243 | R27: 0.2713720035 | S27: 0.2628465338 | T27: 0.3771552955 | U27: 0.4238888733 | V27: 0.3207325276 | W27: 0.1622313688 | X27: 1 | Y27: 0.340432989 | Z27: 0.2831687028 | AA27: 0.3504164269 | AB27: 0.1382977787 | AC27: 0.4066331587 | AD27: 0.2903206939 | AE27: 0.1487714761 | AF27: 0.2707112115
A28: _23 | B28: =Y5 -> PG | C28: 0.1282961545 | D28: 0.2703383895 | E28: 0.2805750744 | F28: 0.2513306411 | G28: 0.3948030738 | H28: 0.2047516903 | I28: 0.2691564087 | J28: 0.2523608096 | K28: 0.08415818942 | L28: 0.282102744 | M28: 0.4495200003 | N28: 0.4501974986 | O28: 0.2187988363 | P28: 0.4748198956 | Q28: 0.2819032637 | R28: 0.6502443721 | S28: 0.236354941 | T28: 0.5446337477 | U28: 0.4623168343 | V28: 0.336508907 | W28: -0.07445454002 | X28: 0.340432989 | Y28: 1 | Z28: 0.3357361434 | AA28: 0.358908555 | AB28: 0.2312293458 | AC28: 0.4720965354 | AD28: 0.5458614049 | AE28: 0.1742450332 | AF28: 0.08119941188
A29: _24 | B29: =Z5 -> AAPL | C29: 0.6040942031 | D29: 0.4402005837 | E29: 0.2962985303 | F29: 0.328015847 | G29: 0.4572784272 | H29: 0.2830414638 | I29: 0.4971990118 | J29: 0.4482445874 | K29: 0.3563461446 | L29: 0.5604935911 | M29: 0.4653574056 | N29: 0.3055639243 | O29: 0.3708390603 | P29: 0.3855537955 | Q29: 0.3974527478 | R29: 0.2629041986 | S29: 0.2971453528 | T29: 0.3805733899 | U29: 0.4889531635 | V29: 0.6954003268 | W29: 0.4178718589 | X29: 0.2831687028 | Y29: 0.3357361434 | Z29: 1 | AA29: 0.4593874984 | AB29: 0.330606554 | AC29: 0.1341752986 | AD29: 0.3842732722 | AE29: 0.305129174 | AF29: 0.6594698648
A30: _25 | B30: =AA5 -> PRU | C30: 0.3223198674 | D30: 0.6223890601 | E30: 0.584870783 | F30: 0.6341018223 | G30: 0.545459953 | H30: 0.7315533307 | I30: 0.6556487126 | J30: 0.6266514358 | K30: 0.6549224206 | L30: 0.5863957391 | M30: 0.4827435352 | N30: 0.6430365731 | O30: 0.4096465952 | P30: 0.5477410245 | Q30: 0.8095325947 | R30: 0.5622433719 | S30: 0.1960249117 | T30: 0.5978569201 | U30: 0.6051324409 | V30: 0.4850081793 | W30: 0.2553151339 | X30: 0.3504164269 | Y30: 0.358908555 | Z30: 0.4593874984 | AA30: 1 | AB30: 0.8034175605 | AC30: 0.266989529 | AD30: 0.3819530596 | AE30: 0.7412385637 | AF30: 0.3538155041
A31: _26 | B31: =AB5 -> TFC | C31: 0.3112642491 | D31: 0.6505645629 | E31: 0.6073458609 | F31: 0.438559663 | G31: 0.3763517847 | H31: 0.604527278 | I31: 0.5729576315 | J31: 0.6523599338 | K31: 0.5663137692 | L31: 0.5926978155 | M31: 0.3814257838 | N31: 0.3771663715 | O31: 0.3335475764 | P31: 0.3026200008 | Q31: 0.7865119831 | R31: 0.4473154356 | S31: 0.07060469715 | T31: 0.4414930615 | U31: 0.470126503 | V31: 0.4062607826 | W31: 0.2644109692 | X31: 0.1382977787 | Y31: 0.2312293458 | Z31: 0.330606554 | AA31: 0.8034175605 | AB31: 1 | AC31: 0.3249345364 | AD31: 0.1337987062 | AE31: 0.637959688 | AF31: 0.2917535207
A32: _27 | B32: =AC5 -> VZ | C32: 0.1158380152 | D32: 0.166686568 | E32: 0.2340215436 | F32: 0.1502677031 | G32: 0.2741291032 | H32: 0.3390915468 | I32: 0.2928053003 | J32: 0.112561636 | K32: 0.085454044 | L32: 0.2798281807 | M32: 0.2220159436 | N32: 0.2623512178 | O32: 0.3466702621 | P32: 0.4530816729 | Q32: 0.3581438706 | R32: 0.4137793327 | S32: 0.2515186305 | T32: 0.3976853977 | U32: 0.3380985082 | V32: 0.2756119846 | W32: 0.04565673721 | X32: 0.4066331587 | Y32: 0.4720965354 | Z32: 0.1341752986 | AA32: 0.266989529 | AB32: 0.3249345364 | AC32: 1 | AD32: 0.2407263919 | AE32: 0.2800322924 | AF32: 0.1344141829
A33: _28 | B33: =AD5 -> WMT | C33: 0.3309885159 | D33: 0.2657352332 | E33: 0.1376400362 | F33: 0.2816688301 | G33: 0.3618545769 | H33: 0.2419794464 | I33: 0.3080502647 | J33: 0.2635370358 | K33: 0.1769702043 | L33: 0.2679416102 | M33: 0.3931369727 | N33: 0.1930088572 | O33: 0.09134327526 | P33: 0.4856940678 | Q33: 0.2116078091 | R33: 0.3810970184 | S33: 0.5060848705 | T33: 0.4461016676 | U33: 0.3649440861 | V33: 0.3913629276 | W33: 0.07619119661 | X33: 0.2903206939 | Y33: 0.5458614049 | Z33: 0.3842732722 | AA33: 0.3819530596 | AB33: 0.1337987062 | AC33: 0.2407263919 | AD33: 1 | AE33: 0.1588983283 | AF33: 0.2358423078
A34: _29 | B34: =AE5 -> XOM | C34: 0.1525210865 | D34: 0.5193470053 | E34: 0.4921353075 | F34: 0.5147447386 | G34: 0.3625829685 | H34: 0.8984353593 | I34: 0.4758920195 | J34: 0.5640184584 | K34: 0.4913592807 | L34: 0.3491795063 | M34: 0.3467192536 | N34: 0.4990141757 | O34: 0.3949113674 | P34: 0.433783262 | Q34: 0.6207476017 | R34: 0.4129590461 | S34: 0.09105776681 | T34: 0.4592786335 | U34: 0.5241557349 | V34: 0.3038235622 | W34: 0.1228031889 | X34: 0.1487714761 | Y34: 0.1742450332 | Z34: 0.305129174 | AA34: 0.7412385637 | AB34: 0.637959688 | AC34: 0.2800322924 | AD34: 0.1588983283 | AE34: 1 | AF34: 0.1783721293
A35: _30 | B35: =AF5 -> AMZN | C35: 0.5214574348 | D35: 0.2572938577 | E35: 0.1568584075 | F35: 0.29030288 | G35: 0.4101409404 | H35: 0.2784801958 | I35: 0.4490292534 | J35: 0.3346359895 | K35: 0.1892909187 | L35: 0.6291965507 | M35: 0.4609080541 | N35: 0.2813992047 | O35: 0.2325140818 | P35: 0.2442750702 | Q35: 0.2803584881 | R35: 0.07067409811 | S35: 0.2484362177 | T35: 0.2451602848 | U35: 0.3897226729 | V35: 0.7326252662 | W35: 0.6323850033 | X35: 0.2707112115 | Y35: 0.08119941188 | Z35: 0.6594698648 | AA35: 0.3538155041 | AB35: 0.2917535207 | AC35: 0.1344141829 | AD35: 0.2358423078 | AE35: 0.1783721293 | AF35: 1
B39: Standard Deviations
B40: ='Returns & Stand Dev'!C66 -> 0.1972789188 | C40: ='Returns & Stand Dev'!BL$66 -> 0.05443176025
B41: ='Returns & Stand Dev'!E66 -> 0.1156337846 | C41: ='Returns & Stand Dev'!BL$66 -> 0.05443176025
B42: ='Returns & Stand Dev'!G66 -> 0.1398086124 | C42: ='Returns & Stand Dev'!BL$66 -> 0.05443176025
B43: ='Returns & Stand Dev'!I66 -> 0.09090770778 | C43: ='Returns & Stand Dev'!BL$66 -> 0.05443176025
B44: ='Returns & Stand Dev'!K66 -> 0.0782885692 | C44: ='Returns & Stand Dev'!BL$66 -> 0.05443176025
B45: ='Returns & Stand Dev'!M66 -> 0.09342011177 | C45: ='Returns & Stand Dev'!BL$66 -> 0.05443176025
B46: ='Returns & Stand Dev'!O66 -> 0.09345668131 | C46: ='Returns & Stand Dev'!BL$66 -> 0.05443176025
B47: ='Returns & Stand Dev'!Q66 -> 0.1244481179 | C47: ='Returns & Stand Dev'!BL$66 -> 0.05443176025
B48: ='Returns & Stand Dev'!S66 -> 0.1244487224 | C48: ='Returns & Stand Dev'!BL$66 -> 0.05443176025
B49: ='Returns & Stand Dev'!U66 -> 0.07416128504 | C49: ='Returns & Stand Dev'!BL$66 -> 0.05443176025
B50: ='Returns & Stand Dev'!W66 -> 0.07141792731 | C50: ='Returns & Stand Dev'!BL$66 -> 0.05443176025
B51: ='Returns & Stand Dev'!Y66 -> 0.07840875542 | C51: ='Returns & Stand Dev'!BL$66 -> 0.05443176025
B52: ='Returns & Stand Dev'!AA66 -> 0.08339339334 | C52: ='Returns & Stand Dev'!BL$66 -> 0.05443176025
B53: ='Returns & Stand Dev'!AC66 -> 0.05157098991 | C53: ='Returns & Stand Dev'!BL$66 -> 0.05443176025
B54: ='Returns & Stand Dev'!AE66 -> 0.08037487691 | C54: ='Returns & Stand Dev'!BL$66 -> 0.05443176025
B55: ='Returns & Stand Dev'!AG66 -> 0.05740802067 | C55: ='Returns & Stand Dev'!BL$66 -> 0.05443176025
B56: ='Returns & Stand Dev'!AI66 -> 0.07754620886 | C56: ='Returns & Stand Dev'!BL$66 -> 0.05443176025
B57: ='Returns & Stand Dev'!AK66 -> 0.05572780938 | C57: ='Returns & Stand Dev'!BL$66 -> 0.05443176025
B58: ='Returns & Stand Dev'!AM66 -> 0.0694688052 | C58: ='Returns & Stand Dev'!BL$66 -> 0.05443176025
B59: ='Returns & Stand Dev'!AO66 -> 0.06090956554 | C59: ='Returns & Stand Dev'!BL$66 -> 0.05443176025
B60: ='Returns & Stand Dev'!AQ66 -> 0.134748595 | C60: ='Returns & Stand Dev'!BL$66 -> 0.05443176025
B61: ='Returns & Stand Dev'!AS66 -> 0.07345038062 | C61: ='Returns & Stand Dev'!BL$66 -> 0.05443176025
B62: ='Returns & Stand Dev'!AU66 -> 0.04971711661 | C62: ='Returns & Stand Dev'!BL$66 -> 0.05443176025
B63: ='Returns & Stand Dev'!AW66 -> 0.09281806793 | C63: ='Returns & Stand Dev'!BL$66 -> 0.05443176025
B64: ='Returns & Stand Dev'!AY66 -> 0.09775485537 | C64: ='Returns & Stand Dev'!BL$66 -> 0.05443176025
B65: ='Returns & Stand Dev'!BA66 -> 0.08877047748 | C65: ='Returns & Stand Dev'!BL$66 -> 0.05443176025
B66: ='Returns & Stand Dev'!BC66 -> 0.04978412566 | C66: ='Returns & Stand Dev'!BL$66 -> 0.05443176025
B67: ='Returns & Stand Dev'!BE66 -> 0.05844974892 | C67: ='Returns & Stand Dev'!BL$66 -> 0.05443176025
B68: ='Returns & Stand Dev'!BG66 -> 0.1001490752 | C68: ='Returns & Stand Dev'!BL$66 -> 0.05443176025
B69: ='Returns & Stand Dev'!BI66 -> 0.09447829474 | C69: ='Returns & Stand Dev'!BL$66 -> 0.05443176025

Sheet Var-Cov Matrix
A2: Variance/Covariance Matrix
B4: ='Corr. Matrix'!C5 -> TSLA | C4: ='Corr. Matrix'!D5 -> GM | D4: ='Corr. Matrix'!E5 -> BA | E4: ='Corr. Matrix'!F5 -> CAT | F4: ='Corr. Matrix'!G5 -> CSCO | G4: ='Corr. Matrix'!H5 -> CVX | H4: ='Corr. Matrix'!I5 -> DIS | I4: ='Corr. Matrix'!J5 -> F | J4: ='Corr. Matrix'!K5 -> GE | K4: ='Corr. Matrix'!L5 -> GOOGL | L4: ='Corr. Matrix'!M5 -> HD | M4: ='Corr. Matrix'!N5 -> IBM | N4: ='Corr. Matrix'!O5 -> INTC | O4: ='Corr. Matrix'!P5 -> JNJ | P4: ='Corr. Matrix'!Q5 -> JPM | Q4: ='Corr. Matrix'!R5 -> KO | R4: ='Corr. Matrix'!S5 -> KR | S4: ='Corr. Matrix'!T5 -> MCD | T4: ='Corr. Matrix'!U5 -> MMM | U4: ='Corr. Matrix'!V5 -> MSFT | V4: ='Corr. Matrix'!W5 -> NFLX | W4: ='Corr. Matrix'!X5 -> PFE | X4: ='Corr. Matrix'!Y5 -> PG | Y4: ='Corr. Matrix'!Z5 -> AAPL | Z4: ='Corr. Matrix'!AA5 -> PRU | AA4: ='Corr. Matrix'!AB5 -> TFC | AB4: ='Corr. Matrix'!AC5 -> VZ | AC4: ='Corr. Matrix'!AD5 -> WMT | AD4: ='Corr. Matrix'!AE5 -> XOM | AE4: ='Corr. Matrix'!AF5 -> AMZN
A5: ='Corr. Matrix'!B6 -> TSLA | B5: ='Corr. Matrix'!C6*'Corr. Matrix'!B$40*'Corr. Matrix'!B40 -> 0.03891897181 | C5: =B6 -> 0.009228703322 | D5: =B7 -> 0.004835870839 | E5: =B8 -> 0.001602105563 | F5: =B9 -> 0.002480012521 | G5: =B10 -> 0.004109252611 | H5: =B11 -> 0.006342210015 | I5: =B12 -> 0.007201677363 | J5: =B13 -> 0.004783693964 | K5: =B14 -> 0.007083913663 | L5: =B15 -> 0.00488409882 | M5: =B16 -> 0.0006966861422 | N5: =B17 -> 0.004197420784 | O5: =B18 -> 0.003042331524 | P5: =B19 -> 0.003712620219 | Q5: =B20 -> 0.002182972898 | R5: =B21 -> 0.004134505866 | S5: =B22 -> 0.003385653331 | T5: =B23 -> 0.004156612801 | U5: =B24 -> 0.006496195866 | V5: =B25 -> 0.008791224371 | W5: =B26 -> 0.002377143406 | X5: =B27 -> 0.001258346518 | Y5: =B28 -> 0.011061598 | Z5: =B29 -> 0.006215929675 | AA5: =B30 -> 0.005451028802 | AB5: =B31 -> 0.001137686673 | AC5: =B32 -> 0.003816596561 | AD5: =B33 -> 0.003013405055 | AE5: =B34 -> 0.009719223946
A6: ='Corr. Matrix'!B7 -> GM | B6: ='Corr. Matrix'!C7*'Corr. Matrix'!B$40*'Corr. Matrix'!B41 -> 0.009228703322 | C6: ='Corr. Matrix'!D7*'Corr. Matrix'!B$41*'Corr. Matrix'!B41 -> 0.01337117214 | D6: =C7 -> 0.009089864894 | E6: =C8 -> 0.005054253054 | F6: =C9 -> 0.003612081379 | G6: =C10 -> 0.005939196172 | H6: =C11 -> 0.005608209344 | I6: =C12 -> 0.01166083854 | J6: =C13 -> 0.008491809862 | K6: =C14 -> 0.004443468727 | L6: =C15 -> 0.004523783625 | M6: =C16 -> 0.002964171225 | N6: =C17 -> 0.004399530903 | O6: =C18 -> 0.001158372289 | P6: =C19 -> 0.006411132335 | Q6: =C20 -> 0.002167748573 | R6: =C21 -> 0.00136591915 | S6: =C22 -> 0.003257818494 | T6: =C23 -> 0.00456182743 | U6: =C24 -> 0.002719868313 | V6: =C25 -> 0.004773609427 | W6: =C26 -> 0.001526116713 | X6: =C27 -> 0.001554169549 | Y6: =C28 -> 0.004724630814 | Z6: =C29 -> 0.007035338982 | AA6: =C30 -> 0.006677958239 | AB6: =C31 -> 0.0009595690436 | AC6: =C32 -> 0.001796042173 | AD6: =C33 -> 0.006014358543 | AE6: =C34 -> 0.002810905237
A7: ='Corr. Matrix'!B8 -> BA | B7: ='Corr. Matrix'!C8*'Corr. Matrix'!B$40*'Corr. Matrix'!B42 -> 0.004835870839 | C7: ='Corr. Matrix'!D8*'Corr. Matrix'!B$41*'Corr. Matrix'!B42 -> 0.009089864894 | D7: ='Corr. Matrix'!E8*'Corr. Matrix'!B$42*'Corr. Matrix'!B42 -> 0.01954644811 | E7: =$D8 -> 0.005328667823 | F7: =$D9 -> 0.004877819845 | G7: =$D10 -> 0.006527591991 | H7: =$D11 -> 0.006573332067 | I7: =$D12 -> 0.009656547416 | J7: =$D13 -> 0.01059552007 | K7: =$D14 -> 0.003674036264 | L7: =$D15 -> 0.003498474724 | M7: =$D16 -> 0.004689979429 | N7: =$D17 -> 0.00420812969 | O7: =$D18 -> 0.001181845383 | P7: =$D19 -> 0.006767413265 | Q7: =$D20 -> 0.00356706123 | R7: =$D21 -> 0.001250035749 | S7: =$D22 -> 0.003271782697 | T7: =$D23 -> 0.003773634744 | U7: =$D24 -> 0.003046993699 | V7: =$D25 -> 0.005051938105 | W7: =$D26 -> 0.0007990783467 | X7: =$D27 -> 0.001950243978 | Y7: =$D28 -> 0.003844996482 | Z7: =$D29 -> 0.007993411846 | AA7: =$D30 -> 0.007537694946 | AB7: =$D31 -> 0.001628848338 | AC7: =$D32 -> 0.00112476386 | AD7: =$D33 -> 0.006890732526 | AE7: =$D34 -> 0.00207192377
A8: ='Corr. Matrix'!B9 -> CAT | B8: ='Corr. Matrix'!C9*'Corr. Matrix'!B$40*'Corr. Matrix'!B43 -> 0.001602105563 | C8: ='Corr. Matrix'!D9*'Corr. Matrix'!B$41*'Corr. Matrix'!B43 -> 0.005054253054 | D8: ='Corr. Matrix'!E9*'Corr. Matrix'!B$42*'Corr. Matrix'!B43 -> 0.005328667823 | E8: ='Corr. Matrix'!F9*'Corr. Matrix'!B$43*'Corr. Matrix'!B43 -> 0.008264211334 | F8: =$E9 -> 0.00335427851 | G8: =$E10 -> 0.004991276084 | H8: =$E11 -> 0.003871716709 | I8: =$E12 -> 0.005535463339 | J8: =$E13 -> 0.005793504792 | K8: =$E14 -> 0.002750339083 | L8: =$E15 -> 0.002654724167 | M8: =$E16 -> 0.003624983436 | N8: =$E17 -> 0.003620009159 | O8: =$E18 -> 0.001888083432 | P8: =$E19 -> 0.004847142136 | Q8: =$E20 -> 0.001712571832 | R8: =$E21 -> 0.001607887707 | S8: =$E22 -> 0.001670379339 | T8: =$E23 -> 0.004738763021 | U8: =$E24 -> 0.002358913181 | V8: =$E25 -> 0.004018676102 | W8: =$E26 -> 0.002116220612 | X8: =$E27 -> 0.001135931335 | Y8: =$E28 -> 0.002767757633 | Z8: =$E29 -> 0.005635053531 | AA8: =$E30 -> 0.00353914167 | AB8: =$E31 -> 0.0006800756725 | AC8: =$E32 -> 0.001496656538 | AD8: =$E33 -> 0.004686402291 | AE8: =$E34 -> 0.002493354888
A9: ='Corr. Matrix'!B10 -> CSCO | B9: ='Corr. Matrix'!C10*'Corr. Matrix'!B$40*'Corr. Matrix'!B44 -> 0.002480012521 | C9: ='Corr. Matrix'!D10*'Corr. Matrix'!B$41*'Corr. Matrix'!B44 -> 0.003612081379 | D9: ='Corr. Matrix'!E10*'Corr. Matrix'!B$42*'Corr. Matrix'!B44 -> 0.004877819845 | E9: ='Corr. Matrix'!F10*'Corr. Matrix'!B$43*'Corr. Matrix'!B44 -> 0.00335427851 | F9: ='Corr. Matrix'!G10*'Corr. Matrix'!B$44*'Corr. Matrix'!B44 -> 0.006129100067 | G9: =$F10 -> 0.003133046721 | H9: =$F11 -> 0.00348053066 | I9: =$F12 -> 0.004386530867 | J9: =$F13 -> 0.003584211338 | K9: =$F14 -> 0.002527057654 | L9: =$F15 -> 0.002371993983 | M9: =$F16 -> 0.003183995606 | N9: =$F17 -> 0.003271987256 | O9: =$F18 -> 0.001806673672 | P9: =$F19 -> 0.003389989805 | Q9: =$F20 -> 0.001360831901 | R9: =$F21 -> 0.001960445823 | S9: =$F22 -> 0.001584323529 | T9: =$F23 -> 0.00288524136 | U9: =$F24 -> 0.002396283139 | V9: =$F25 -> 0.00430781948 | W9: =$F26 -> 0.002669143244 | X9: =$F27 -> 0.001536684868 | Y9: =$F28 -> 0.003322856554 | Z9: =$F29 -> 0.00417445289 | AA9: =$F30 -> 0.002615537143 | AB9: =$F31 -> 0.001068425846 | AC9: =$F32 -> 0.001655827443 | AD9: =$F33 -> 0.002842841845 | AE9: =$F34 -> 0.003033636387
A10: ='Corr. Matrix'!B11 -> CVX | B10: ='Corr. Matrix'!C11*'Corr. Matrix'!B$40*'Corr. Matrix'!B45 -> 0.004109252611 | C10: ='Corr. Matrix'!D11*'Corr. Matrix'!B$41*'Corr. Matrix'!B45 -> 0.005939196172 | D10: ='Corr. Matrix'!E11*'Corr. Matrix'!B$42*'Corr. Matrix'!B45 -> 0.006527591991 | E10: ='Corr. Matrix'!F11*'Corr. Matrix'!B$43*'Corr. Matrix'!B45 -> 0.004991276084 | F10: ='Corr. Matrix'!G11*'Corr. Matrix'!B$44*'Corr. Matrix'!B45 -> 0.003133046721 | G10: ='Corr. Matrix'!H11*'Corr. Matrix'!B$45*'Corr. Matrix'!B45 -> 0.008727317283 | H10: =$G11 -> 0.004481624571 | I10: =$G12 -> 0.006612390341 | J10: =$G13 -> 0.005718702651 | K10: =$G14 -> 0.00296430486 | L10: =$G15 -> 0.002878460511 | M10: =$G16 -> 0.003471414317 | N10: =$G17 -> 0.003479606722 | O10: =$G18 -> 0.002013879151 | P10: =$G19 -> 0.004825914301 | Q10: =$G20 -> 0.002422595261 | R10: =$G21 -> 0.001269409606 | S10: =$G22 -> 0.002674681529 | T10: =$G23 -> 0.003684643546 | U10: =$G24 -> 0.002056575587 | V10: =$G25 -> 0.00256964636 | W10: =$G26 -> 0.002011882484 | X10: =$G27 -> 0.0009509853173 | Y10: =$G28 -> 0.002454273557 | Z10: =$G29 -> 0.00668074218 | AA10: =$G30 -> 0.005013313238 | AB10: =$G31 -> 0.001577060049 | AC10: =$G32 -> 0.001321300232 | AD10: =$G33 -> 0.008405705335 | AE10: =$G34 -> 0.002457914345
A11: ='Corr. Matrix'!B12 -> DIS | B11: ='Corr. Matrix'!C12*'Corr. Matrix'!B$40*'Corr. Matrix'!B46 -> 0.006342210015 | C11: ='Corr. Matrix'!D12*'Corr. Matrix'!B$41*'Corr. Matrix'!B46 -> 0.005608209344 | D11: ='Corr. Matrix'!E12*'Corr. Matrix'!B$42*'Corr. Matrix'!B46 -> 0.006573332067 | E11: ='Corr. Matrix'!F12*'Corr. Matrix'!B$43*'Corr. Matrix'!B46 -> 0.003871716709 | F11: ='Corr. Matrix'!G12*'Corr. Matrix'!B$44*'Corr. Matrix'!B46 -> 0.00348053066 | G11: ='Corr. Matrix'!H12*'Corr. Matrix'!B$45*'Corr. Matrix'!B46 -> 0.004481624571 | H11: ='Corr. Matrix'!I12*'Corr. Matrix'!B$46*'Corr. Matrix'!B46 -> 0.008734151281 | I11: =$H12 -> 0.006346968054 | J11: =$H13 -> 0.006095053642 | K11: =$H14 -> 0.004005658012 | L11: =$H15 -> 0.002197117855 | M11: =$H16 -> 0.002280595832 | N11: =$H17 -> 0.002743793896 | O11: =$H18 -> 0.001764259016 | P11: =$H19 -> 0.005493845007 | Q11: =$H20 -> 0.002842314886 | R11: =$H21 -> 0.001358496548 | S11: =$H22 -> 0.0024148185 | T11: =$H23 -> 0.002909679503 | U11: =$H24 -> 0.002914826383 | V11: =$H25 -> 0.005369223369 | W11: =$H26 -> 0.001090657097 | X11: =$H27 -> 0.001250607455 | Y11: =$H28 -> 0.004312937213 | Z11: =$H29 -> 0.005989904596 | AA11: =$H30 -> 0.004753367793 | AB11: =$H31 -> 0.001362323265 | AC11: =$H32 -> 0.001682730596 | AD11: =$H33 -> 0.004454159041 | AE11: =$H34 -> 0.003964761216
A12: ='Corr. Matrix'!B13 -> F | B12: ='Corr. Matrix'!C13*'Corr. Matrix'!B$40*'Corr. Matrix'!B47 -> 0.007201677363 | C12: ='Corr. Matrix'!D13*'Corr. Matrix'!B$41*'Corr. Matrix'!B47 -> 0.01166083854 | D12: ='Corr. Matrix'!E13*'Corr. Matrix'!B$42*'Corr. Matrix'!B47 -> 0.009656547416 | E12: ='Corr. Matrix'!F13*'Corr. Matrix'!B$43*'Corr. Matrix'!B47 -> 0.005535463339 | F12: ='Corr. Matrix'!G13*'Corr. Matrix'!B$44*'Corr. Matrix'!B47 -> 0.004386530867 | G12: ='Corr. Matrix'!H13*'Corr. Matrix'!B$45*'Corr. Matrix'!B47 -> 0.006612390341 | H12: ='Corr. Matrix'!I13*'Corr. Matrix'!B$46*'Corr. Matrix'!B47 -> 0.006346968054 | I12: ='Corr. Matrix'!J13*'Corr. Matrix'!B$47*'Corr. Matrix'!B47 -> 0.01548733404 | J12: =$I13 -> 0.008721207561 | K12: =$I14 -> 0.004424389933 | L12: =$I15 -> 0.00437858545 | M12: =$I16 -> 0.00248534577 | N12: =$I17 -> 0.003741807464 | O12: =$I18 -> 0.001333959578 | P12: =$I19 -> 0.006694839783 | Q12: =$I20 -> 0.002540906485 | R12: =$I21 -> 0.001335944682 | S12: =$I22 -> 0.003446771863 | T12: =$I23 -> 0.003937513861 | U12: =$I24 -> 0.003526680547 | V12: =$I25 -> 0.005912409312 | W12: =$I26 -> 0.001520973647 | X12: =$I27 -> 0.001561407202 | Y12: =$I28 -> 0.005177688406 | Z12: =$I29 -> 0.007623470243 | AA12: =$I30 -> 0.007206828191 | AB12: =$I31 -> 0.0006973802015 | AC12: =$I32 -> 0.001916958185 | AD12: =$I33 -> 0.007029567301 | AE12: =$I34 -> 0.003934531491
A13: ='Corr. Matrix'!B14 -> GE | B13: ='Corr. Matrix'!C14*'Corr. Matrix'!B$40*'Corr. Matrix'!B48 -> 0.004783693964 | C13: ='Corr. Matrix'!D14*'Corr. Matrix'!B$41*'Corr. Matrix'!B48 -> 0.008491809862 | D13: ='Corr. Matrix'!E14*'Corr. Matrix'!B$42*'Corr. Matrix'!B48 -> 0.01059552007 | E13: ='Corr. Matrix'!F14*'Corr. Matrix'!B$43*'Corr. Matrix'!B48 -> 0.005793504792 | F13: ='Corr. Matrix'!G14*'Corr. Matrix'!B$44*'Corr. Matrix'!B48 -> 0.003584211338 | G13: ='Corr. Matrix'!H14*'Corr. Matrix'!B$45*'Corr. Matrix'!B48 -> 0.005718702651 | H13: ='Corr. Matrix'!I14*'Corr. Matrix'!B$46*'Corr. Matrix'!B48 -> 0.006095053642 | I13: ='Corr. Matrix'!J14*'Corr. Matrix'!B$47*'Corr. Matrix'!B48 -> 0.008721207561 | J13: ='Corr. Matrix'!K14*'Corr. Matrix'!B$48*'Corr. Matrix'!B48 -> 0.01548748452 | K13: =$J14 -> 0.004236237395 | L13: =$J15 -> 0.002153617979 | M13: =$J16 -> 0.003346981176 | N13: =$J17 -> 0.003896103936 | O13: =$J18 -> 0.0006393166771 | P13: =$J19 -> 0.006744439521 | Q13: =$J20 -> 0.002099794079 | R13: =$J21 -> 0.000646588717 | S13: =$J22 -> 0.001564775766 | T13: =$J23 -> 0.003404789914 | U13: =$J24 -> 0.002238808966 | V13: =$J25 -> 0.006513473456 | W13: =$J26 -> 0.0001497558989 | X13: =$J27 -> 0.0005207062128 | Y13: =$J28 -> 0.004116186377 | Z13: =$J29 -> 0.007967437006 | AA13: =$J30 -> 0.006256279168 | AB13: =$J31 -> 0.0005294365828 | AC13: =$J32 -> 0.001287280661 | AD13: =$J33 -> 0.006124019277 | AE13: =$J34 -> 0.002225626417
A14: ='Corr. Matrix'!B15 -> GOOGL | B14: ='Corr. Matrix'!C15*'Corr. Matrix'!B$40*'Corr. Matrix'!B49 -> 0.007083913663 | C14: ='Corr. Matrix'!D15*'Corr. Matrix'!B$41*'Corr. Matrix'!B49 -> 0.004443468727 | D14: ='Corr. Matrix'!E15*'Corr. Matrix'!B$42*'Corr. Matrix'!B49 -> 0.003674036264 | E14: ='Corr. Matrix'!F15*'Corr. Matrix'!B$43*'Corr. Matrix'!B49 -> 0.002750339083 | F14: ='Corr. Matrix'!G15*'Corr. Matrix'!B$44*'Corr. Matrix'!B49 -> 0.002527057654 | G14: ='Corr. Matrix'!H15*'Corr. Matrix'!B$45*'Corr. Matrix'!B49 -> 0.00296430486 | H14: ='Corr. Matrix'!I15*'Corr. Matrix'!B$46*'Corr. Matrix'!B49 -> 0.004005658012 | I14: ='Corr. Matrix'!J15*'Corr. Matrix'!B$47*'Corr. Matrix'!B49 -> 0.004424389933 | J14: ='Corr. Matrix'!K15*'Corr. Matrix'!B$48*'Corr. Matrix'!B49 -> 0.004236237395 | K14: ='Corr. Matrix'!L15*'Corr. Matrix'!B$49*'Corr. Matrix'!B49 -> 0.005499896198 | L14: =$K15 -> 0.002817604678 | M14: =$K16 -> 0.002221341226 | N14: =$K17 -> 0.002157595479 | O14: =$K18 -> 0.001150949701 | P14: =$K19 -> 0.00347181336 | Q14: =$K20 -> 0.001796327138 | R14: =$K21 -> 0.00160835982 | S14: =$K22 -> 0.001516013552 | T14: =$K23 -> 0.002817360749 | U14: =$K24 -> 0.003369868859 | V14: =$K25 -> 0.00427251907 | W14: =$K26 -> 0.001634774111 | X14: =$K27 -> 0.001040136868 | Y14: =$K28 -> 0.003858161666 | Z14: =$K29 -> 0.004251149616 | AA14: =$K30 -> 0.0039019269 | AB14: =$K31 -> 0.001033140959 | AC14: =$K32 -> 0.001161448773 | AD14: =$K33 -> 0.002593420481 | AE14: =$K34 -> 0.004408548527
A15: ='Corr. Matrix'!B16 -> HD | B15: ='Corr. Matrix'!C16*'Corr. Matrix'!B$40*'Corr. Matrix'!B50 -> 0.00488409882 | C15: ='Corr. Matrix'!D16*'Corr. Matrix'!B$41*'Corr. Matrix'!B50 -> 0.004523783625 | D15: ='Corr. Matrix'!E16*'Corr. Matrix'!B$42*'Corr. Matrix'!B50 -> 0.003498474724 | E15: ='Corr. Matrix'!F16*'Corr. Matrix'!B$43*'Corr. Matrix'!B50 -> 0.002654724167 | F15: ='Corr. Matrix'!G16*'Corr. Matrix'!B$44*'Corr. Matrix'!B50 -> 0.002371993983 | G15: ='Corr. Matrix'!H16*'Corr. Matrix'!B$45*'Corr. Matrix'!B50 -> 0.002878460511 | H15: ='Corr. Matrix'!I16*'Corr. Matrix'!B$46*'Corr. Matrix'!B50 -> 0.002197117855 | I15: ='Corr. Matrix'!J16*'Corr. Matrix'!B$47*'Corr. Matrix'!B50 -> 0.00437858545 | J15: ='Corr. Matrix'!K16*'Corr. Matrix'!B$48*'Corr. Matrix'!B50 -> 0.002153617979 | K15: ='Corr. Matrix'!L16*'Corr. Matrix'!B$49*'Corr. Matrix'!B50 -> 0.002817604678 | L15: ='Corr. Matrix'!M16*'Corr. Matrix'!B$50*'Corr. Matrix'!B50 -> 0.005100520342 | M15: =$L16 -> 0.002894396253 | N15: =$L17 -> 0.001490404296 | O15: =$L18 -> 0.001325885139 | P15: =$L19 -> 0.002602731353 | Q15: =$L20 -> 0.001809270129 | R15: =$L21 -> 0.001023074104 | S15: =$L22 -> 0.002406443512 | T15: =$L23 -> 0.002870041159 | U15: =$L24 -> 0.002638373248 | V15: =$L25 -> 0.003156450601 | W15: =$L26 -> 0.002236982881 | X15: =$L27 -> 0.001596107707 | Y15: =$L28 -> 0.00308479562 | Z15: =$L29 -> 0.003370249446 | AA15: =$L30 -> 0.002418164522 | AB15: =$L31 -> 0.00078937304 | AC15: =$L32 -> 0.001641095222 | AD15: =$L33 -> 0.00247988844 | AE15: =$L34 -> 0.003109951278
A16: ='Corr. Matrix'!B17 -> IBM | B16: ='Corr. Matrix'!C17*'Corr. Matrix'!B$40*'Corr. Matrix'!B51 -> 0.0006966861422 | C16: ='Corr. Matrix'!D17*'Corr. Matrix'!B$41*'Corr. Matrix'!B51 -> 0.002964171225 | D16: ='Corr. Matrix'!E17*'Corr. Matrix'!B$42*'Corr. Matrix'!B51 -> 0.004689979429 | E16: ='Corr. Matrix'!F17*'Corr. Matrix'!B$43*'Corr. Matrix'!B51 -> 0.003624983436 | F16: ='Corr. Matrix'!G17*'Corr. Matrix'!B$44*'Corr. Matrix'!B51 -> 0.003183995606 | G16: ='Corr. Matrix'!H17*'Corr. Matrix'!B$45*'Corr. Matrix'!B51 -> 0.003471414317 | H16: ='Corr. Matrix'!I17*'Corr. Matrix'!B$46*'Corr. Matrix'!B51 -> 0.002280595832 | I16: ='Corr. Matrix'!J17*'Corr. Matrix'!B$47*'Corr. Matrix'!B51 -> 0.00248534577 | J16: ='Corr. Matrix'!K17*'Corr. Matrix'!B$48*'Corr. Matrix'!B51 -> 0.003346981176 | K16: ='Corr. Matrix'!L17*'Corr. Matrix'!B$49*'Corr. Matrix'!B51 -> 0.002221341226 | L16: ='Corr. Matrix'!M17*'Corr. Matrix'!B$50*'Corr. Matrix'!B51 -> 0.002894396253 | M16: ='Corr. Matrix'!N17*'Corr. Matrix'!B$51*'Corr. Matrix'!B51 -> 0.006147932926 | N16: =$M17 -> 0.002619246805 | O16: =$M18 -> 0.002102754063 | P16: =$M19 -> 0.002964786845 | Q16: =$M20 -> 0.001917739792 | R16: =$M21 -> 0.0008921440094 | S16: =$M22 -> 0.002211885197 | T16: =$M23 -> 0.003168681083 | U16: =$M24 -> 0.001525714704 | V16: =$M25 -> 0.001521178669 | W16: =$M26 -> 0.002184966462 | X16: =$M27 -> 0.001754985657 | Y16: =$M28 -> 0.002223817602 | Z16: =$M29 -> 0.004928770226 | AA16: =$M30 -> 0.002625222271 | AB16: =$M31 -> 0.001024090952 | AC16: =$M32 -> 0.0008845542015 | AD16: =$M33 -> 0.003918540921 | AE16: =$M34 -> 0.002084584345
A17: ='Corr. Matrix'!B18 -> INTC | B17: ='Corr. Matrix'!C18*'Corr. Matrix'!B$40*'Corr. Matrix'!B52 -> 0.004197420784 | C17: ='Corr. Matrix'!D18*'Corr. Matrix'!B$41*'Corr. Matrix'!B52 -> 0.004399530903 | D17: ='Corr. Matrix'!E18*'Corr. Matrix'!B$42*'Corr. Matrix'!B52 -> 0.00420812969 | E17: ='Corr. Matrix'!F18*'Corr. Matrix'!B$43*'Corr. Matrix'!B52 -> 0.003620009159 | F17: ='Corr. Matrix'!G18*'Corr. Matrix'!B$44*'Corr. Matrix'!B52 -> 0.003271987256 | G17: ='Corr. Matrix'!H18*'Corr. Matrix'!B$45*'Corr. Matrix'!B52 -> 0.003479606722 | H17: ='Corr. Matrix'!I18*'Corr. Matrix'!B$46*'Corr. Matrix'!B52 -> 0.002743793896 | I17: ='Corr. Matrix'!J18*'Corr. Matrix'!B$47*'Corr. Matrix'!B52 -> 0.003741807464 | J17: ='Corr. Matrix'!K18*'Corr. Matrix'!B$48*'Corr. Matrix'!B52 -> 0.003896103936 | K17: ='Corr. Matrix'!L18*'Corr. Matrix'!B$49*'Corr. Matrix'!B52 -> 0.002157595479 | L17: ='Corr. Matrix'!M18*'Corr. Matrix'!B$50*'Corr. Matrix'!B52 -> 0.001490404296 | M17: ='Corr. Matrix'!N18*'Corr. Matrix'!B$51*'Corr. Matrix'!B52 -> 0.002619246805 | N17: ='Corr. Matrix'!O18*'Corr. Matrix'!B$52*'Corr. Matrix'!B52 -> 0.006954458053 | O17: =$N18 -> 0.001652954283 | P17: =$N19 -> 0.003185837252 | Q17: =$N20 -> 0.0005889389324 | R17: =$N21 -> 0.001186820085 | S17: =$N22 -> 0.001398932522 | T17: =$N23 -> 0.003106844054 | U17: =$N24 -> 0.002260569267 | V17: =$N25 -> 0.002692836284 | W17: =$N26 -> 0.00119399285 | X17: =$N27 -> 0.0009071572738 | Y17: =$N28 -> 0.002870447723 | Z17: =$N29 -> 0.003339483738 | AA17: =$N30 -> 0.002469209796 | AB17: =$N31 -> 0.001439259547 | AC17: =$N32 -> 0.0004452366186 | AD17: =$N33 -> 0.003298209392 | AE17: =$N34 -> 0.0018319472
A18: ='Corr. Matrix'!B19 -> JNJ | B18: ='Corr. Matrix'!C19*'Corr. Matrix'!B$40*'Corr. Matrix'!B53 -> 0.003042331524 | C18: ='Corr. Matrix'!D19*'Corr. Matrix'!B$41*'Corr. Matrix'!B53 -> 0.001158372289 | D18: ='Corr. Matrix'!E19*'Corr. Matrix'!B$42*'Corr. Matrix'!B53 -> 0.001181845383 | E18: ='Corr. Matrix'!F19*'Corr. Matrix'!B$43*'Corr. Matrix'!B53 -> 0.001888083432 | F18: ='Corr. Matrix'!G19*'Corr. Matrix'!B$44*'Corr. Matrix'!B53 -> 0.001806673672 | G18: ='Corr. Matrix'!H19*'Corr. Matrix'!B$45*'Corr. Matrix'!B53 -> 0.002013879151 | H18: ='Corr. Matrix'!I19*'Corr. Matrix'!B$46*'Corr. Matrix'!B53 -> 0.001764259016 | I18: ='Corr. Matrix'!J19*'Corr. Matrix'!B$47*'Corr. Matrix'!B53 -> 0.001333959578 | J18: ='Corr. Matrix'!K19*'Corr. Matrix'!B$48*'Corr. Matrix'!B53 -> 0.0006393166771 | K18: ='Corr. Matrix'!L19*'Corr. Matrix'!B$49*'Corr. Matrix'!B53 -> 0.001150949701 | L18: ='Corr. Matrix'!M19*'Corr. Matrix'!B$50*'Corr. Matrix'!B53 -> 0.001325885139 | M18: ='Corr. Matrix'!N19*'Corr. Matrix'!B$51*'Corr. Matrix'!B53 -> 0.002102754063 | N18: ='Corr. Matrix'!O19*'Corr. Matrix'!B$52*'Corr. Matrix'!B53 -> 0.001652954283 | O18: ='Corr. Matrix'!P19*'Corr. Matrix'!B$53*'Corr. Matrix'!B53 -> 0.002659567001 | P18: =$O19 -> 0.001713844698 | Q18: =$O20 -> 0.001536422817 | R18: =$O21 -> 0.001323918563 | S18: =$O22 -> 0.001509017728 | T18: =$O23 -> 0.002119859969 | U18: =$O24 -> 0.001403569315 | V18: =$O25 -> 0.0005181338798 | W18: =$O26 -> 0.002090453684 | X18: =$O27 -> 0.001217419656 | Y18: =$O28 -> 0.001845537927 | Z18: =$O29 -> 0.002761334857 | AA18: =$O30 -> 0.001385388734 | AB18: =$O31 -> 0.001163249427 | AC18: =$O32 -> 0.001464033171 | AD18: =$O33 -> 0.002240398129 | AE18: =$O34 -> 0.001190190997
A19: ='Corr. Matrix'!B20 -> JPM | B19: ='Corr. Matrix'!C20*'Corr. Matrix'!B$40*'Corr. Matrix'!B54 -> 0.003712620219 | C19: ='Corr. Matrix'!D20*'Corr. Matrix'!B$41*'Corr. Matrix'!B54 -> 0.006411132335 | D19: ='Corr. Matrix'!E20*'Corr. Matrix'!B$42*'Corr. Matrix'!B54 -> 0.006767413265 | E19: ='Corr. Matrix'!F20*'Corr. Matrix'!B$43*'Corr. Matrix'!B54 -> 0.004847142136 | F19: ='Corr. Matrix'!G20*'Corr. Matrix'!B$44*'Corr. Matrix'!B54 -> 0.003389989805 | G19: ='Corr. Matrix'!H20*'Corr. Matrix'!B$45*'Corr. Matrix'!B54 -> 0.004825914301 | H19: ='Corr. Matrix'!I20*'Corr. Matrix'!B$46*'Corr. Matrix'!B54 -> 0.005493845007 | I19: ='Corr. Matrix'!J20*'Corr. Matrix'!B$47*'Corr. Matrix'!B54 -> 0.006694839783 | J19: ='Corr. Matrix'!K20*'Corr. Matrix'!B$48*'Corr. Matrix'!B54 -> 0.006744439521 | K19: ='Corr. Matrix'!L20*'Corr. Matrix'!B$49*'Corr. Matrix'!B54 -> 0.00347181336 | L19: ='Corr. Matrix'!M20*'Corr. Matrix'!B$50*'Corr. Matrix'!B54 -> 0.002602731353 | M19: ='Corr. Matrix'!N20*'Corr. Matrix'!B$51*'Corr. Matrix'!B54 -> 0.002964786845 | N19: ='Corr. Matrix'!O20*'Corr. Matrix'!B$52*'Corr. Matrix'!B54 -> 0.003185837252 | O19: ='Corr. Matrix'!P20*'Corr. Matrix'!B$53*'Corr. Matrix'!B54 -> 0.001713844698 | P19: ='Corr. Matrix'!Q20*'Corr. Matrix'!B$54*'Corr. Matrix'!B54 -> 0.006460120837 | Q19: =$P20 -> 0.00225066562 | R19: =$P21 -> 0.001083855615 | S19: =$P22 -> 0.002021006247 | T19: =$P23 -> 0.00332456082 | U19: =$P24 -> 0.002324519984 | V19: =$P25 -> 0.004112633668 | W19: =$P26 -> 0.001833441492 | X19: =$P27 -> 0.001126487451 | Y19: =$P28 -> 0.002965093199 | Z19: =$P29 -> 0.006360525499 | AA19: =$P30 -> 0.00561169709 | AB19: =$P31 -> 0.001433074367 | AC19: =$P32 -> 0.0009941105014 | AD19: =$P33 -> 0.004996688943 | AE19: =$P34 -> 0.002128953011
A20: ='Corr. Matrix'!B21 -> KO | B20: ='Corr. Matrix'!C21*'Corr. Matrix'!B$40*'Corr. Matrix'!B55 -> 0.002182972898 | C20: ='Corr. Matrix'!D21*'Corr. Matrix'!B$41*'Corr. Matrix'!B55 -> 0.002167748573 | D20: ='Corr. Matrix'!E21*'Corr. Matrix'!B$42*'Corr. Matrix'!B55 -> 0.00356706123 | E20: ='Corr. Matrix'!F21*'Corr. Matrix'!B$43*'Corr. Matrix'!B55 -> 0.001712571832 | F20: ='Corr. Matrix'!G21*'Corr. Matrix'!B$44*'Corr. Matrix'!B55 -> 0.001360831901 | G20: ='Corr. Matrix'!H21*'Corr. Matrix'!B$45*'Corr. Matrix'!B55 -> 0.002422595261 | H20: ='Corr. Matrix'!I21*'Corr. Matrix'!B$46*'Corr. Matrix'!B55 -> 0.002842314886 | I20: ='Corr. Matrix'!J21*'Corr. Matrix'!B$47*'Corr. Matrix'!B55 -> 0.002540906485 | J20: ='Corr. Matrix'!K21*'Corr. Matrix'!B$48*'Corr. Matrix'!B55 -> 0.002099794079 | K20: ='Corr. Matrix'!L21*'Corr. Matrix'!B$49*'Corr. Matrix'!B55 -> 0.001796327138 | L20: ='Corr. Matrix'!M21*'Corr. Matrix'!B$50*'Corr. Matrix'!B55 -> 0.001809270129 | M20: ='Corr. Matrix'!N21*'Corr. Matrix'!B$51*'Corr. Matrix'!B55 -> 0.001917739792 | N20: ='Corr. Matrix'!O21*'Corr. Matrix'!B$52*'Corr. Matrix'!B55 -> 0.0005889389324 | O20: ='Corr. Matrix'!P21*'Corr. Matrix'!B$53*'Corr. Matrix'!B55 -> 0.001536422817 | P20: ='Corr. Matrix'!Q21*'Corr. Matrix'!B$54*'Corr. Matrix'!B55 -> 0.00225066562 | Q20: ='Corr. Matrix'!R21*'Corr. Matrix'!B$55*'Corr. Matrix'!B55 -> 0.003295680837 | R20: =$Q21 -> 0.0002827224014 | S20: =$Q22 -> 0.00218710775 | T20: =$Q23 -> 0.001601832814 | U20: =$Q24 -> 0.001177140797 | V20: =$Q25 -> -0.000770472557 | W20: =$Q26 -> 0.001144278308 | X20: =$Q27 -> 0.001855902295 | Y20: =$Q28 -> 0.001400885433 | Z20: =$Q29 -> 0.003155260751 | AA20: =$Q30 -> 0.002279580924 | AB20: =$Q31 -> 0.001182584691 | AC20: =$Q32 -> 0.001278765098 | AD20: =$Q33 -> 0.002374250294 | AE20: =$Q34 -> 0.0003833230142
A21: ='Corr. Matrix'!B22 -> KR | B21: ='Corr. Matrix'!C22*'Corr. Matrix'!B$40*'Corr. Matrix'!B56 -> 0.004134505866 | C21: ='Corr. Matrix'!D22*'Corr. Matrix'!B$41*'Corr. Matrix'!B56 -> 0.00136591915 | D21: ='Corr. Matrix'!E22*'Corr. Matrix'!B$42*'Corr. Matrix'!B56 -> 0.001250035749 | E21: ='Corr. Matrix'!F22*'Corr. Matrix'!B$43*'Corr. Matrix'!B56 -> 0.001607887707 | F21: ='Corr. Matrix'!G22*'Corr. Matrix'!B$44*'Corr. Matrix'!B56 -> 0.001960445823 | G21: ='Corr. Matrix'!H22*'Corr. Matrix'!B$45*'Corr. Matrix'!B56 -> 0.001269409606 | H21: ='Corr. Matrix'!I22*'Corr. Matrix'!B$46*'Corr. Matrix'!B56 -> 0.001358496548 | I21: ='Corr. Matrix'!J22*'Corr. Matrix'!B$47*'Corr. Matrix'!B56 -> 0.001335944682 | J21: ='Corr. Matrix'!K22*'Corr. Matrix'!B$48*'Corr. Matrix'!B56 -> 0.000646588717 | K21: ='Corr. Matrix'!L22*'Corr. Matrix'!B$49*'Corr. Matrix'!B56 -> 0.00160835982 | L21: ='Corr. Matrix'!M22*'Corr. Matrix'!B$50*'Corr. Matrix'!B56 -> 0.001023074104 | M21: ='Corr. Matrix'!N22*'Corr. Matrix'!B$51*'Corr. Matrix'!B56 -> 0.0008921440094 | N21: ='Corr. Matrix'!O22*'Corr. Matrix'!B$52*'Corr. Matrix'!B56 -> 0.001186820085 | O21: ='Corr. Matrix'!P22*'Corr. Matrix'!B$53*'Corr. Matrix'!B56 -> 0.001323918563 | P21: ='Corr. Matrix'!Q22*'Corr. Matrix'!B$54*'Corr. Matrix'!B56 -> 0.001083855615 | Q21: ='Corr. Matrix'!R22*'Corr. Matrix'!B$55*'Corr. Matrix'!B56 -> 0.0002827224014 | R21: ='Corr. Matrix'!S22*'Corr. Matrix'!B$56*'Corr. Matrix'!B56 -> 0.006013414509 | S21: =$R22 -> 0.0006431626584 | T21: =$R23 -> 0.001607929257 | U21: =$R24 -> 0.001496373203 | V21: =$R25 -> 0.00144508126 | W21: =$R26 -> 0.001497120908 | X21: =$R27 -> 0.0009112366728 | Y21: =$R28 -> 0.002138759921 | Z21: =$R29 -> 0.001485970456 | AA21: =$R30 -> 0.0004860296019 | AB21: =$R31 -> 0.0009710053313 | AC21: =$R32 -> 0.002293858238 | AD21: =$R33 -> 0.0007071711076 | AE21: =$R34 -> 0.001820151447
A22: ='Corr. Matrix'!B23 -> MCD | B22: ='Corr. Matrix'!C23*'Corr. Matrix'!B$40*'Corr. Matrix'!B57 -> 0.003385653331 | C22: ='Corr. Matrix'!D23*'Corr. Matrix'!B$41*'Corr. Matrix'!B57 -> 0.003257818494 | D22: ='Corr. Matrix'!E23*'Corr. Matrix'!B$42*'Corr. Matrix'!B57 -> 0.003271782697 | E22: ='Corr. Matrix'!F23*'Corr. Matrix'!B$43*'Corr. Matrix'!B57 -> 0.001670379339 | F22: ='Corr. Matrix'!G23*'Corr. Matrix'!B$44*'Corr. Matrix'!B57 -> 0.001584323529 | G22: ='Corr. Matrix'!H23*'Corr. Matrix'!B$45*'Corr. Matrix'!B57 -> 0.002674681529 | H22: ='Corr. Matrix'!I23*'Corr. Matrix'!B$46*'Corr. Matrix'!B57 -> 0.0024148185 | I22: ='Corr. Matrix'!J23*'Corr. Matrix'!B$47*'Corr. Matrix'!B57 -> 0.003446771863 | J22: ='Corr. Matrix'!K23*'Corr. Matrix'!B$48*'Corr. Matrix'!B57 -> 0.001564775766 | K22: ='Corr. Matrix'!L23*'Corr. Matrix'!B$49*'Corr. Matrix'!B57 -> 0.001516013552 | L22: ='Corr. Matrix'!M23*'Corr. Matrix'!B$50*'Corr. Matrix'!B57 -> 0.002406443512 | M22: ='Corr. Matrix'!N23*'Corr. Matrix'!B$51*'Corr. Matrix'!B57 -> 0.002211885197 | N22: ='Corr. Matrix'!O23*'Corr. Matrix'!B$52*'Corr. Matrix'!B57 -> 0.001398932522 | O22: ='Corr. Matrix'!P23*'Corr. Matrix'!B$53*'Corr. Matrix'!B57 -> 0.001509017728 | P22: ='Corr. Matrix'!Q23*'Corr. Matrix'!B$54*'Corr. Matrix'!B57 -> 0.002021006247 | Q22: ='Corr. Matrix'!R23*'Corr. Matrix'!B$55*'Corr. Matrix'!B57 -> 0.00218710775 | R22: ='Corr. Matrix'!S23*'Corr. Matrix'!B$56*'Corr. Matrix'!B57 -> 0.0006431626584 | S22: ='Corr. Matrix'!T23*'Corr. Matrix'!B$57*'Corr. Matrix'!B57 -> 0.003105588738 | T22: =$S23 -> 0.001847773457 | U22: =$S24 -> 0.001394521845 | V22: =$S25 -> 0.0008786578854 | W22: =$S26 -> 0.001543782922 | X22: =$S27 -> 0.00150897642 | Y22: =$S28 -> 0.001968533973 | Z22: =$S29 -> 0.003256923588 | AA22: =$S30 -> 0.002184059221 | AB22: =$S31 -> 0.001103322565 | AC22: =$S32 -> 0.001453076463 | AD22: =$S33 -> 0.002563274732 | AE22: =$S34 -> 0.001290785668
A23: ='Corr. Matrix'!B24 -> MMM | B23: ='Corr. Matrix'!C24*'Corr. Matrix'!B$40*'Corr. Matrix'!B58 -> 0.004156612801 | C23: ='Corr. Matrix'!D24*'Corr. Matrix'!B$41*'Corr. Matrix'!B58 -> 0.00456182743 | D23: ='Corr. Matrix'!E24*'Corr. Matrix'!B$42*'Corr. Matrix'!B58 -> 0.003773634744 | E23: ='Corr. Matrix'!F24*'Corr. Matrix'!B$43*'Corr. Matrix'!B58 -> 0.004738763021 | F23: ='Corr. Matrix'!G24*'Corr. Matrix'!B$44*'Corr. Matrix'!B58 -> 0.00288524136 | G23: ='Corr. Matrix'!H24*'Corr. Matrix'!B$45*'Corr. Matrix'!B58 -> 0.003684643546 | H23: ='Corr. Matrix'!I24*'Corr. Matrix'!B$46*'Corr. Matrix'!B58 -> 0.002909679503 | I23: ='Corr. Matrix'!J24*'Corr. Matrix'!B$47*'Corr. Matrix'!B58 -> 0.003937513861 | J23: ='Corr. Matrix'!K24*'Corr. Matrix'!B$48*'Corr. Matrix'!B58 -> 0.003404789914 | K23: ='Corr. Matrix'!L24*'Corr. Matrix'!B$49*'Corr. Matrix'!B58 -> 0.002817360749 | L23: ='Corr. Matrix'!M24*'Corr. Matrix'!B$50*'Corr. Matrix'!B58 -> 0.002870041159 | M23: ='Corr. Matrix'!N24*'Corr. Matrix'!B$51*'Corr. Matrix'!B58 -> 0.003168681083 | N23: ='Corr. Matrix'!O24*'Corr. Matrix'!B$52*'Corr. Matrix'!B58 -> 0.003106844054 | O23: ='Corr. Matrix'!P24*'Corr. Matrix'!B$53*'Corr. Matrix'!B58 -> 0.002119859969 | P23: ='Corr. Matrix'!Q24*'Corr. Matrix'!B$54*'Corr. Matrix'!B58 -> 0.00332456082 | Q23: ='Corr. Matrix'!R24*'Corr. Matrix'!B$55*'Corr. Matrix'!B58 -> 0.001601832814 | R23: ='Corr. Matrix'!S24*'Corr. Matrix'!B$56*'Corr. Matrix'!B58 -> 0.001607929257 | S23: ='Corr. Matrix'!T24*'Corr. Matrix'!B$57*'Corr. Matrix'!B58 -> 0.001847773457 | T23: ='Corr. Matrix'!U24*'Corr. Matrix'!B$58*'Corr. Matrix'!B58 -> 0.004825914895 | U23: =$T24 -> 0.002357041143 | V23: =$T25 -> 0.002712396666 | W23: =$T26 -> 0.002162897292 | X23: =$T27 -> 0.001596744653 | Y23: =$T28 -> 0.003152750577 | Z23: =$T29 -> 0.004109401763 | AA23: =$T30 -> 0.00289916625 | AB23: =$T31 -> 0.001169294665 | AC23: =$T32 -> 0.001481831456 | AD23: =$T33 -> 0.00364667546 | AE23: =$T34 -> 0.002557864579
A24: ='Corr. Matrix'!B25 -> MSFT | B24: ='Corr. Matrix'!C25*'Corr. Matrix'!B$40*'Corr. Matrix'!B59 -> 0.006496195866 | C24: ='Corr. Matrix'!D25*'Corr. Matrix'!B$41*'Corr. Matrix'!B59 -> 0.002719868313 | D24: ='Corr. Matrix'!E25*'Corr. Matrix'!B$42*'Corr. Matrix'!B59 -> 0.003046993699 | E24: ='Corr. Matrix'!F25*'Corr. Matrix'!B$43*'Corr. Matrix'!B59 -> 0.002358913181 | F24: ='Corr. Matrix'!G25*'Corr. Matrix'!B$44*'Corr. Matrix'!B59 -> 0.002396283139 | G24: ='Corr. Matrix'!H25*'Corr. Matrix'!B$45*'Corr. Matrix'!B59 -> 0.002056575587 | H24: ='Corr. Matrix'!I25*'Corr. Matrix'!B$46*'Corr. Matrix'!B59 -> 0.002914826383 | I24: ='Corr. Matrix'!J25*'Corr. Matrix'!B$47*'Corr. Matrix'!B59 -> 0.003526680547 | J24: ='Corr. Matrix'!K25*'Corr. Matrix'!B$48*'Corr. Matrix'!B59 -> 0.002238808966 | K24: ='Corr. Matrix'!L25*'Corr. Matrix'!B$49*'Corr. Matrix'!B59 -> 0.003369868859 | L24: ='Corr. Matrix'!M25*'Corr. Matrix'!B$50*'Corr. Matrix'!B59 -> 0.002638373248 | M24: ='Corr. Matrix'!N25*'Corr. Matrix'!B$51*'Corr. Matrix'!B59 -> 0.001525714704 | N24: ='Corr. Matrix'!O25*'Corr. Matrix'!B$52*'Corr. Matrix'!B59 -> 0.002260569267 | O24: ='Corr. Matrix'!P25*'Corr. Matrix'!B$53*'Corr. Matrix'!B59 -> 0.001403569315 | P24: ='Corr. Matrix'!Q25*'Corr. Matrix'!B$54*'Corr. Matrix'!B59 -> 0.002324519984 | Q24: ='Corr. Matrix'!R25*'Corr. Matrix'!B$55*'Corr. Matrix'!B59 -> 0.001177140797 | R24: ='Corr. Matrix'!S25*'Corr. Matrix'!B$56*'Corr. Matrix'!B59 -> 0.001496373203 | S24: ='Corr. Matrix'!T25*'Corr. Matrix'!B$57*'Corr. Matrix'!B59 -> 0.001394521845 | T24: ='Corr. Matrix'!U25*'Corr. Matrix'!B$58*'Corr. Matrix'!B59 -> 0.002357041143 | U24: ='Corr. Matrix'!V25*'Corr. Matrix'!B$59*'Corr. Matrix'!B59 -> 0.003709975174 | V24: =$U25 -> 0.004115814229 | W24: =$U26 -> 0.001434903051 | X24: =$U27 -> 0.001019032415 | Y24: =$U28 -> 0.003931451444 | Z24: =$U29 -> 0.002887838499 | AA24: =$U30 -> 0.002196640358 | AB24: =$U31 -> 0.0008357463418 | AC24: =$U32 -> 0.001393310262 | AD24: =$U33 -> 0.001853334867 | AE24: =$U34 -> 0.004215988717
A25: ='Corr. Matrix'!B26 -> NFLX | B25: ='Corr. Matrix'!C26*'Corr. Matrix'!B$40*'Corr. Matrix'!B60 -> 0.008791224371 | C25: ='Corr. Matrix'!D26*'Corr. Matrix'!B$41*'Corr. Matrix'!B60 -> 0.004773609427 | D25: ='Corr. Matrix'!E26*'Corr. Matrix'!B$42*'Corr. Matrix'!B60 -> 0.005051938105 | E25: ='Corr. Matrix'!F26*'Corr. Matrix'!B$43*'Corr. Matrix'!B60 -> 0.004018676102 | F25: ='Corr. Matrix'!G26*'Corr. Matrix'!B$44*'Corr. Matrix'!B60 -> 0.00430781948 | G25: ='Corr. Matrix'!H26*'Corr. Matrix'!B$45*'Corr. Matrix'!B60 -> 0.00256964636 | H25: ='Corr. Matrix'!I26*'Corr. Matrix'!B$46*'Corr. Matrix'!B60 -> 0.005369223369 | I25: ='Corr. Matrix'!J26*'Corr. Matrix'!B$47*'Corr. Matrix'!B60 -> 0.005912409312 | J25: ='Corr. Matrix'!K26*'Corr. Matrix'!B$48*'Corr. Matrix'!B60 -> 0.006513473456 | K25: ='Corr. Matrix'!L26*'Corr. Matrix'!B$49*'Corr. Matrix'!B60 -> 0.00427251907 | L25: ='Corr. Matrix'!M26*'Corr. Matrix'!B$50*'Corr. Matrix'!B60 -> 0.003156450601 | M25: ='Corr. Matrix'!N26*'Corr. Matrix'!B$51*'Corr. Matrix'!B60 -> 0.001521178669 | N25: ='Corr. Matrix'!O26*'Corr. Matrix'!B$52*'Corr. Matrix'!B60 -> 0.002692836284 | O25: ='Corr. Matrix'!P26*'Corr. Matrix'!B$53*'Corr. Matrix'!B60 -> 0.0005181338798 | P25: ='Corr. Matrix'!Q26*'Corr. Matrix'!B$54*'Corr. Matrix'!B60 -> 0.004112633668 | Q25: ='Corr. Matrix'!R26*'Corr. Matrix'!B$55*'Corr. Matrix'!B60 -> -0.000770472557 | R25: ='Corr. Matrix'!S26*'Corr. Matrix'!B$56*'Corr. Matrix'!B60 -> 0.00144508126 | S25: ='Corr. Matrix'!T26*'Corr. Matrix'!B$57*'Corr. Matrix'!B60 -> 0.0008786578854 | T25: ='Corr. Matrix'!U26*'Corr. Matrix'!B$58*'Corr. Matrix'!B60 -> 0.002712396666 | U25: ='Corr. Matrix'!V26*'Corr. Matrix'!B$59*'Corr. Matrix'!B60 -> 0.004115814229 | V25: ='Corr. Matrix'!W26*'Corr. Matrix'!B$60*'Corr. Matrix'!B60 -> 0.01815718386 | W25: =$V26 -> 0.0016056583 | X25: =$V27 -> -0.0004987941645 | Y25: =$V28 -> 0.005226366901 | Z25: =$V29 -> 0.003363095048 | AA25: =$V30 -> 0.003162803928 | AB25: =$V31 -> 0.0003062809616 | AC25: =$V32 -> 0.0006000835062 | AD25: =$V33 -> 0.001657222546 | AE25: =$V34 -> 0.008050778053
A26: ='Corr. Matrix'!B27 -> PFE | B26: ='Corr. Matrix'!C27*'Corr. Matrix'!B$40*'Corr. Matrix'!B61 -> 0.002377143406 | C26: ='Corr. Matrix'!D27*'Corr. Matrix'!B$41*'Corr. Matrix'!B61 -> 0.001526116713 | D26: ='Corr. Matrix'!E27*'Corr. Matrix'!B$42*'Corr. Matrix'!B61 -> 0.0007990783467 | E26: ='Corr. Matrix'!F27*'Corr. Matrix'!B$43*'Corr. Matrix'!B61 -> 0.002116220612 | F26: ='Corr. Matrix'!G27*'Corr. Matrix'!B$44*'Corr. Matrix'!B61 -> 0.002669143244 | G26: ='Corr. Matrix'!H27*'Corr. Matrix'!B$45*'Corr. Matrix'!B61 -> 0.002011882484 | H26: ='Corr. Matrix'!I27*'Corr. Matrix'!B$46*'Corr. Matrix'!B61 -> 0.001090657097 | I26: ='Corr. Matrix'!J27*'Corr. Matrix'!B$47*'Corr. Matrix'!B61 -> 0.001520973647 | J26: ='Corr. Matrix'!K27*'Corr. Matrix'!B$48*'Corr. Matrix'!B61 -> 0.0001497558989 | K26: ='Corr. Matrix'!L27*'Corr. Matrix'!B$49*'Corr. Matrix'!B61 -> 0.001634774111 | L26: ='Corr. Matrix'!M27*'Corr. Matrix'!B$50*'Corr. Matrix'!B61 -> 0.002236982881 | M26: ='Corr. Matrix'!N27*'Corr. Matrix'!B$51*'Corr. Matrix'!B61 -> 0.002184966462 | N26: ='Corr. Matrix'!O27*'Corr. Matrix'!B$52*'Corr. Matrix'!B61 -> 0.00119399285 | O26: ='Corr. Matrix'!P27*'Corr. Matrix'!B$53*'Corr. Matrix'!B61 -> 0.002090453684 | P26: ='Corr. Matrix'!Q27*'Corr. Matrix'!B$54*'Corr. Matrix'!B61 -> 0.001833441492 | Q26: ='Corr. Matrix'!R27*'Corr. Matrix'!B$55*'Corr. Matrix'!B61 -> 0.001144278308 | R26: ='Corr. Matrix'!S27*'Corr. Matrix'!B$56*'Corr. Matrix'!B61 -> 0.001497120908 | S26: ='Corr. Matrix'!T27*'Corr. Matrix'!B$57*'Corr. Matrix'!B61 -> 0.001543782922 | T26: ='Corr. Matrix'!U27*'Corr. Matrix'!B$58*'Corr. Matrix'!B61 -> 0.002162897292 | U26: ='Corr. Matrix'!V27*'Corr. Matrix'!B$59*'Corr. Matrix'!B61 -> 0.001434903051 | V26: ='Corr. Matrix'!W27*'Corr. Matrix'!B$60*'Corr. Matrix'!B61 -> 0.0016056583 | W26: ='Corr. Matrix'!X27*'Corr. Matrix'!B$61*'Corr. Matrix'!B61 -> 0.005394958413 | X26: =$W27 -> 0.001243173151 | Y26: =$W28 -> 0.001930508979 | Z26: =$W29 -> 0.002516035966 | AA26: =$W30 -> 0.000901732684 | AB26: =$W31 -> 0.001486920417 | AC26: =$W32 -> 0.001246392118 | AD26: =$W33 -> 0.001094361147 | AE26: =$W34 -> 0.00187859144
A27: ='Corr. Matrix'!B28 -> PG | B27: ='Corr. Matrix'!C28*'Corr. Matrix'!B$40*'Corr. Matrix'!B62 -> 0.001258346518 | C27: ='Corr. Matrix'!D28*'Corr. Matrix'!B$41*'Corr. Matrix'!B62 -> 0.001554169549 | D27: ='Corr. Matrix'!E28*'Corr. Matrix'!B$42*'Corr. Matrix'!B62 -> 0.001950243978 | E27: ='Corr. Matrix'!F28*'Corr. Matrix'!B$43*'Corr. Matrix'!B62 -> 0.001135931335 | F27: ='Corr. Matrix'!G28*'Corr. Matrix'!B$44*'Corr. Matrix'!B62 -> 0.001536684868 | G27: ='Corr. Matrix'!H28*'Corr. Matrix'!B$45*'Corr. Matrix'!B62 -> 0.0009509853173 | H27: ='Corr. Matrix'!I28*'Corr. Matrix'!B$46*'Corr. Matrix'!B62 -> 0.001250607455 | I27: ='Corr. Matrix'!J28*'Corr. Matrix'!B$47*'Corr. Matrix'!B62 -> 0.001561407202 | J27: ='Corr. Matrix'!K28*'Corr. Matrix'!B$48*'Corr. Matrix'!B62 -> 0.0005207062128 | K27: ='Corr. Matrix'!L28*'Corr. Matrix'!B$49*'Corr. Matrix'!B62 -> 0.001040136868 | L27: ='Corr. Matrix'!M28*'Corr. Matrix'!B$50*'Corr. Matrix'!B62 -> 0.001596107707 | M27: ='Corr. Matrix'!N28*'Corr. Matrix'!B$51*'Corr. Matrix'!B62 -> 0.001754985657 | N27: ='Corr. Matrix'!O28*'Corr. Matrix'!B$52*'Corr. Matrix'!B62 -> 0.0009071572738 | O27: ='Corr. Matrix'!P28*'Corr. Matrix'!B$53*'Corr. Matrix'!B62 -> 0.001217419656 | P27: ='Corr. Matrix'!Q28*'Corr. Matrix'!B$54*'Corr. Matrix'!B62 -> 0.001126487451 | Q27: ='Corr. Matrix'!R28*'Corr. Matrix'!B$55*'Corr. Matrix'!B62 -> 0.001855902295 | R27: ='Corr. Matrix'!S28*'Corr. Matrix'!B$56*'Corr. Matrix'!B62 -> 0.0009112366728 | S27: ='Corr. Matrix'!T28*'Corr. Matrix'!B$57*'Corr. Matrix'!B62 -> 0.00150897642 | T27: ='Corr. Matrix'!U28*'Corr. Matrix'!B$58*'Corr. Matrix'!B62 -> 0.001596744653 | U27: ='Corr. Matrix'!V28*'Corr. Matrix'!B$59*'Corr. Matrix'!B62 -> 0.001019032415 | V27: ='Corr. Matrix'!W28*'Corr. Matrix'!B$60*'Corr. Matrix'!B62 -> -0.0004987941645 | W27: ='Corr. Matrix'!X28*'Corr. Matrix'!B$61*'Corr. Matrix'!B62 -> 0.001243173151 | X27: ='Corr. Matrix'!Y28*'Corr. Matrix'!B$62*'Corr. Matrix'!B62 -> 0.002471791684 | Y27: =$X28 -> 0.001549303689 | Z27: =$X29 -> 0.001744327715 | AA27: =$X30 -> 0.001020510411 | AB27: =$X31 -> 0.001168497078 | AC27: =$X32 -> 0.001586247578 | AD27: =$X33 -> 0.0008675874958 | AE27: =$X34 -> 0.0003814089353
A28: ='Corr. Matrix'!B29 -> AAPL | B28: ='Corr. Matrix'!C29*'Corr. Matrix'!B$40*'Corr. Matrix'!B63 -> 0.011061598 | C28: ='Corr. Matrix'!D29*'Corr. Matrix'!B$41*'Corr. Matrix'!B63 -> 0.004724630814 | D28: ='Corr. Matrix'!E29*'Corr. Matrix'!B$42*'Corr. Matrix'!B63 -> 0.003844996482 | E28: ='Corr. Matrix'!F29*'Corr. Matrix'!B$43*'Corr. Matrix'!B63 -> 0.002767757633 | F28: ='Corr. Matrix'!G29*'Corr. Matrix'!B$44*'Corr. Matrix'!B63 -> 0.003322856554 | G28: ='Corr. Matrix'!H29*'Corr. Matrix'!B$45*'Corr. Matrix'!B63 -> 0.002454273557 | H28: ='Corr. Matrix'!I29*'Corr. Matrix'!B$46*'Corr. Matrix'!B63 -> 0.004312937213 | I28: ='Corr. Matrix'!J29*'Corr. Matrix'!B$47*'Corr. Matrix'!B63 -> 0.005177688406 | J28: ='Corr. Matrix'!K29*'Corr. Matrix'!B$48*'Corr. Matrix'!B63 -> 0.004116186377 | K28: ='Corr. Matrix'!L29*'Corr. Matrix'!B$49*'Corr. Matrix'!B63 -> 0.003858161666 | L28: ='Corr. Matrix'!M29*'Corr. Matrix'!B$50*'Corr. Matrix'!B63 -> 0.00308479562 | M28: ='Corr. Matrix'!N29*'Corr. Matrix'!B$51*'Corr. Matrix'!B63 -> 0.002223817602 | N28: ='Corr. Matrix'!O29*'Corr. Matrix'!B$52*'Corr. Matrix'!B63 -> 0.002870447723 | O28: ='Corr. Matrix'!P29*'Corr. Matrix'!B$53*'Corr. Matrix'!B63 -> 0.001845537927 | P28: ='Corr. Matrix'!Q29*'Corr. Matrix'!B$54*'Corr. Matrix'!B63 -> 0.002965093199 | Q28: ='Corr. Matrix'!R29*'Corr. Matrix'!B$55*'Corr. Matrix'!B63 -> 0.001400885433 | R28: ='Corr. Matrix'!S29*'Corr. Matrix'!B$56*'Corr. Matrix'!B63 -> 0.002138759921 | S28: ='Corr. Matrix'!T29*'Corr. Matrix'!B$57*'Corr. Matrix'!B63 -> 0.001968533973 | T28: ='Corr. Matrix'!U29*'Corr. Matrix'!B$58*'Corr. Matrix'!B63 -> 0.003152750577 | U28: ='Corr. Matrix'!V29*'Corr. Matrix'!B$59*'Corr. Matrix'!B63 -> 0.003931451444 | V28: ='Corr. Matrix'!W29*'Corr. Matrix'!B$60*'Corr. Matrix'!B63 -> 0.005226366901 | W28: ='Corr. Matrix'!X29*'Corr. Matrix'!B$61*'Corr. Matrix'!B63 -> 0.001930508979 | X28: ='Corr. Matrix'!Y29*'Corr. Matrix'!B$62*'Corr. Matrix'!B63 -> 0.001549303689 | Y28: ='Corr. Matrix'!Z29*'Corr. Matrix'!B$63*'Corr. Matrix'!B63 -> 0.008615193735 | Z28: =$Y29 -> 0.004168214249 | AA28: =$Y30 -> 0.002724034094 | AB28: =$Y31 -> 0.0006200061233 | AC28: =$Y32 -> 0.002084756577 | AD28: =$Y33 -> 0.002836372073 | AE28: =$Y34 -> 0.005783084324
A29: ='Corr. Matrix'!B30 -> PRU | B29: ='Corr. Matrix'!C30*'Corr. Matrix'!B$40*'Corr. Matrix'!B64 -> 0.006215929675 | C29: ='Corr. Matrix'!D30*'Corr. Matrix'!B$41*'Corr. Matrix'!B64 -> 0.007035338982 | D29: ='Corr. Matrix'!E30*'Corr. Matrix'!B$42*'Corr. Matrix'!B64 -> 0.007993411846 | E29: ='Corr. Matrix'!F30*'Corr. Matrix'!B$43*'Corr. Matrix'!B64 -> 0.005635053531 | F29: ='Corr. Matrix'!G30*'Corr. Matrix'!B$44*'Corr. Matrix'!B64 -> 0.00417445289 | G29: ='Corr. Matrix'!H30*'Corr. Matrix'!B$45*'Corr. Matrix'!B64 -> 0.00668074218 | H29: ='Corr. Matrix'!I30*'Corr. Matrix'!B$46*'Corr. Matrix'!B64 -> 0.005989904596 | I29: ='Corr. Matrix'!J30*'Corr. Matrix'!B$47*'Corr. Matrix'!B64 -> 0.007623470243 | J29: ='Corr. Matrix'!K30*'Corr. Matrix'!B$48*'Corr. Matrix'!B64 -> 0.007967437006 | K29: ='Corr. Matrix'!L30*'Corr. Matrix'!B$49*'Corr. Matrix'!B64 -> 0.004251149616 | L29: ='Corr. Matrix'!M30*'Corr. Matrix'!B$50*'Corr. Matrix'!B64 -> 0.003370249446 | M29: ='Corr. Matrix'!N30*'Corr. Matrix'!B$51*'Corr. Matrix'!B64 -> 0.004928770226 | N29: ='Corr. Matrix'!O30*'Corr. Matrix'!B$52*'Corr. Matrix'!B64 -> 0.003339483738 | O29: ='Corr. Matrix'!P30*'Corr. Matrix'!B$53*'Corr. Matrix'!B64 -> 0.002761334857 | P29: ='Corr. Matrix'!Q30*'Corr. Matrix'!B$54*'Corr. Matrix'!B64 -> 0.006360525499 | Q29: ='Corr. Matrix'!R30*'Corr. Matrix'!B$55*'Corr. Matrix'!B64 -> 0.003155260751 | R29: ='Corr. Matrix'!S30*'Corr. Matrix'!B$56*'Corr. Matrix'!B64 -> 0.001485970456 | S29: ='Corr. Matrix'!T30*'Corr. Matrix'!B$57*'Corr. Matrix'!B64 -> 0.003256923588 | T29: ='Corr. Matrix'!U30*'Corr. Matrix'!B$58*'Corr. Matrix'!B64 -> 0.004109401763 | U29: ='Corr. Matrix'!V30*'Corr. Matrix'!B$59*'Corr. Matrix'!B64 -> 0.002887838499 | V29: ='Corr. Matrix'!W30*'Corr. Matrix'!B$60*'Corr. Matrix'!B64 -> 0.003363095048 | W29: ='Corr. Matrix'!X30*'Corr. Matrix'!B$61*'Corr. Matrix'!B64 -> 0.002516035966 | X29: ='Corr. Matrix'!Y30*'Corr. Matrix'!B$62*'Corr. Matrix'!B64 -> 0.001744327715 | Y29: ='Corr. Matrix'!Z30*'Corr. Matrix'!B$63*'Corr. Matrix'!B64 -> 0.004168214249 | Z29: ='Corr. Matrix'!AA30*'Corr. Matrix'!B$64*'Corr. Matrix'!B64 -> 0.009556011748 | AA29: =$Z30 -> 0.006971852869 | AB29: =$Z31 -> 0.001299341922 | AC29: =$Z32 -> 0.002182383054 | AD29: =$Z33 -> 0.007256768796 | AE29: =$Z34 -> 0.00326773811
A30: ='Corr. Matrix'!B31 -> TFC | B30: ='Corr. Matrix'!C31*'Corr. Matrix'!B$40*'Corr. Matrix'!B65 -> 0.005451028802 | C30: ='Corr. Matrix'!D31*'Corr. Matrix'!B$41*'Corr. Matrix'!B65 -> 0.006677958239 | D30: ='Corr. Matrix'!E31*'Corr. Matrix'!B$42*'Corr. Matrix'!B65 -> 0.007537694946 | E30: ='Corr. Matrix'!F31*'Corr. Matrix'!B$43*'Corr. Matrix'!B65 -> 0.00353914167 | F30: ='Corr. Matrix'!G31*'Corr. Matrix'!B$44*'Corr. Matrix'!B65 -> 0.002615537143 | G30: ='Corr. Matrix'!H31*'Corr. Matrix'!B$45*'Corr. Matrix'!B65 -> 0.005013313238 | H30: ='Corr. Matrix'!I31*'Corr. Matrix'!B$46*'Corr. Matrix'!B65 -> 0.004753367793 | I30: ='Corr. Matrix'!J31*'Corr. Matrix'!B$47*'Corr. Matrix'!B65 -> 0.007206828191 | J30: ='Corr. Matrix'!K31*'Corr. Matrix'!B$48*'Corr. Matrix'!B65 -> 0.006256279168 | K30: ='Corr. Matrix'!L31*'Corr. Matrix'!B$49*'Corr. Matrix'!B65 -> 0.0039019269 | L30: ='Corr. Matrix'!M31*'Corr. Matrix'!B$50*'Corr. Matrix'!B65 -> 0.002418164522 | M30: ='Corr. Matrix'!N31*'Corr. Matrix'!B$51*'Corr. Matrix'!B65 -> 0.002625222271 | N30: ='Corr. Matrix'!O31*'Corr. Matrix'!B$52*'Corr. Matrix'!B65 -> 0.002469209796 | O30: ='Corr. Matrix'!P31*'Corr. Matrix'!B$53*'Corr. Matrix'!B65 -> 0.001385388734 | P30: ='Corr. Matrix'!Q31*'Corr. Matrix'!B$54*'Corr. Matrix'!B65 -> 0.00561169709 | Q30: ='Corr. Matrix'!R31*'Corr. Matrix'!B$55*'Corr. Matrix'!B65 -> 0.002279580924 | R30: ='Corr. Matrix'!S31*'Corr. Matrix'!B$56*'Corr. Matrix'!B65 -> 0.0004860296019 | S30: ='Corr. Matrix'!T31*'Corr. Matrix'!B$57*'Corr. Matrix'!B65 -> 0.002184059221 | T30: ='Corr. Matrix'!U31*'Corr. Matrix'!B$58*'Corr. Matrix'!B65 -> 0.00289916625 | U30: ='Corr. Matrix'!V31*'Corr. Matrix'!B$59*'Corr. Matrix'!B65 -> 0.002196640358 | V30: ='Corr. Matrix'!W31*'Corr. Matrix'!B$60*'Corr. Matrix'!B65 -> 0.003162803928 | W30: ='Corr. Matrix'!X31*'Corr. Matrix'!B$61*'Corr. Matrix'!B65 -> 0.000901732684 | X30: ='Corr. Matrix'!Y31*'Corr. Matrix'!B$62*'Corr. Matrix'!B65 -> 0.001020510411 | Y30: ='Corr. Matrix'!Z31*'Corr. Matrix'!B$63*'Corr. Matrix'!B65 -> 0.002724034094 | Z30: ='Corr. Matrix'!AA31*'Corr. Matrix'!B$64*'Corr. Matrix'!B65 -> 0.006971852869 | AA30: ='Corr. Matrix'!AB31*'Corr. Matrix'!B$65*'Corr. Matrix'!B65 -> 0.007880197673 | AB30: =$AA31 -> 0.00143600289 | AC30: =$AA32 -> 0.0006942295888 | AD30: =$AA33 -> 0.005671641034 | AE30: =$AA34 -> 0.002446902741
A31: ='Corr. Matrix'!B32 -> VZ | B31: ='Corr. Matrix'!C32*'Corr. Matrix'!B$40*'Corr. Matrix'!B66 -> 0.001137686673 | C31: ='Corr. Matrix'!D32*'Corr. Matrix'!B$41*'Corr. Matrix'!B66 -> 0.0009595690436 | D31: ='Corr. Matrix'!E32*'Corr. Matrix'!B$42*'Corr. Matrix'!B66 -> 0.001628848338 | E31: ='Corr. Matrix'!F32*'Corr. Matrix'!B$43*'Corr. Matrix'!B66 -> 0.0006800756725 | F31: ='Corr. Matrix'!G32*'Corr. Matrix'!B$44*'Corr. Matrix'!B66 -> 0.001068425846 | G31: ='Corr. Matrix'!H32*'Corr. Matrix'!B$45*'Corr. Matrix'!B66 -> 0.001577060049 | H31: ='Corr. Matrix'!I32*'Corr. Matrix'!B$46*'Corr. Matrix'!B66 -> 0.001362323265 | I31: ='Corr. Matrix'!J32*'Corr. Matrix'!B$47*'Corr. Matrix'!B66 -> 0.0006973802015 | J31: ='Corr. Matrix'!K32*'Corr. Matrix'!B$48*'Corr. Matrix'!B66 -> 0.0005294365828 | K31: ='Corr. Matrix'!L32*'Corr. Matrix'!B$49*'Corr. Matrix'!B66 -> 0.001033140959 | L31: ='Corr. Matrix'!M32*'Corr. Matrix'!B$50*'Corr. Matrix'!B66 -> 0.00078937304 | M31: ='Corr. Matrix'!N32*'Corr. Matrix'!B$51*'Corr. Matrix'!B66 -> 0.001024090952 | N31: ='Corr. Matrix'!O32*'Corr. Matrix'!B$52*'Corr. Matrix'!B66 -> 0.001439259547 | O31: ='Corr. Matrix'!P32*'Corr. Matrix'!B$53*'Corr. Matrix'!B66 -> 0.001163249427 | P31: ='Corr. Matrix'!Q32*'Corr. Matrix'!B$54*'Corr. Matrix'!B66 -> 0.001433074367 | Q31: ='Corr. Matrix'!R32*'Corr. Matrix'!B$55*'Corr. Matrix'!B66 -> 0.001182584691 | R31: ='Corr. Matrix'!S32*'Corr. Matrix'!B$56*'Corr. Matrix'!B66 -> 0.0009710053313 | S31: ='Corr. Matrix'!T32*'Corr. Matrix'!B$57*'Corr. Matrix'!B66 -> 0.001103322565 | T31: ='Corr. Matrix'!U32*'Corr. Matrix'!B$58*'Corr. Matrix'!B66 -> 0.001169294665 | U31: ='Corr. Matrix'!V32*'Corr. Matrix'!B$59*'Corr. Matrix'!B66 -> 0.0008357463418 | V31: ='Corr. Matrix'!W32*'Corr. Matrix'!B$60*'Corr. Matrix'!B66 -> 0.0003062809616 | W31: ='Corr. Matrix'!X32*'Corr. Matrix'!B$61*'Corr. Matrix'!B66 -> 0.001486920417 | X31: ='Corr. Matrix'!Y32*'Corr. Matrix'!B$62*'Corr. Matrix'!B66 -> 0.001168497078 | Y31: ='Corr. Matrix'!Z32*'Corr. Matrix'!B$63*'Corr. Matrix'!B66 -> 0.0006200061233 | Z31: ='Corr. Matrix'!AA32*'Corr. Matrix'!B$64*'Corr. Matrix'!B66 -> 0.001299341922 | AA31: ='Corr. Matrix'!AB32*'Corr. Matrix'!B$65*'Corr. Matrix'!B66 -> 0.00143600289 | AB31: ='Corr. Matrix'!AC32*'Corr. Matrix'!B$66*'Corr. Matrix'!B66 -> 0.002478459168 | AC31: =$AB32 -> 0.0007004824207 | AD31: =$AB33 -> 0.001396194564 | AE31: =$AB34 -> 0.000632219703
A32: ='Corr. Matrix'!B33 -> WMT | B32: ='Corr. Matrix'!C33*'Corr. Matrix'!B$40*'Corr. Matrix'!B67 -> 0.003816596561 | C32: ='Corr. Matrix'!D33*'Corr. Matrix'!B$41*'Corr. Matrix'!B67 -> 0.001796042173 | D32: ='Corr. Matrix'!E33*'Corr. Matrix'!B$42*'Corr. Matrix'!B67 -> 0.00112476386 | E32: ='Corr. Matrix'!F33*'Corr. Matrix'!B$43*'Corr. Matrix'!B67 -> 0.001496656538 | F32: ='Corr. Matrix'!G33*'Corr. Matrix'!B$44*'Corr. Matrix'!B67 -> 0.001655827443 | G32: ='Corr. Matrix'!H33*'Corr. Matrix'!B$45*'Corr. Matrix'!B67 -> 0.001321300232 | H32: ='Corr. Matrix'!I33*'Corr. Matrix'!B$46*'Corr. Matrix'!B67 -> 0.001682730596 | I32: ='Corr. Matrix'!J33*'Corr. Matrix'!B$47*'Corr. Matrix'!B67 -> 0.001916958185 | J32: ='Corr. Matrix'!K33*'Corr. Matrix'!B$48*'Corr. Matrix'!B67 -> 0.001287280661 | K32: ='Corr. Matrix'!L33*'Corr. Matrix'!B$49*'Corr. Matrix'!B67 -> 0.001161448773 | L32: ='Corr. Matrix'!M33*'Corr. Matrix'!B$50*'Corr. Matrix'!B67 -> 0.001641095222 | M32: ='Corr. Matrix'!N33*'Corr. Matrix'!B$51*'Corr. Matrix'!B67 -> 0.0008845542015 | N32: ='Corr. Matrix'!O33*'Corr. Matrix'!B$52*'Corr. Matrix'!B67 -> 0.0004452366186 | O32: ='Corr. Matrix'!P33*'Corr. Matrix'!B$53*'Corr. Matrix'!B67 -> 0.001464033171 | P32: ='Corr. Matrix'!Q33*'Corr. Matrix'!B$54*'Corr. Matrix'!B67 -> 0.0009941105014 | Q32: ='Corr. Matrix'!R33*'Corr. Matrix'!B$55*'Corr. Matrix'!B67 -> 0.001278765098 | R32: ='Corr. Matrix'!S33*'Corr. Matrix'!B$56*'Corr. Matrix'!B67 -> 0.002293858238 | S32: ='Corr. Matrix'!T33*'Corr. Matrix'!B$57*'Corr. Matrix'!B67 -> 0.001453076463 | T32: ='Corr. Matrix'!U33*'Corr. Matrix'!B$58*'Corr. Matrix'!B67 -> 0.001481831456 | U32: ='Corr. Matrix'!V33*'Corr. Matrix'!B$59*'Corr. Matrix'!B67 -> 0.001393310262 | V32: ='Corr. Matrix'!W33*'Corr. Matrix'!B$60*'Corr. Matrix'!B67 -> 0.0006000835062 | W32: ='Corr. Matrix'!X33*'Corr. Matrix'!B$61*'Corr. Matrix'!B67 -> 0.001246392118 | X32: ='Corr. Matrix'!Y33*'Corr. Matrix'!B$62*'Corr. Matrix'!B67 -> 0.001586247578 | Y32: ='Corr. Matrix'!Z33*'Corr. Matrix'!B$63*'Corr. Matrix'!B67 -> 0.002084756577 | Z32: ='Corr. Matrix'!AA33*'Corr. Matrix'!B$64*'Corr. Matrix'!B67 -> 0.002182383054 | AA32: ='Corr. Matrix'!AB33*'Corr. Matrix'!B$65*'Corr. Matrix'!B67 -> 0.0006942295888 | AB32: ='Corr. Matrix'!AC33*'Corr. Matrix'!B$66*'Corr. Matrix'!B67 -> 0.0007004824207 | AC32: ='Corr. Matrix'!AD33*'Corr. Matrix'!B$67*'Corr. Matrix'!B67 -> 0.003416373149 | AD32: =AC33 -> 0.0009301412852 | AE32: =AC34 -> 0.001302376082
A33: ='Corr. Matrix'!B34 -> XOM | B33: ='Corr. Matrix'!C34*'Corr. Matrix'!B$40*'Corr. Matrix'!B68 -> 0.003013405055 | C33: ='Corr. Matrix'!D34*'Corr. Matrix'!B$41*'Corr. Matrix'!B68 -> 0.006014358543 | D33: ='Corr. Matrix'!E34*'Corr. Matrix'!B$42*'Corr. Matrix'!B68 -> 0.006890732526 | E33: ='Corr. Matrix'!F34*'Corr. Matrix'!B$43*'Corr. Matrix'!B68 -> 0.004686402291 | F33: ='Corr. Matrix'!G34*'Corr. Matrix'!B$44*'Corr. Matrix'!B68 -> 0.002842841845 | G33: ='Corr. Matrix'!H34*'Corr. Matrix'!B$45*'Corr. Matrix'!B68 -> 0.008405705335 | H33: ='Corr. Matrix'!I34*'Corr. Matrix'!B$46*'Corr. Matrix'!B68 -> 0.004454159041 | I33: ='Corr. Matrix'!J34*'Corr. Matrix'!B$47*'Corr. Matrix'!B68 -> 0.007029567301 | J33: ='Corr. Matrix'!K34*'Corr. Matrix'!B$48*'Corr. Matrix'!B68 -> 0.006124019277 | K33: ='Corr. Matrix'!L34*'Corr. Matrix'!B$49*'Corr. Matrix'!B68 -> 0.002593420481 | L33: ='Corr. Matrix'!M34*'Corr. Matrix'!B$50*'Corr. Matrix'!B68 -> 0.00247988844 | M33: ='Corr. Matrix'!N34*'Corr. Matrix'!B$51*'Corr. Matrix'!B68 -> 0.003918540921 | N33: ='Corr. Matrix'!O34*'Corr. Matrix'!B$52*'Corr. Matrix'!B68 -> 0.003298209392 | O33: ='Corr. Matrix'!P34*'Corr. Matrix'!B$53*'Corr. Matrix'!B68 -> 0.002240398129 | P33: ='Corr. Matrix'!Q34*'Corr. Matrix'!B$54*'Corr. Matrix'!B68 -> 0.004996688943 | Q33: ='Corr. Matrix'!R34*'Corr. Matrix'!B$55*'Corr. Matrix'!B68 -> 0.002374250294 | R33: ='Corr. Matrix'!S34*'Corr. Matrix'!B$56*'Corr. Matrix'!B68 -> 0.0007071711076 | S33: ='Corr. Matrix'!T34*'Corr. Matrix'!B$57*'Corr. Matrix'!B68 -> 0.002563274732 | T33: ='Corr. Matrix'!U34*'Corr. Matrix'!B$58*'Corr. Matrix'!B68 -> 0.00364667546 | U33: ='Corr. Matrix'!V34*'Corr. Matrix'!B$59*'Corr. Matrix'!B68 -> 0.001853334867 | V33: ='Corr. Matrix'!W34*'Corr. Matrix'!B$60*'Corr. Matrix'!B68 -> 0.001657222546 | W33: ='Corr. Matrix'!X34*'Corr. Matrix'!B$61*'Corr. Matrix'!B68 -> 0.001094361147 | X33: ='Corr. Matrix'!Y34*'Corr. Matrix'!B$62*'Corr. Matrix'!B68 -> 0.0008675874958 | Y33: ='Corr. Matrix'!Z34*'Corr. Matrix'!B$63*'Corr. Matrix'!B68 -> 0.002836372073 | Z33: ='Corr. Matrix'!AA34*'Corr. Matrix'!B$64*'Corr. Matrix'!B68 -> 0.007256768796 | AA33: ='Corr. Matrix'!AB34*'Corr. Matrix'!B$65*'Corr. Matrix'!B68 -> 0.005671641034 | AB33: ='Corr. Matrix'!AC34*'Corr. Matrix'!B$66*'Corr. Matrix'!B68 -> 0.001396194564 | AC33: ='Corr. Matrix'!AD34*'Corr. Matrix'!B$67*'Corr. Matrix'!B68 -> 0.0009301412852 | AD33: ='Corr. Matrix'!AE34*'Corr. Matrix'!B$68*'Corr. Matrix'!B68 -> 0.01002983726 | AE33: =AD34 -> 0.001687741719
A34: ='Corr. Matrix'!B35 -> AMZN | B34: ='Corr. Matrix'!C35*'Corr. Matrix'!B$40*'Corr. Matrix'!B69 -> 0.009719223946 | C34: ='Corr. Matrix'!D35*'Corr. Matrix'!B$41*'Corr. Matrix'!B69 -> 0.002810905237 | D34: ='Corr. Matrix'!E35*'Corr. Matrix'!B$42*'Corr. Matrix'!B69 -> 0.00207192377 | E34: ='Corr. Matrix'!F35*'Corr. Matrix'!B$43*'Corr. Matrix'!B69 -> 0.002493354888 | F34: ='Corr. Matrix'!G35*'Corr. Matrix'!B$44*'Corr. Matrix'!B69 -> 0.003033636387 | G34: ='Corr. Matrix'!H35*'Corr. Matrix'!B$45*'Corr. Matrix'!B69 -> 0.002457914345 | H34: ='Corr. Matrix'!I35*'Corr. Matrix'!B$46*'Corr. Matrix'!B69 -> 0.003964761216 | I34: ='Corr. Matrix'!J35*'Corr. Matrix'!B$47*'Corr. Matrix'!B69 -> 0.003934531491 | J34: ='Corr. Matrix'!K35*'Corr. Matrix'!B$48*'Corr. Matrix'!B69 -> 0.002225626417 | K34: ='Corr. Matrix'!L35*'Corr. Matrix'!B$49*'Corr. Matrix'!B69 -> 0.004408548527 | L34: ='Corr. Matrix'!M35*'Corr. Matrix'!B$50*'Corr. Matrix'!B69 -> 0.003109951278 | M34: ='Corr. Matrix'!N35*'Corr. Matrix'!B$51*'Corr. Matrix'!B69 -> 0.002084584345 | N34: ='Corr. Matrix'!O35*'Corr. Matrix'!B$52*'Corr. Matrix'!B69 -> 0.0018319472 | O34: ='Corr. Matrix'!P35*'Corr. Matrix'!B$53*'Corr. Matrix'!B69 -> 0.001190190997 | P34: ='Corr. Matrix'!Q35*'Corr. Matrix'!B$54*'Corr. Matrix'!B69 -> 0.002128953011 | Q34: ='Corr. Matrix'!R35*'Corr. Matrix'!B$55*'Corr. Matrix'!B69 -> 0.0003833230142 | R34: ='Corr. Matrix'!S35*'Corr. Matrix'!B$56*'Corr. Matrix'!B69 -> 0.001820151447 | S34: ='Corr. Matrix'!T35*'Corr. Matrix'!B$57*'Corr. Matrix'!B69 -> 0.001290785668 | T34: ='Corr. Matrix'!U35*'Corr. Matrix'!B$58*'Corr. Matrix'!B69 -> 0.002557864579 | U34: ='Corr. Matrix'!V35*'Corr. Matrix'!B$59*'Corr. Matrix'!B69 -> 0.004215988717 | V34: ='Corr. Matrix'!W35*'Corr. Matrix'!B$60*'Corr. Matrix'!B69 -> 0.008050778053 | W34: ='Corr. Matrix'!X35*'Corr. Matrix'!B$61*'Corr. Matrix'!B69 -> 0.00187859144 | X34: ='Corr. Matrix'!Y35*'Corr. Matrix'!B$62*'Corr. Matrix'!B69 -> 0.0003814089353 | Y34: ='Corr. Matrix'!Z35*'Corr. Matrix'!B$63*'Corr. Matrix'!B69 -> 0.005783084324 | Z34: ='Corr. Matrix'!AA35*'Corr. Matrix'!B$64*'Corr. Matrix'!B69 -> 0.00326773811 | AA34: ='Corr. Matrix'!AB35*'Corr. Matrix'!B$65*'Corr. Matrix'!B69 -> 0.002446902741 | AB34: ='Corr. Matrix'!AC35*'Corr. Matrix'!B$66*'Corr. Matrix'!B69 -> 0.000632219703 | AC34: ='Corr. Matrix'!AD35*'Corr. Matrix'!B$67*'Corr. Matrix'!B69 -> 0.001302376082 | AD34: ='Corr. Matrix'!AE35*'Corr. Matrix'!B$68*'Corr. Matrix'!B69 -> 0.001687741719 | AE34: ='Corr. Matrix'!AF35*'Corr. Matrix'!B69*'Corr. Matrix'!B69 -> 0.008926148178
A36: Portfolio Standard Deviation
A37: N | B37: 1/N | C37: (1/N)^2 | D37: Sum | E37: Variance | F37: Stand Dev
A38: 1 | B38: =1/A38 -> 1 | C38: =B38^2 -> 1 | D38: =SUM(B5) -> 0.03891897181 | E38: =C38*D38 -> 0.03891897181 | F38: =SQRT(E38) -> 0.1972789188
A39: 2 | B39: 0.5 | C39: 0.25 | D39: =SUM(B5:C6) -> 0.07074755059 | E39: 0.01768688765 | F39: 0.1329920586
A40: 3 | B40: 0.3333333333 | C40: 0.1111111111 | D40: =SUM(B5:D7) -> 0.1181454702 | E40: 0.01312727446 | F40: 0.1145743185
A41: 4 | B41: 0.25 | C41: 0.0625 | D41: =SUM(B5:E8) -> 0.1503797344 | E41: 0.009398733399 | F41: 0.09694706493
A42: 5 | B42: 0.2 | C42: 0.04 | D42: =SUM(B5:F9) -> 0.185157219 | E42: 0.007406288758 | F42: 0.08605979757
A43: 6 | B43: 0.1666666667 | C43: 0.02777777778 | D43: =SUM(B5:G10) -> 0.2432852634 | E43: 0.006757923983 | F43: 0.08220659331
A44: 7 | B44: 0.1428571429 | C44: 0.02040816327 | D44: =SUM(B5:H11) -> 0.3127346614 | E44: 0.006382340029 | F44: 0.07988954893
A45: 8 | B45: 0.125 | C45: 0.015625 | D45: =SUM(B5:I12) -> 0.4310228273 | E45: 0.006734731677 | F45: 0.08206541096
A46: 9 | B46: 0.1111111111 | C46: 0.01234567901 | D46: =SUM(B5:J13) -> 0.5540777196 | E46: 0.006840465674 | F46: 0.08270710776
A47: 10 | B47: 0.1 | C47: 0.01 | D47: =SUM(B5:K14) -> 0.631796427 | E47: 0.00631796427 | F47: 0.07948562304
A48: 11 | B48: 0.09090909091 | C48: 0.00826446281 | D48: =SUM(B5:L15) -> 0.7016138709 | E48: 0.005798461743 | F48: 0.07614763124
A49: 12 | B49: 0.08333333333 | C49: 0.006944444444 | D49: =SUM(B5:M16) -> 0.7714815846 | E49: 0.005357511004 | F49: 0.07319502035
A50: 13 | B50: 0.07692307692 | C50: 0.005917159763 | D50: =SUM(B5:N17) -> 0.8580873155 | E50: 0.005077439737 | F50: 0.07125615578
A51: 14 | B51: 0.07142857143 | C51: 0.005102040816 | D51: =SUM(B5:O18) -> 0.9028694103 | E51: 0.004606476583 | F51: 0.06787102904
A52: 15 | B52: 0.06666666667 | C52: 0.004444444444 | D52: =SUM(B5:P19) -> 1.034982231 | E52: 0.004599921026 | F52: 0.06782271763
A53: 16 | B53: 0.0625 | C53: 0.00390625 | D53: =SUM(B5:Q20) -> 1.099870235 | E53: 0.004296368105 | F53: 0.06554668645
A54: 17 | B54: 0.05882352941 | C54: 0.003460207612 | D54: =SUM(B5:R21) -> 1.150543906 | E54: 0.003981120783 | F54: 0.06309612336
A55: 18 | B55: 0.05555555556 | C55: 0.003086419753 | D55: =SUM(B5:S22) -> 1.227978643 | E55: 0.003790057541 | F55: 0.06156344322
A56: 19 | B56: 0.05263157895 | C56: 0.002770083102 | D56: =SUM(B5:T23) -> 1.345839737 | E56: 0.003728087915 | F56: 0.06105807003
A57: 20 | B57: 0.05 | C57: 0.0025 | D57: =SUM(B5:U24) -> 1.444955389 | E57: 0.003612388472 | F57: 0.0601031486
A58: 21 | B58: 0.04761904762 | C58: 0.002267573696 | D58: =SUM(B5:V25) -> 1.607039072 | E58: 0.003644079528 | F58: 0.06036621181
A59: 22 | B59: 0.04545454545 | C59: 0.002066115702 | D59: =SUM(B5:W26) -> 1.682082478 | E59: 0.00347537702 | F59: 0.05895232837
A60: 23 | B60: 0.04347826087 | C60: 0.001890359168 | D60: =SUM(B5:X27) -> 1.738549566 | E60: 0.003286483112 | F60: 0.05732785634
A61: 24 | B61: 0.04166666667 | C61: 0.001736111111 | D61: =SUM(B5:Y28) -> 1.907023439 | E61: 0.003310804582 | F61: 0.05753959143
A62: 25 | B62: 0.04 | C62: 0.0016 | D62: =SUM(B5:Z29) -> 2.138608096 | E62: 0.003421772953 | F62: 0.05849592254
A63: 26 | B63: 0.03846153846 | C63: 0.001479289941 | D63: =SUM(B5:AA30) -> 2.331066631 | E63: 0.003448323419 | F63: 0.05872242688
A64: 27 | B64: 0.03703703704 | C64: 0.001371742112 | D64: =SUM(B5:AB31) -> 2.389749084 | E64: 0.003278119457 | F64: 0.05725486405
A65: 28 | B65: 0.03571428571 | C65: 0.001275510204 | D65: =SUM(B5:AC32) -> 2.47253356 | E65: 0.003153741785 | F65: 0.05615818538
A66: 29 | B66: 0.03448275862 | C66: 0.001189060642 | D66: =SUM(B5:AD33) -> 2.686250063 | E66: 0.003194114224 | F66: 0.05651649515
A67: 30 | B67: 0.03333333333 | C67: 0.001111111111 | D67: =SUM(B5:AE34) -> 2.861506226 | E67: 0.003179451362 | F67: 0.05638662397

Sheet Graph
P1: Stock | R1: Average | S1: Portfolio
N2: Stocks | P2: Stand Dev | Q2: Ave Corr | R2: Stand Dev | S2: Stand Dev
N3: 1 | O3: ='Var-Cov Matrix'!A5 -> TSLA | P3: ='Corr. Matrix'!B40 -> 0.1972789188 | Q3: =(AVERAGE('Corr. Matrix'!C6:AF6)-(1/30))*(30/29) -> 0.280881123 | R3: =AVERAGE($P$3:P3) -> 0.1972789188 | S3: ='Var-Cov Matrix'!F38 -> 0.1972789188
N4: 2 | O4: ='Var-Cov Matrix'!A6 -> GM | P4: ='Corr. Matrix'!B41 -> 0.1156337846 | Q4: =(AVERAGE('Corr. Matrix'!C7:AF7)-(1/30))*(30/29) -> 0.4367606597 | R4: =AVERAGE($P$3:P4) -> 0.1564563517 | S4: ='Var-Cov Matrix'!F39 -> 0.1329920586
N5: 3 | O5: ='Var-Cov Matrix'!A7 -> BA | P5: ='Corr. Matrix'!B42 -> 0.1398086124 | Q5: =(AVERAGE('Corr. Matrix'!C8:AF8)-(1/30))*(30/29) -> 0.3755424151 | R5: =AVERAGE($P$3:P5) -> 0.1509071053 | S5: ='Var-Cov Matrix'!F40 -> 0.1145743185
N6: 4 | O6: ='Var-Cov Matrix'!A8 -> CAT | P6: ='Corr. Matrix'!B43 -> 0.09090770778 | Q6: =(AVERAGE('Corr. Matrix'!C9:AF9)-(1/30))*(30/29) -> 0.4127886218 | R6: =AVERAGE($P$3:P6) -> 0.1359072559 | S6: ='Var-Cov Matrix'!F41 -> 0.09694706493
N7: 5 | O7: ='Var-Cov Matrix'!A9 -> CSCO | P7: ='Corr. Matrix'!B44 -> 0.0782885692 | Q7: =(AVERAGE('Corr. Matrix'!C10:AF10)-(1/30))*(30/29) -> 0.4186651548 | R7: =AVERAGE($P$3:P7) -> 0.1243835186 | S7: ='Var-Cov Matrix'!F42 -> 0.08605979757
N8: 6 | O8: ='Var-Cov Matrix'!A10 -> CVX | P8: ='Corr. Matrix'!B45 -> 0.09342011177 | Q8: =(AVERAGE('Corr. Matrix'!C11:AF11)-(1/30))*(30/29) -> 0.4431818275 | R8: =AVERAGE($P$3:P8) -> 0.1192229508 | S8: ='Var-Cov Matrix'!F43 -> 0.08220659331
N9: 7 | O9: ='Var-Cov Matrix'!A11 -> DIS | P9: ='Corr. Matrix'!B46 -> 0.09345668131 | Q9: =(AVERAGE('Corr. Matrix'!C12:AF12)-(1/30))*(30/29) -> 0.4412234658 | R9: =AVERAGE($P$3:P9) -> 0.1155420551 | S9: ='Var-Cov Matrix'!F44 -> 0.07988954893
N10: 8 | O10: ='Var-Cov Matrix'!A12 -> F | P10: ='Corr. Matrix'!B47 -> 0.1244481179 | Q10: =(AVERAGE('Corr. Matrix'!C13:AF13)-(1/30))*(30/29) -> 0.4284607824 | R10: =AVERAGE($P$3:P10) -> 0.116655313 | S10: ='Var-Cov Matrix'!F45 -> 0.08206541096
N11: 9 | O11: ='Var-Cov Matrix'!A13 -> GE | P11: ='Corr. Matrix'!B48 -> 0.1244487224 | Q11: =(AVERAGE('Corr. Matrix'!C14:AF14)-(1/30))*(30/29) -> 0.3562723267 | R11: =AVERAGE($P$3:P11) -> 0.1175212474 | S11: ='Var-Cov Matrix'!F46 -> 0.08270710776
N12: 10 | O12: ='Var-Cov Matrix'!A14 -> GOOGL | P12: ='Corr. Matrix'!B49 -> 0.07416128504 | Q12: =(AVERAGE('Corr. Matrix'!C15:AF15)-(1/30))*(30/29) -> 0.4457629904 | R12: =AVERAGE($P$3:P12) -> 0.1131852511 | S12: ='Var-Cov Matrix'!F47 -> 0.07948562304
N13: 11 | O13: ='Var-Cov Matrix'!A15 -> HD | P13: ='Corr. Matrix'!B50 -> 0.07141792731 | Q13: =(AVERAGE('Corr. Matrix'!C16:AF16)-(1/30))*(30/29) -> 0.4157918342 | R13: =AVERAGE($P$3:P13) -> 0.1093882217 | S13: ='Var-Cov Matrix'!F48 -> 0.07614763124
N14: 12 | O14: ='Var-Cov Matrix'!A16 -> IBM | P14: ='Corr. Matrix'!B51 -> 0.07840875542 | Q14: =(AVERAGE('Corr. Matrix'!C17:AF17)-(1/30))*(30/29) -> 0.3798307815 | R14: =AVERAGE($P$3:P14) -> 0.1068065995 | S14: ='Var-Cov Matrix'!F49 -> 0.07319502035
N15: 13 | O15: ='Var-Cov Matrix'!A17 -> INTC | P15: ='Corr. Matrix'!B52 -> 0.08339339334 | Q15: =(AVERAGE('Corr. Matrix'!C18:AF18)-(1/30))*(30/29) -> 0.3402306208 | R15: =AVERAGE($P$3:P15) -> 0.1050055836 | S15: ='Var-Cov Matrix'!F50 -> 0.07125615578
N16: 14 | O16: ='Var-Cov Matrix'!A18 -> JNJ | P16: ='Corr. Matrix'!B53 -> 0.05157098991 | Q16: =(AVERAGE('Corr. Matrix'!C19:AF19)-(1/30))*(30/29) -> 0.3774253567 | R16: =AVERAGE($P$3:P16) -> 0.1011888269 | S16: ='Var-Cov Matrix'!F51 -> 0.06787102904
N17: 15 | O17: ='Var-Cov Matrix'!A19 -> JPM | P17: ='Corr. Matrix'!B54 -> 0.08037487691 | Q17: =(AVERAGE('Corr. Matrix'!C20:AF20)-(1/30))*(30/29) -> 0.4986470691 | R17: =AVERAGE($P$3:P17) -> 0.09980123027 | S17: ='Var-Cov Matrix'!F52 -> 0.06782271763
N18: 16 | O18: ='Var-Cov Matrix'!A20 -> KO | P18: ='Corr. Matrix'!B55 -> 0.05740802067 | Q18: =(AVERAGE('Corr. Matrix'!C21:AF21)-(1/30))*(30/29) -> 0.3621780526 | R18: =AVERAGE($P$3:P18) -> 0.09715165467 | S18: ='Var-Cov Matrix'!F53 -> 0.06554668645
N19: 17 | O19: ='Var-Cov Matrix'!A21 -> KR | P19: ='Corr. Matrix'!B56 -> 0.07754620886 | Q19: =(AVERAGE('Corr. Matrix'!C22:AF22)-(1/30))*(30/29) -> 0.209744695 | R19: =AVERAGE($P$3:P19) -> 0.09599839316 | S19: ='Var-Cov Matrix'!F54 -> 0.06309612336
N20: 18 | O20: ='Var-Cov Matrix'!A22 -> MCD | P20: ='Corr. Matrix'!B57 -> 0.05572780938 | Q20: =(AVERAGE('Corr. Matrix'!C23:AF23)-(1/30))*(30/29) -> 0.41754659 | R20: =AVERAGE($P$3:P20) -> 0.0937611385 | S20: ='Var-Cov Matrix'!F55 -> 0.06156344322
N21: 19 | O21: ='Var-Cov Matrix'!A23 -> MMM | P21: ='Corr. Matrix'!B58 -> 0.0694688052 | Q21: =(AVERAGE('Corr. Matrix'!C24:AF24)-(1/30))*(30/29) -> 0.4802724833 | R21: =AVERAGE($P$3:P21) -> 0.09248259464 | S21: ='Var-Cov Matrix'!F56 -> 0.06105807003
N22: 20 | O22: ='Var-Cov Matrix'!A24 -> MSFT | P22: ='Corr. Matrix'!B59 -> 0.06090956554 | Q22: =(AVERAGE('Corr. Matrix'!C25:AF25)-(1/30))*(30/29) -> 0.4467606076 | R22: =AVERAGE($P$3:P22) -> 0.09090394319 | S22: ='Var-Cov Matrix'!F57 -> 0.0601031486
N23: 21 | O23: ='Var-Cov Matrix'!A25 -> NFLX | P23: ='Corr. Matrix'!B60 -> 0.134748595 | Q23: =(AVERAGE('Corr. Matrix'!C26:AF26)-(1/30))*(30/29) -> 0.2571009851 | R23: =AVERAGE($P$3:P23) -> 0.09299178375 | S23: ='Var-Cov Matrix'!F58 -> 0.06036621181
N24: 22 | O24: ='Var-Cov Matrix'!A26 -> PFE | P24: ='Corr. Matrix'!B61 -> 0.07345038062 | Q24: =(AVERAGE('Corr. Matrix'!C27:AF27)-(1/30))*(30/29) -> 0.2775109289 | R24: =AVERAGE($P$3:P24) -> 0.09210353816 | S24: ='Var-Cov Matrix'!F59 -> 0.05895232837
N25: 23 | O25: ='Var-Cov Matrix'!A27 -> PG | P25: ='Corr. Matrix'!B62 -> 0.04971711661 | Q25: =(AVERAGE('Corr. Matrix'!C28:AF28)-(1/30))*(30/29) -> 0.3099457362 | R25: =AVERAGE($P$3:P25) -> 0.09026065026 | S25: ='Var-Cov Matrix'!F60 -> 0.05732785634
N26: 24 | O26: ='Var-Cov Matrix'!A28 -> AAPL | P26: ='Corr. Matrix'!B63 -> 0.09281806793 | Q26: =(AVERAGE('Corr. Matrix'!C29:AF29)-(1/30))*(30/29) -> 0.4010611766 | R26: =AVERAGE($P$3:P26) -> 0.09036720933 | S26: ='Var-Cov Matrix'!F61 -> 0.05753959143
N27: 25 | O27: ='Var-Cov Matrix'!A29 -> PRU | P27: ='Corr. Matrix'!B64 -> 0.09775485537 | Q27: =(AVERAGE('Corr. Matrix'!C30:AF30)-(1/30))*(30/29) -> 0.5267145208 | R27: =AVERAGE($P$3:P27) -> 0.09066271517 | S27: ='Var-Cov Matrix'!F62 -> 0.05849592254
N28: 26 | O28: ='Var-Cov Matrix'!A30 -> TFC | P28: ='Corr. Matrix'!B65 -> 0.08877047748 | Q28: =(AVERAGE('Corr. Matrix'!C31:AF31)-(1/30))*(30/29) -> 0.4326352898 | R28: =AVERAGE($P$3:P28) -> 0.0905899368 | S28: ='Var-Cov Matrix'!F63 -> 0.05872242688
N29: 27 | O29: ='Var-Cov Matrix'!A31 -> VZ | P29: ='Corr. Matrix'!B66 -> 0.04978412566 | Q29: =(AVERAGE('Corr. Matrix'!C32:AF32)-(1/30))*(30/29) -> 0.264665487 | R29: =AVERAGE($P$3:P29) -> 0.08907861046 | S29: ='Var-Cov Matrix'!F64 -> 0.05725486405
N30: 28 | O30: ='Var-Cov Matrix'!A32 -> WMT | P30: ='Corr. Matrix'!B67 -> 0.05844974892 | Q30: =(AVERAGE('Corr. Matrix'!C33:AF33)-(1/30))*(30/29) -> 0.2947797472 | R30: =AVERAGE($P$3:P30) -> 0.08798472255 | S30: ='Var-Cov Matrix'!F65 -> 0.05615818538
N31: 29 | O31: ='Var-Cov Matrix'!A33 -> XOM | P31: ='Corr. Matrix'!B68 -> 0.1001490752 | Q31: =(AVERAGE('Corr. Matrix'!C34:AF34)-(1/30))*(30/29) -> 0.4018660693 | R31: =AVERAGE($P$3:P31) -> 0.08840418298 | S31: ='Var-Cov Matrix'!F66 -> 0.05651649515
N32: 30 | O32: ='Var-Cov Matrix'!A34 -> AMZN | P32: ='Corr. Matrix'!B69 -> 0.09447829474 | Q32: =(AVERAGE('Corr. Matrix'!C35:AF35)-(1/30))*(30/29) -> 0.3289904484 | R32: =AVERAGE($P$3:P32) -> 0.08860665338 | S32: ='Var-Cov Matrix'!F67 -> 0.05638662397
